Body Name,Body,Organisational unit,Service division,Expenditure category,Date,Transacton number,Net amount,Supplier,Narrative
Tendring DC,http://statistics.data.gov.uk/id/local-authority-district/22UN,Corporate Services,1620 - IT Section Service Unit,3300 - Public Transport - Officers,16/12/2014,1062039-1,16,REDACTED PERSONAL DATA,REDACTED PERSONAL DATA
Tendring DC,http://statistics.data.gov.uk/id/local-authority-district/22UN,Corporate Services,1620 - IT Section Service Unit,3300 - Public Transport - Officers,22/12/2014,1062087-1,16,REDACTED PERSONAL DATA,REDACTED PERSONAL DATA
Tendring DC,http://statistics.data.gov.uk/id/local-authority-district/22UN,Corporate Services,1620 - IT Section Service Unit,3300 - Public Transport - Officers,09/12/2014,7016414-1,16,REDACTED PERSONAL DATA,REDACTED PERSONAL DATA
Tendring DC,http://statistics.data.gov.uk/id/local-authority-district/22UN,Corporate Services,1320 - Print Unit Service Unit,4302 - External Print Unit Expenses,09/12/2014,2117221-1,139,2100069 - Autoprint,job 471
Tendring DC,http://statistics.data.gov.uk/id/local-authority-district/22UN,Corporate Services,1320 - Print Unit Service Unit,4080 - Materials & Consumables,02/12/2014,7016323-1,18.19,2100111 - Banner Business Supplies Ltd,PRINT UNIT CONQUEROR PAPER
Tendring DC,http://statistics.data.gov.uk/id/local-authority-district/22UN,Corporate Services,1100 - Corporate Director (Corporate Services) and Admin Service Unit,4300 - Printing & Stationery,22/12/2014,7016731-1,6.17,2100111 - Banner Business Supplies Ltd,YEAR PLANNER
Tendring DC,http://statistics.data.gov.uk/id/local-authority-district/22UN,Corporate Services,6580 - Member Support Cost,4300 - Printing & Stationery,22/12/2014,7016732-1,7.76,2100111 - Banner Business Supplies Ltd,ENVS & MISC STATIONERY
Tendring DC,http://statistics.data.gov.uk/id/local-authority-district/22UN,Corporate Services,1100 - Corporate Director (Corporate Services) and Admin Service Unit,4300 - Printing & Stationery,22/12/2014,7016732-2,31.4,2100111 - Banner Business Supplies Ltd,ENVS & MISC STATIONERY
Tendring DC,http://statistics.data.gov.uk/id/local-authority-district/22UN,Corporate Services,1100 - Corporate Director (Corporate Services) and Admin Service Unit,4300 - Printing & Stationery,22/12/2014,7016733-1,6.3,2100111 - Banner Business Supplies Ltd,CORRECTION ROLLERS & PEN
Tendring DC,http://statistics.data.gov.uk/id/local-authority-district/22UN,Corporate Services,1930 - Asset Management Service Unit,4469 - Other Non - Legal Professional Services,02/12/2014,7016250-1,300,2113948 - Blackman Surveyors LLP,VALUATION FEE
Tendring DC,http://statistics.data.gov.uk/id/local-authority-district/22UN,Corporate Services,1930 - Asset Management Service Unit,4469 - Other Non - Legal Professional Services,02/12/2014,7016251-1,300,2113948 - Blackman Surveyors LLP,VALUATION FEE
Tendring DC,http://statistics.data.gov.uk/id/local-authority-district/22UN,Corporate Services,C080 - Joint HR and Payroll System,C274 - Purchase of Software,02/12/2014,7016298-1,650,2108648 - Bond International Software (UK) Ltd,APPLY & RECRUITMENT TRAINING
Tendring DC,http://statistics.data.gov.uk/id/local-authority-district/22UN,Corporate Services,1760 - IT Direct Service Costs,4715 - Data Communication Charge,22/12/2014,2117442-1,49.89,2100168 - British Telecommunications plc,1625 dec 14
Tendring DC,http://statistics.data.gov.uk/id/local-authority-district/22UN,Corporate Services,1840 - Central Telephone Service,4710 - Telephones - Charges,02/12/2014,7016248-1,5889.43,2100168 - British Telecommunications plc,4802 NOV 2014
Tendring DC,http://statistics.data.gov.uk/id/local-authority-district/22UN,Corporate Services,1760 - IT Direct Service Costs,4715 - Data Communication Charge,16/12/2014,7016469-1,1182.72,2100168 - British Telecommunications plc,4308 DEC 201
Tendring DC,http://statistics.data.gov.uk/id/local-authority-district/22UN,Corporate Services,4680 - Abandoned Vehicles,4597 - Hired Services - Payments to Contractors,22/12/2014,7016579-1,89.69,2100168 - British Telecommunications plc,ONE BILL NOV 14
Tendring DC,http://statistics.data.gov.uk/id/local-authority-district/22UN,Corporate Services,5360 - HRA - Sheltered Units,4710 - Telephones - Charges,22/12/2014,7016579-10,37.89,2100168 - British Telecommunications plc,ONE BILL NOV 14
Tendring DC,http://statistics.data.gov.uk/id/local-authority-district/22UN,Corporate Services,5360 - HRA - Sheltered Units,4710 - Telephones - Charges,22/12/2014,7016579-11,151.21,2100168 - British Telecommunications plc,ONE BILL NOV 14
Tendring DC,http://statistics.data.gov.uk/id/local-authority-district/22UN,Corporate Services,5360 - HRA - Sheltered Units,4710 - Telephones - Charges,22/12/2014,7016579-12,101.92,2100168 - British Telecommunications plc,ONE BILL NOV 14
Tendring DC,http://statistics.data.gov.uk/id/local-authority-district/22UN,Corporate Services,5360 - HRA - Sheltered Units,4710 - Telephones - Charges,22/12/2014,7016579-13,79.38,2100168 - British Telecommunications plc,ONE BILL NOV 14
Tendring DC,http://statistics.data.gov.uk/id/local-authority-district/22UN,Corporate Services,5360 - HRA - Sheltered Units,4710 - Telephones - Charges,22/12/2014,7016579-14,37.89,2100168 - British Telecommunications plc,ONE BILL NOV 14
Tendring DC,http://statistics.data.gov.uk/id/local-authority-district/22UN,Corporate Services,5360 - HRA - Sheltered Units,4710 - Telephones - Charges,22/12/2014,7016579-15,51.59,2100168 - British Telecommunications plc,ONE BILL NOV 14
Tendring DC,http://statistics.data.gov.uk/id/local-authority-district/22UN,Corporate Services,5360 - HRA - Sheltered Units,4710 - Telephones - Charges,22/12/2014,7016579-16,49.59,2100168 - British Telecommunications plc,ONE BILL NOV 14
Tendring DC,http://statistics.data.gov.uk/id/local-authority-district/22UN,Corporate Services,5360 - HRA - Sheltered Units,4710 - Telephones - Charges,22/12/2014,7016579-17,102.28,2100168 - British Telecommunications plc,ONE BILL NOV 14
Tendring DC,http://statistics.data.gov.uk/id/local-authority-district/22UN,Corporate Services,6480 - Emergency Planning,4710 - Telephones - Charges,22/12/2014,7016579-18,72.75,2100168 - British Telecommunications plc,ONE BILL NOV 14
Tendring DC,http://statistics.data.gov.uk/id/local-authority-district/22UN,Corporate Services,6740 - Careline,4710 - Telephones - Charges,22/12/2014,7016579-19,205.39,2100168 - British Telecommunications plc,ONE BILL NOV 14
Tendring DC,http://statistics.data.gov.uk/id/local-authority-district/22UN,Corporate Services,1880 - Office Accommodation Expenses,4632 - Security,22/12/2014,7016579-2,543.12,2100168 - British Telecommunications plc,ONE BILL NOV 14
Tendring DC,http://statistics.data.gov.uk/id/local-authority-district/22UN,Corporate Services,7620 - Air Show,4710 - Telephones - Charges,22/12/2014,7016579-20,164.2,2100168 - British Telecommunications plc,ONE BILL NOV 14
Tendring DC,http://statistics.data.gov.uk/id/local-authority-district/22UN,Corporate Services,6740 - Careline,4710 - Telephones - Charges,22/12/2014,7016579-21,37.89,2100168 - British Telecommunications plc,ONE BILL NOV 14
Tendring DC,http://statistics.data.gov.uk/id/local-authority-district/22UN,Corporate Services,6740 - Careline,4710 - Telephones - Charges,22/12/2014,7016579-22,37.89,2100168 - British Telecommunications plc,ONE BILL NOV 14
Tendring DC,http://statistics.data.gov.uk/id/local-authority-district/22UN,Corporate Services,6740 - Careline,4710 - Telephones - Charges,22/12/2014,7016579-23,37.89,2100168 - British Telecommunications plc,ONE BILL NOV 14
Tendring DC,http://statistics.data.gov.uk/id/local-authority-district/22UN,Corporate Services,6740 - Careline,4716 - Mobile Telephone Costs,22/12/2014,7016579-24,1758.61,2100168 - British Telecommunications plc,ONE BILL NOV 14
Tendring DC,http://statistics.data.gov.uk/id/local-authority-district/22UN,Corporate Services,6740 - Careline,4716 - Mobile Telephone Costs,22/12/2014,7016579-25,37.89,2100168 - British Telecommunications plc,ONE BILL NOV 14
Tendring DC,http://statistics.data.gov.uk/id/local-authority-district/22UN,Corporate Services,"1580 - Benefits, Revenues and Customer Contact SU",4718 - Fixed Communication Lines,22/12/2014,7016579-26,141.36,2100168 - British Telecommunications plc,ONE BILL NOV 14
Tendring DC,http://statistics.data.gov.uk/id/local-authority-district/22UN,Corporate Services,6740 - Careline,4718 - Fixed Communication Lines,22/12/2014,7016579-27,60.9,2100168 - British Telecommunications plc,ONE BILL NOV 14
Tendring DC,http://statistics.data.gov.uk/id/local-authority-district/22UN,Corporate Services,6740 - Careline,4718 - Fixed Communication Lines,22/12/2014,7016579-28,37.89,2100168 - British Telecommunications plc,ONE BILL NOV 14
Tendring DC,http://statistics.data.gov.uk/id/local-authority-district/22UN,Corporate Services,1040 - Regeneration Service Unit,4730 - Fax Machine,22/12/2014,7016579-29,38.22,2100168 - British Telecommunications plc,ONE BILL NOV 14
Tendring DC,http://statistics.data.gov.uk/id/local-authority-district/22UN,Corporate Services,1661 - Other Apportionable Overheads - Corporate Support,4700 - Postage,22/12/2014,7016579-3,38.31,2100168 - British Telecommunications plc,ONE BILL NOV 14
Tendring DC,http://statistics.data.gov.uk/id/local-authority-district/22UN,Corporate Services,6740 - Careline,4714 - Telephones - Officers Rentals Reimbursed,22/12/2014,7016579-30,37.89,2100168 - British Telecommunications plc,ONE BILL NOV 14
Tendring DC,http://statistics.data.gov.uk/id/local-authority-district/22UN,Corporate Services,1840 - Central Telephone Service,4710 - Telephones - Charges,22/12/2014,7016579-31,300,2100168 - British Telecommunications plc,ONE BILL NOV 14
Tendring DC,http://statistics.data.gov.uk/id/local-authority-district/22UN,Corporate Services,4720 - Dog Warden,4080 - Materials & Consumables,22/12/2014,7016579-32,73.5,2100168 - British Telecommunications plc,ONE BILL NOV 14
Tendring DC,http://statistics.data.gov.uk/id/local-authority-district/22UN,Corporate Services,1320 - Print Unit Service Unit,4710 - Telephones - Charges,22/12/2014,7016579-4,39.03,2100168 - British Telecommunications plc,ONE BILL NOV 14
Tendring DC,http://statistics.data.gov.uk/id/local-authority-district/22UN,Corporate Services,1660 - Other Apportionable Overheads,4710 - Telephones - Charges,22/12/2014,7016579-5,36.36,2100168 - British Telecommunications plc,ONE BILL NOV 14
Tendring DC,http://statistics.data.gov.uk/id/local-authority-district/22UN,Corporate Services,1840 - Central Telephone Service,4710 - Telephones - Charges,22/12/2014,7016579-6,117.67,2100168 - British Telecommunications plc,ONE BILL NOV 14
Tendring DC,http://statistics.data.gov.uk/id/local-authority-district/22UN,Corporate Services,4780 - Rodent & Pest Control,4710 - Telephones - Charges,22/12/2014,7016579-7,169.1,2100168 - British Telecommunications plc,ONE BILL NOV 14
Tendring DC,http://statistics.data.gov.uk/id/local-authority-district/22UN,Corporate Services,5360 - HRA - Sheltered Units,4710 - Telephones - Charges,22/12/2014,7016579-8,37.89,2100168 - British Telecommunications plc,ONE BILL NOV 14
Tendring DC,http://statistics.data.gov.uk/id/local-authority-district/22UN,Corporate Services,5360 - HRA - Sheltered Units,4710 - Telephones - Charges,22/12/2014,7016579-9,37.89,2100168 - British Telecommunications plc,ONE BILL NOV 14
Tendring DC,http://statistics.data.gov.uk/id/local-authority-district/22UN,Corporate Services,1760 - IT Direct Service Costs,4715 - Data Communication Charge,22/12/2014,7016609-1,123,2100168 - British Telecommunications plc,1327 DEC 14
Tendring DC,http://statistics.data.gov.uk/id/local-authority-district/22UN,Corporate Services,1760 - IT Direct Service Costs,4715 - Data Communication Charge,22/12/2014,7016610-1,49.89,2100168 - British Telecommunications plc,8878 DEC 14
Tendring DC,http://statistics.data.gov.uk/id/local-authority-district/22UN,Corporate Services,1760 - IT Direct Service Costs,4715 - Data Communication Charge,22/12/2014,7016611-1,49.89,2100168 - British Telecommunications plc,3347 DEC 14
Tendring DC,http://statistics.data.gov.uk/id/local-authority-district/22UN,Corporate Services,1320 - Print Unit Service Unit,4080 - Materials & Consumables,22/12/2014,2117445-1,157.85,2100291 - Canon (UK) Ltd,paper
Tendring DC,http://statistics.data.gov.uk/id/local-authority-district/22UN,Corporate Services,5480 - HRA - Repair & Maintenance,2083 - CCTV servicing,02/12/2014,7016252-1,4723,2113346 - Chroma Vision Ltd,SH BROADBAND INTERFACES TO CONTROL ROOM LINK
Tendring DC,http://statistics.data.gov.uk/id/local-authority-district/22UN,Corporate Services,5480 - HRA - Repair & Maintenance,2083 - CCTV servicing,22/12/2014,7016614-1,156,2113346 - Chroma Vision Ltd,ROUTER AT CROOKE ELMS SHELTERED HOUSING
Tendring DC,http://statistics.data.gov.uk/id/local-authority-district/22UN,Corporate Services,9900 - General Fund Balance Sheet,B382 - Rechargeable Works - Other,02/12/2014,7016220-1,13145.5,REDACTED PERSONAL DATA,REDACTED PERSONAL DATA
Tendring DC,http://statistics.data.gov.uk/id/local-authority-district/22UN,Corporate Services,9900 - General Fund Balance Sheet,B382 - Rechargeable Works - Other,02/12/2014,7016220-2,-13145.5,REDACTED PERSONAL DATA,REDACTED PERSONAL DATA
Tendring DC,http://statistics.data.gov.uk/id/local-authority-district/22UN,Corporate Services,1815 - Personnel and Human Resources Issues,1707 - Training - Workforce Development Courses,02/12/2014,7016216-1,1400,2112228 - Colchester Borough Council,HAY JOB EVALUATION
Tendring DC,http://statistics.data.gov.uk/id/local-authority-district/22UN,Corporate Services,1100 - Corporate Director (Corporate Services) and Admin Service Unit,3300 - Public Transport - Officers,09/12/2014,7016417-1,77.5,REDACTED PERSONAL DATA,REDACTED PERSONAL DATA
Tendring DC,http://statistics.data.gov.uk/id/local-authority-district/22UN,Corporate Services,1320 - Print Unit Service Unit,4400 - Maintenance Under Service Agreements,16/12/2014,7016471-1,11,2100353 - Consensus Guillotine Engineering Ltd,BLADE SHARPENING
Tendring DC,http://statistics.data.gov.uk/id/local-authority-district/22UN,Corporate Services,1760 - IT Direct Service Costs,4715 - Data Communication Charge,02/12/2014,7016217-1,1175,2106704 - Daisy  Updata Communications Ltd,DAISY AUG 2014
Tendring DC,http://statistics.data.gov.uk/id/local-authority-district/22UN,Corporate Services,1760 - IT Direct Service Costs,4715 - Data Communication Charge,02/12/2014,7016218-1,1175,2106704 - Daisy  Updata Communications Ltd,DAISY PSN LINE & MAINTENANCE
Tendring DC,http://statistics.data.gov.uk/id/local-authority-district/22UN,Corporate Services,1930 - Asset Management Service Unit,4469 - Other Non - Legal Professional Services,16/12/2014,2117322-1,111,2108384 - DC Drains & Plumbing Services,new keys and locks for kiosk 6
Tendring DC,http://statistics.data.gov.uk/id/local-authority-district/22UN,Corporate Services,C349 - IT Strategic Investment,C275 - Hardware,22/12/2014,7016615-1,706.75,2102545 - Dell Corporation Ltd,LAPTOP & DOCKING STATION BC
Tendring DC,http://statistics.data.gov.uk/id/local-authority-district/22UN,Corporate Services,"1580 - Benefits, Revenues and Customer Contact SU",4753 - Computer - Application Software,22/12/2014,7016613-1,2100,2114595 - DocSolution Limited,TRANSFORM CONSULTANCY
Tendring DC,http://statistics.data.gov.uk/id/local-authority-district/22UN,Corporate Services,1930 - Asset Management Service Unit,4469 - Other Non - Legal Professional Services,02/12/2014,2117088-1,179.95,2113971 - Easy EPC,"epc - clay hall, wyndham crescent"
Tendring DC,http://statistics.data.gov.uk/id/local-authority-district/22UN,Corporate Services,7100 - Community Health/Safety,5164 - Project Expenses,02/12/2014,2117087-1,108.6,2100404 - Easy Tigernet,tcsp website
Tendring DC,http://statistics.data.gov.uk/id/local-authority-district/22UN,Corporate Services,6620 - Corporate Management - General,5180 - External Audit Fees,02/12/2014,7016317-1,1922,2112514 - Ernst & Young LLP,LCTS 13/14
Tendring DC,http://statistics.data.gov.uk/id/local-authority-district/22UN,Corporate Services,1520 - Head of Planning and Customer Services,4753 - Computer - Application Software,22/12/2014,2117444-1,21847.5,2100458 - ESRI (UK) Ltd,esri maint renew
Tendring DC,http://statistics.data.gov.uk/id/local-authority-district/22UN,Corporate Services,1320 - Print Unit Service Unit,4302 - External Print Unit Expenses,09/12/2014,2117211-1,454.5,2109136 - Essex Cares Ltd,job 290
Tendring DC,http://statistics.data.gov.uk/id/local-authority-district/22UN,Corporate Services,8971 - MIRS - Contributions Payable to the Pension Scheme,1810 - Superannuation - Financial Strain/Added Years,09/12/2014,7016445-3,17447.9,2100419 - Essex County Council,Pension 00013
Tendring DC,http://statistics.data.gov.uk/id/local-authority-district/22UN,Corporate Services,8971 - MIRS - Contributions Payable to the Pension Scheme,1822 - Superannuation - Port Health Pensions etc.,09/12/2014,7016446-2,826.37,2100419 - Essex County Council,Port Health Authority
Tendring DC,http://statistics.data.gov.uk/id/local-authority-district/22UN,Corporate Services,1660 - Other Apportionable Overheads,4609 - Child Care Vouchers Management Fee,09/12/2014,2117272-2,51.74,REDACTED PERSONAL DATA,REDACTED PERSONAL DATA
Tendring DC,http://statistics.data.gov.uk/id/local-authority-district/22UN,Corporate Services,1800 - Qualification and Other Training,1700 - Training - Courses,22/12/2014,2117425-1,554.17,2114548 - First Intuition Chelmsford,cpirse atwdp3
Tendring DC,http://statistics.data.gov.uk/id/local-authority-district/22UN,Corporate Services,1180 - Benefit Fraud Investigation Service Unit,4459 - External Legal Advice,16/12/2014,2117391-1,914.76,2100672 - Harris Cuffaro & Nichols Solicitors,
Tendring DC,http://statistics.data.gov.uk/id/local-authority-district/22UN,Corporate Services,1180 - Benefit Fraud Investigation Service Unit,4459 - External Legal Advice,16/12/2014,2117391-2,2.25,2100672 - Harris Cuffaro & Nichols Solicitors,
Tendring DC,http://statistics.data.gov.uk/id/local-authority-district/22UN,Corporate Services,1180 - Benefit Fraud Investigation Service Unit,4459 - External Legal Advice,16/12/2014,2117392-1,1931.4,2100672 - Harris Cuffaro & Nichols Solicitors,solicitor costs
Tendring DC,http://statistics.data.gov.uk/id/local-authority-district/22UN,Corporate Services,1180 - Benefit Fraud Investigation Service Unit,4459 - External Legal Advice,16/12/2014,2117392-2,12,2100672 - Harris Cuffaro & Nichols Solicitors,solicitor costs
Tendring DC,http://statistics.data.gov.uk/id/local-authority-district/22UN,Corporate Services,8540 - Leisure Centre Clacton,5160 - Advertising,10/12/2014,7800714-3,63,2111275 - hibu (UK) Ltd,Yell Ad 10/12/14
Tendring DC,http://statistics.data.gov.uk/id/local-authority-district/22UN,Corporate Services,5880 - Management Of Sport & Leisure Facilities,5160 - Advertising,10/12/2014,7800714-4,87,2111275 - hibu (UK) Ltd,Yell Ad 10/12/14
Tendring DC,http://statistics.data.gov.uk/id/local-authority-district/22UN,Corporate Services,1660 - Other Apportionable Overheads,8135 - Reimbursement of costs,02/12/2014,1061907-1,439.07,2114521 - HMCTS,OLIVER REPAID TO COURT
Tendring DC,http://statistics.data.gov.uk/id/local-authority-district/22UN,Corporate Services,C349 - IT Strategic Investment,C200 - Main Contractor,22/12/2014,2117439-1,16310.59,2100782 - Insight Direct (uk) Limited,hp backup items
Tendring DC,http://statistics.data.gov.uk/id/local-authority-district/22UN,Corporate Services,C347 - Information and Communications Technology Core Infrastructure,C275 - Hardware,22/12/2014,2117440-1,503.94,2100782 - Insight Direct (uk) Limited,monitors
Tendring DC,http://statistics.data.gov.uk/id/local-authority-district/22UN,Corporate Services,5360 - HRA - Sheltered Units,4040 - Equipment & Tools,02/12/2014,7016253-1,51.47,2100782 - Insight Direct (uk) Limited,3M 19INCH LCD / NOTEBOOK
Tendring DC,http://statistics.data.gov.uk/id/local-authority-district/22UN,Corporate Services,C349 - IT Strategic Investment,C275 - Hardware,16/12/2014,7016467-1,524,2100782 - Insight Direct (uk) Limited,TOSHIBA BUSINESS BACKPACKS
Tendring DC,http://statistics.data.gov.uk/id/local-authority-district/22UN,Corporate Services,C349 - IT Strategic Investment,C275 - Hardware,16/12/2014,7016470-1,414.5,2100782 - Insight Direct (uk) Limited,TECHAIR 13.3 BLACK BRIEFCASES
Tendring DC,http://statistics.data.gov.uk/id/local-authority-district/22UN,Corporate Services,C349 - IT Strategic Investment,C275 - Hardware,22/12/2014,7016612-1,1191.92,2100782 - Insight Direct (uk) Limited,HP LTO 6 6 25 TB NON CUSTOM LABEL 20 PACK
Tendring DC,http://statistics.data.gov.uk/id/local-authority-district/22UN,Corporate Services,"1580 - Benefits, Revenues and Customer Contact SU",4635 - Cash Collection Contract,16/12/2014,7016464-1,380,2114129 - Jade Security Services Ltd,COLLECTIONS NOV 14
Tendring DC,http://statistics.data.gov.uk/id/local-authority-district/22UN,Corporate Services,8025 - Car Parks - Off St,4635 - Cash Collection Contract,16/12/2014,7016464-10,76,2114129 - Jade Security Services Ltd,COLLECTIONS NOV 14
Tendring DC,http://statistics.data.gov.uk/id/local-authority-district/22UN,Corporate Services,7600 - Tourist Information Centres,4635 - Cash Collection Contract,16/12/2014,7016464-2,76,2114129 - Jade Security Services Ltd,COLLECTIONS NOV 14
Tendring DC,http://statistics.data.gov.uk/id/local-authority-district/22UN,Corporate Services,1520 - Head of Planning and Customer Services,4635 - Cash Collection Contract,16/12/2014,7016464-3,76,2114129 - Jade Security Services Ltd,COLLECTIONS NOV 14
Tendring DC,http://statistics.data.gov.uk/id/local-authority-district/22UN,Corporate Services,5800 - Brightlingsea Sports Centre,4635 - Cash Collection Contract,16/12/2014,7016464-4,76,2114129 - Jade Security Services Ltd,COLLECTIONS NOV 14
Tendring DC,http://statistics.data.gov.uk/id/local-authority-district/22UN,Corporate Services,8540 - Leisure Centre Clacton,4635 - Cash Collection Contract,16/12/2014,7016464-5,228,2114129 - Jade Security Services Ltd,COLLECTIONS NOV 14
Tendring DC,http://statistics.data.gov.uk/id/local-authority-district/22UN,Corporate Services,8520 - Frinton & Walton Swimming Pool,4635 - Cash Collection Contract,16/12/2014,7016464-6,228,2114129 - Jade Security Services Ltd,COLLECTIONS NOV 14
Tendring DC,http://statistics.data.gov.uk/id/local-authority-district/22UN,Corporate Services,8510 - Dovercourt Swimming Pool & All Weather Facilities,4635 - Cash Collection Contract,16/12/2014,7016464-7,152,2114129 - Jade Security Services Ltd,COLLECTIONS NOV 14
Tendring DC,http://statistics.data.gov.uk/id/local-authority-district/22UN,Corporate Services,5820 - Harwich Sports Centre,4635 - Cash Collection Contract,16/12/2014,7016464-8,76,2114129 - Jade Security Services Ltd,COLLECTIONS NOV 14
Tendring DC,http://statistics.data.gov.uk/id/local-authority-district/22UN,Corporate Services,5860 - Manningtree Sports Centre,4635 - Cash Collection Contract,16/12/2014,7016464-9,76,2114129 - Jade Security Services Ltd,COLLECTIONS NOV 14
Tendring DC,http://statistics.data.gov.uk/id/local-authority-district/22UN,Corporate Services,1100 - Corporate Director (Corporate Services) and Admin Service Unit,3311 - Travelling Career Track,02/12/2014,1061903-1,23.4,REDACTED PERSONAL DATA,REDACTED PERSONAL DATA
Tendring DC,http://statistics.data.gov.uk/id/local-authority-district/22UN,Corporate Services,1100 - Corporate Director (Corporate Services) and Admin Service Unit,3311 - Travelling Career Track,16/12/2014,1062050-1,19.1,REDACTED PERSONAL DATA,REDACTED PERSONAL DATA
Tendring DC,http://statistics.data.gov.uk/id/local-authority-district/22UN,Corporate Services,1100 - Corporate Director (Corporate Services) and Admin Service Unit,3311 - Travelling Career Track,22/12/2014,1062086-1,22.8,REDACTED PERSONAL DATA,REDACTED PERSONAL DATA
Tendring DC,http://statistics.data.gov.uk/id/local-authority-district/22UN,Corporate Services,1100 - Corporate Director (Corporate Services) and Admin Service Unit,3311 - Travelling Career Track,09/12/2014,7016407-1,23.2,REDACTED PERSONAL DATA,REDACTED PERSONAL DATA
Tendring DC,http://statistics.data.gov.uk/id/local-authority-district/22UN,Corporate Services,1815 - Personnel and Human Resources Issues,1610 - Counselling,02/12/2014,7016215-1,140,REDACTED PERSONAL DATA,REDACTED PERSONAL DATA
Tendring DC,http://statistics.data.gov.uk/id/local-authority-district/22UN,Corporate Services,1930 - Asset Management Service Unit,4469 - Other Non - Legal Professional Services,22/12/2014,7016718-1,127.3,2100890 - Kirby Locks Ltd,CHANGE LOCKS DOVERCOURT SKATING RINK
Tendring DC,http://statistics.data.gov.uk/id/local-authority-district/22UN,Corporate Services,1320 - Print Unit Service Unit,4080 - Materials & Consumables,16/12/2014,7016476-1,287.68,2100864 - Leston Stationery Ltd,100G PAPER
Tendring DC,http://statistics.data.gov.uk/id/local-authority-district/22UN,Corporate Services,1320 - Print Unit Service Unit,4080 - Materials & Consumables,16/12/2014,7016477-1,188.65,2100864 - Leston Stationery Ltd,PAPER COLOURED
Tendring DC,http://statistics.data.gov.uk/id/local-authority-district/22UN,Corporate Services,1100 - Corporate Director (Corporate Services) and Admin Service Unit,4355 - Books & Periodicals,22/12/2014,7016588-1,334.45,2100874 - Lexis Nexis UK,PARKER LAW CONDUET 46
Tendring DC,http://statistics.data.gov.uk/id/local-authority-district/22UN,Corporate Services,7100 - Community Health/Safety,5164 - Project Expenses,02/12/2014,7016247-1,153.5,2111739 - Love To Eat,CRUCIAL CREW BUFFET
Tendring DC,http://statistics.data.gov.uk/id/local-authority-district/22UN,Corporate Services,1815 - Personnel and Human Resources Issues,1709 - Training - Management Development Courses,02/12/2014,7016214-1,833.17,2113514 - Marlborough Training and Consultancy Ltd,MANAGEMENT DEVELOPMENT
Tendring DC,http://statistics.data.gov.uk/id/local-authority-district/22UN,Corporate Services,1800 - Qualification and Other Training,1700 - Training - Courses,16/12/2014,7016461-1,4500,2114504 - Middlesex University,SPONSOR TUITION FEE
Tendring DC,http://statistics.data.gov.uk/id/local-authority-district/22UN,Corporate Services,1815 - Personnel and Human Resources Issues,1610 - Counselling,16/12/2014,7016465-1,160,REDACTED PERSONAL DATA,REDACTED PERSONAL DATA
Tendring DC,http://statistics.data.gov.uk/id/local-authority-district/22UN,Corporate Services,1930 - Asset Management Service Unit,4459 - External Legal Advice,22/12/2014,7016756-1,2000,REDACTED PERSONAL DATA,REDACTED PERSONAL DATA
Tendring DC,http://statistics.data.gov.uk/id/local-authority-district/22UN,Corporate Services,7240 - Electoral Registration Expenses,5164 - Project Expenses,02/12/2014,1061895-1,72.08,REDACTED PERSONAL DATA,REDACTED PERSONAL DATA
Tendring DC,http://statistics.data.gov.uk/id/local-authority-district/22UN,Corporate Services,1330 - Human Resources Service Unit,5500 - Miscellaneous Expenses,16/12/2014,7016541-1,200,2114545 - North Yorkshire County Council,GREEN CAR SALARY SACRIFICE
Tendring DC,http://statistics.data.gov.uk/id/local-authority-district/22UN,Corporate Services,7100 - Community Health/Safety,5164 - Project Expenses,22/12/2014,1062152-1,279.36,2114528 - Only Cowards Carry,EXPENSES FOR CRUCIAL CREW
Tendring DC,http://statistics.data.gov.uk/id/local-authority-district/22UN,Corporate Services,1815 - Personnel and Human Resources Issues,1709 - Training - Management Development Courses,16/12/2014,7016542-1,1210,2104612 - OPP Limited,MBTI STEP II 2-DAY QUALIFYING
Tendring DC,http://statistics.data.gov.uk/id/local-authority-district/22UN,Corporate Services,1320 - Print Unit Service Unit,4302 - External Print Unit Expenses,02/12/2014,2117089-1,786,2111844 - Optimumprint,job 0455
Tendring DC,http://statistics.data.gov.uk/id/local-authority-district/22UN,Corporate Services,1320 - Print Unit Service Unit,4302 - External Print Unit Expenses,09/12/2014,2117209-1,75,2111844 - Optimumprint,job 477/479
Tendring DC,http://statistics.data.gov.uk/id/local-authority-district/22UN,Corporate Services,1320 - Print Unit Service Unit,4302 - External Print Unit Expenses,09/12/2014,2117210-1,50,2111844 - Optimumprint,job 472
Tendring DC,http://statistics.data.gov.uk/id/local-authority-district/22UN,Corporate Services,6460 - Career Track,4688 - Career Track Exam Fees,16/12/2014,2117387-1,168,REDACTED PERSONAL DATA,REDACTED PERSONAL DATA
Tendring DC,http://statistics.data.gov.uk/id/local-authority-district/22UN,Corporate Services,6460 - Career Track,4688 - Career Track Exam Fees,16/12/2014,2117388-1,14.5,REDACTED PERSONAL DATA,REDACTED PERSONAL DATA
Tendring DC,http://statistics.data.gov.uk/id/local-authority-district/22UN,Corporate Services,6460 - Career Track,4688 - Career Track Exam Fees,22/12/2014,7016594-1,14.5,REDACTED PERSONAL DATA,REDACTED PERSONAL DATA
Tendring DC,http://statistics.data.gov.uk/id/local-authority-district/22UN,Corporate Services,6460 - Career Track,4688 - Career Track Exam Fees,22/12/2014,7016747-1,101.5,2100425 - Pearson,MULTI
Tendring DC,http://statistics.data.gov.uk/id/local-authority-district/22UN,Corporate Services,6460 - Career Track,4688 - Career Track Exam Fees,22/12/2014,7016748-1,14.5,REDACTED PERSONAL DATA,REDACTED PERSONAL DATA
Tendring DC,http://statistics.data.gov.uk/id/local-authority-district/22UN,Corporate Services,1815 - Personnel and Human Resources Issues,1500 - Advertising - Recruitment,02/12/2014,7016254-1,915,2113070 - Penna plc,RECRUITMENT ADVERT
Tendring DC,http://statistics.data.gov.uk/id/local-authority-district/22UN,Corporate Services,1815 - Personnel and Human Resources Issues,1500 - Advertising - Recruitment,02/12/2014,7016255-1,1845,2113070 - Penna plc,RECRUITMENT ADVERT
Tendring DC,http://statistics.data.gov.uk/id/local-authority-district/22UN,Corporate Services,1760 - IT Direct Service Costs,4753 - Computer - Application Software,22/12/2014,2117443-1,34982.43,2101038 - Phoenix Software Limited,phoenis software various 2014
Tendring DC,http://statistics.data.gov.uk/id/local-authority-district/22UN,Corporate Services,1661 - Other Apportionable Overheads - Corporate Support,4700 - Postage,22/12/2014,1062147-1,5050,2104077 - Pitney Bowes Ltd,RE-CREDIT FRANKING MACHINE CLACTON PBP A/C10113561
Tendring DC,http://statistics.data.gov.uk/id/local-authority-district/22UN,Corporate Services,7240 - Electoral Registration Expenses,4700 - Postage,02/12/2014,2117171-1,113.12,2103246 - Print.uk.com,ier fulfilment postage
Tendring DC,http://statistics.data.gov.uk/id/local-authority-district/22UN,Corporate Services,7240 - Electoral Registration Expenses,4700 - Postage,02/12/2014,2117172-1,153,2103246 - Print.uk.com,ier fulfilment 2014
Tendring DC,http://statistics.data.gov.uk/id/local-authority-district/22UN,Corporate Services,1760 - IT Direct Service Costs,4753 - Computer - Application Software,02/12/2014,7016241-1,1403.75,2106860 - ProcessFlows UK Ltd,TMS UL SUPP AND MAIN BILLING PERIOD
Tendring DC,http://statistics.data.gov.uk/id/local-authority-district/22UN,Corporate Services,1661 - Other Apportionable Overheads - Corporate Support,4700 - Postage,02/12/2014,2117170-1,899.7,2114552 - Purchase Power,ink catridges - franking
Tendring DC,http://statistics.data.gov.uk/id/local-authority-district/22UN,Corporate Services,9900 - General Fund Balance Sheet,B886 - Rail Warrants Allocation Holding Account,05/12/2014,7800705-0,2792.1,2101174 - R S P Ltd,Rail Warrants
Tendring DC,http://statistics.data.gov.uk/id/local-authority-district/22UN,Corporate Services,6540 - Members Allowance,4840 - Members Allowances - General,22/12/2014,2117441-1,600,2114568 - Roger Butterfield,member training
Tendring DC,http://statistics.data.gov.uk/id/local-authority-district/22UN,Corporate Services,7220 - Election Expenses,4486 - Election Expenses,02/12/2014,2117169-1,713.53,2101139 - Royal Mail Group Ltd,electoral posting
Tendring DC,http://statistics.data.gov.uk/id/local-authority-district/22UN,Corporate Services,7240 - Electoral Registration Expenses,4700 - Postage,22/12/2014,7016617-1,52.63,2101139 - Royal Mail Group Ltd,ELECTORAL POSTAGE
Tendring DC,http://statistics.data.gov.uk/id/local-authority-district/22UN,Corporate Services,7100 - Community Health/Safety,5164 - Project Expenses,09/12/2014,7016397-1,204.22,2101807 - Royal National Lifeboat Institution,EXPENSES FOR CRUCIAL CREW
Tendring DC,http://statistics.data.gov.uk/id/local-authority-district/22UN,Corporate Services,1100 - Corporate Director (Corporate Services) and Admin Service Unit,6325 - Additional Services,09/12/2014,2117270-1,3800,2103677 - SecureData Europe Ltd,digital assurance consultancy onsite expenses allow
Tendring DC,http://statistics.data.gov.uk/id/local-authority-district/22UN,Corporate Services,1300 - Legal Services Service Unit,4503 - Counsels Fees,02/12/2014,7016249-1,18747.38,2105530 - Shoosmiths,APPEAL - ST OSYTH
Tendring DC,http://statistics.data.gov.uk/id/local-authority-district/22UN,Corporate Services,1815 - Personnel and Human Resources Issues,1709 - Training - Management Development Courses,22/12/2014,7016580-1,50,2114585 - Snappy Snaps,5 PERSONALISED MUGS
Tendring DC,http://statistics.data.gov.uk/id/local-authority-district/22UN,Corporate Services,7100 - Community Health/Safety,5164 - Project Expenses,16/12/2014,7016472-1,74,2107338 - Swan Taxis,TAXI FOR BORDERLINE PROJECT
Tendring DC,http://statistics.data.gov.uk/id/local-authority-district/22UN,Corporate Services,7100 - Community Health/Safety,5164 - Project Expenses,22/12/2014,7016591-1,132,2102088 - Tendring Community Transport,TRANSPORT TO DANBURY BORDERLINE PROJECT
Tendring DC,http://statistics.data.gov.uk/id/local-authority-district/22UN,Corporate Services,6560 - Other Democratic Costs,4110 - General Provisions,02/12/2014,1061875-0,13.87,2114530 - Tendring District Council,Chamber Kettle
Tendring DC,http://statistics.data.gov.uk/id/local-authority-district/22UN,Corporate Services,6560 - Other Democratic Costs,4110 - General Provisions,02/12/2014,1061875-1,1.7,2114530 - Tendring District Council,Council Meeting
Tendring DC,http://statistics.data.gov.uk/id/local-authority-district/22UN,Corporate Services,7220 - Election Expenses,4486 - Election Expenses,02/12/2014,1061875-10,12.06,2114530 - Tendring District Council,Election count
Tendring DC,http://statistics.data.gov.uk/id/local-authority-district/22UN,Corporate Services,1661 - Other Apportionable Overheads - Corporate Support,4700 - Postage,02/12/2014,1061875-11,1.53,2114530 - Tendring District Council,Postage Refund
Tendring DC,http://statistics.data.gov.uk/id/local-authority-district/22UN,Corporate Services,6560 - Other Democratic Costs,4110 - General Provisions,02/12/2014,1061875-12,2.54,2114530 - Tendring District Council,Council Meeting
Tendring DC,http://statistics.data.gov.uk/id/local-authority-district/22UN,Corporate Services,6560 - Other Democratic Costs,4110 - General Provisions,02/12/2014,1061875-13,2.2,2114530 - Tendring District Council,Council Refreshments
Tendring DC,http://statistics.data.gov.uk/id/local-authority-district/22UN,Corporate Services,6560 - Other Democratic Costs,4110 - General Provisions,02/12/2014,1061875-14,2.65,2114530 - Tendring District Council,Council Refreshments
Tendring DC,http://statistics.data.gov.uk/id/local-authority-district/22UN,Corporate Services,7240 - Electoral Registration Expenses,4300 - Printing & Stationery,02/12/2014,1061875-15,1.53,2114530 - Tendring District Council,Refund of Postage
Tendring DC,http://statistics.data.gov.uk/id/local-authority-district/22UN,Corporate Services,1661 - Other Apportionable Overheads - Corporate Support,4700 - Postage,02/12/2014,1061875-16,3.06,2114530 - Tendring District Council,Postage Refund
Tendring DC,http://statistics.data.gov.uk/id/local-authority-district/22UN,Corporate Services,7240 - Electoral Registration Expenses,4700 - Postage,02/12/2014,1061875-17,1.72,2114530 - Tendring District Council,Recorded Delivery
Tendring DC,http://statistics.data.gov.uk/id/local-authority-district/22UN,Corporate Services,6560 - Other Democratic Costs,4110 - General Provisions,02/12/2014,1061875-18,3.05,2114530 - Tendring District Council,Council Refreshments
Tendring DC,http://statistics.data.gov.uk/id/local-authority-district/22UN,Corporate Services,6560 - Other Democratic Costs,4110 - General Provisions,02/12/2014,1061875-2,24.95,2114530 - Tendring District Council,Water Glasses/Jugs
Tendring DC,http://statistics.data.gov.uk/id/local-authority-district/22UN,Corporate Services,6560 - Other Democratic Costs,4110 - General Provisions,02/12/2014,1061875-3,8.29,2114530 - Tendring District Council,Washing up/Scourer
Tendring DC,http://statistics.data.gov.uk/id/local-authority-district/22UN,Corporate Services,6560 - Other Democratic Costs,4110 - General Provisions,02/12/2014,1061875-4,23.65,2114530 - Tendring District Council,Washing up/Scourer
Tendring DC,http://statistics.data.gov.uk/id/local-authority-district/22UN,Corporate Services,6560 - Other Democratic Costs,4110 - General Provisions,02/12/2014,1061875-5,1.99,2114530 - Tendring District Council,Refreshments
Tendring DC,http://statistics.data.gov.uk/id/local-authority-district/22UN,Corporate Services,6560 - Other Democratic Costs,4110 - General Provisions,02/12/2014,1061875-6,13.96,2114530 - Tendring District Council,Glasses/Spoons
Tendring DC,http://statistics.data.gov.uk/id/local-authority-district/22UN,Corporate Services,6560 - Other Democratic Costs,4110 - General Provisions,02/12/2014,1061875-7,2.89,2114530 - Tendring District Council,Refreshments
Tendring DC,http://statistics.data.gov.uk/id/local-authority-district/22UN,Corporate Services,7220 - Election Expenses,4486 - Election Expenses,02/12/2014,1061875-8,3.33,2114530 - Tendring District Council,Candles
Tendring DC,http://statistics.data.gov.uk/id/local-authority-district/22UN,Corporate Services,7220 - Election Expenses,4486 - Election Expenses,02/12/2014,1061875-9,2.47,2114530 - Tendring District Council,Election count
Tendring DC,http://statistics.data.gov.uk/id/local-authority-district/22UN,Corporate Services,7100 - Community Health/Safety,5164 - Project Expenses,02/12/2014,1061927-0,2.48,2106628 - Tendring District Council,Refreshments
Tendring DC,http://statistics.data.gov.uk/id/local-authority-district/22UN,Corporate Services,7100 - Community Health/Safety,5164 - Project Expenses,02/12/2014,1061927-1,9.8,2106628 - Tendring District Council,Refreshments
Tendring DC,http://statistics.data.gov.uk/id/local-authority-district/22UN,Corporate Services,1760 - IT Direct Service Costs,6325 - Additional Services,02/12/2014,1061927-10,16.67,2106628 - Tendring District Council,USB Data Cables
Tendring DC,http://statistics.data.gov.uk/id/local-authority-district/22UN,Corporate Services,1815 - Personnel and Human Resources Issues,1500 - Advertising - Recruitment,02/12/2014,1061927-11,15,2106628 - Tendring District Council,Refreshments
Tendring DC,http://statistics.data.gov.uk/id/local-authority-district/22UN,Corporate Services,1100 - Corporate Director (Corporate Services) and Admin Service Unit,5500 - Miscellaneous Expenses,02/12/2014,1061927-12,24.99,2106628 - Tendring District Council,New Kettle
Tendring DC,http://statistics.data.gov.uk/id/local-authority-district/22UN,Corporate Services,1100 - Corporate Director (Corporate Services) and Admin Service Unit,5500 - Miscellaneous Expenses,02/12/2014,1061927-13,6.8,2106628 - Tendring District Council,Refreshments
Tendring DC,http://statistics.data.gov.uk/id/local-authority-district/22UN,Corporate Services,1100 - Corporate Director (Corporate Services) and Admin Service Unit,5500 - Miscellaneous Expenses,02/12/2014,1061927-14,2.75,2106628 - Tendring District Council,Refreshments
Tendring DC,http://statistics.data.gov.uk/id/local-authority-district/22UN,Corporate Services,1100 - Corporate Director (Corporate Services) and Admin Service Unit,5500 - Miscellaneous Expenses,02/12/2014,1061927-15,9.44,2106628 - Tendring District Council,Refreshments
Tendring DC,http://statistics.data.gov.uk/id/local-authority-district/22UN,Corporate Services,1100 - Corporate Director (Corporate Services) and Admin Service Unit,4300 - Printing & Stationery,02/12/2014,1061927-16,1,2106628 - Tendring District Council,Batteries
Tendring DC,http://statistics.data.gov.uk/id/local-authority-district/22UN,Corporate Services,1100 - Corporate Director (Corporate Services) and Admin Service Unit,5500 - Miscellaneous Expenses,02/12/2014,1061927-17,1,2106628 - Tendring District Council,Milk
Tendring DC,http://statistics.data.gov.uk/id/local-authority-district/22UN,Corporate Services,1100 - Corporate Director (Corporate Services) and Admin Service Unit,4300 - Printing & Stationery,02/12/2014,1061927-2,6.37,2106628 - Tendring District Council,Calenders (Finance)
Tendring DC,http://statistics.data.gov.uk/id/local-authority-district/22UN,Corporate Services,6460 - Career Track,4753 - Computer - Application Software,02/12/2014,1061927-3,8.3,2106628 - Tendring District Council,Printer Cartridges
Tendring DC,http://statistics.data.gov.uk/id/local-authority-district/22UN,Corporate Services,6460 - Career Track,1704 - Training - Travelling,02/12/2014,1061927-4,3.3,2106628 - Tendring District Council,Train tickets
Tendring DC,http://statistics.data.gov.uk/id/local-authority-district/22UN,Corporate Services,1815 - Personnel and Human Resources Issues,1709 - Training - Management Development Courses,02/12/2014,1061927-5,7.12,2106628 - Tendring District Council,Refreshments
Tendring DC,http://statistics.data.gov.uk/id/local-authority-district/22UN,Corporate Services,1620 - IT Section Service Unit,4355 - Books & Periodicals,02/12/2014,1061927-6,2.52,2106628 - Tendring District Council,Certificate Frame
Tendring DC,http://statistics.data.gov.uk/id/local-authority-district/22UN,Corporate Services,6460 - Career Track,4355 - Books & Periodicals,02/12/2014,1061927-7,14.77,2106628 - Tendring District Council,Card for Certificatea
Tendring DC,http://statistics.data.gov.uk/id/local-authority-district/22UN,Corporate Services,1760 - IT Direct Service Costs,4715 - Data Communication Charge,02/12/2014,1061927-8,1.65,2106628 - Tendring District Council,Bags for Cables
Tendring DC,http://statistics.data.gov.uk/id/local-authority-district/22UN,Corporate Services,1760 - IT Direct Service Costs,6325 - Additional Services,02/12/2014,1061927-9,7.08,2106628 - Tendring District Council,Calenders (IT)
Tendring DC,http://statistics.data.gov.uk/id/local-authority-district/22UN,Corporate Services,9900 - General Fund Balance Sheet,B658 - Cash Floats,22/12/2014,1062076-1,10,REDACTED COMMERCIAL CONFIDENTIALITY,REDACTED COMMERCIAL CONFIDENTIALITY
Tendring DC,http://statistics.data.gov.uk/id/local-authority-district/22UN,Corporate Services,6460 - Career Track,4688 - Career Track Exam Fees,02/12/2014,1061901-1,550,REDACTED PERSONAL DATA,REDACTED PERSONAL DATA
Tendring DC,http://statistics.data.gov.uk/id/local-authority-district/22UN,Corporate Services,6040 - Miscellaneous Seafront Activities,4040 - Equipment & Tools,02/12/2014,1061902-1,73.25,2101421 - The Harwich Society,50% CONT FOR FIRE PREVENTION EQUIPMENT-TREADWHEEL CRANE
Tendring DC,http://statistics.data.gov.uk/id/local-authority-district/22UN,Corporate Services,1100 - Corporate Director (Corporate Services) and Admin Service Unit,4355 - Books & Periodicals,22/12/2014,7016581-1,158,2111580 - Thomson Reuters,SCHOLFIELDS ELECTION LAW 20
Tendring DC,http://statistics.data.gov.uk/id/local-authority-district/22UN,Corporate Services,1100 - Corporate Director (Corporate Services) and Admin Service Unit,4355 - Books & Periodicals,22/12/2014,7016581-2,158,2111580 - Thomson Reuters,SCHOLFIELDS ELECTION LAW 20
Tendring DC,http://statistics.data.gov.uk/id/local-authority-district/22UN,Corporate Services,1180 - Benefit Fraud Investigation Service Unit,5500 - Miscellaneous Expenses,09/12/2014,1061996-1,35.31,2101679 - TNT UK Ltd,TNT
Tendring DC,http://statistics.data.gov.uk/id/local-authority-district/22UN,Corporate Services,1760 - IT Direct Service Costs,6320 - IT Services Agreements Payment,16/12/2014,1062065-1,47898.74,2108077 - Trinity,MAIN CONTRACT PAYMENT DEC 14
Tendring DC,http://statistics.data.gov.uk/id/local-authority-district/22UN,Corporate Services,1760 - IT Direct Service Costs,4715 - Data Communication Charge,22/12/2014,7016616-1,282,2108077 - Trinity,TRINITY CS101462/3
Tendring DC,http://statistics.data.gov.uk/id/local-authority-district/22UN,Corporate Services,1760 - IT Direct Service Costs,4715 - Data Communication Charge,22/12/2014,7016616-2,1497.94,2108077 - Trinity,TRINITY CS101462/3
Tendring DC,http://statistics.data.gov.uk/id/local-authority-district/22UN,Corporate Services,9900 - General Fund Balance Sheet,B339 - Lease Car - TUSKER scheme,16/12/2014,1062071-1,80.87,2114054 - Tuskerdirect Limited,LEASE PAYMENT DEC 14
Tendring DC,http://statistics.data.gov.uk/id/local-authority-district/22UN,Corporate Services,9900 - General Fund Balance Sheet,B339 - Lease Car - TUSKER scheme,16/12/2014,1062071-10,116.99,2114054 - Tuskerdirect Limited,LEASE PAYMENT DEC 14
Tendring DC,http://statistics.data.gov.uk/id/local-authority-district/22UN,Corporate Services,9900 - General Fund Balance Sheet,B339 - Lease Car - TUSKER scheme,16/12/2014,1062071-11,37.4,2114054 - Tuskerdirect Limited,LEASE PAYMENT DEC 14
Tendring DC,http://statistics.data.gov.uk/id/local-authority-district/22UN,Corporate Services,9900 - General Fund Balance Sheet,B339 - Lease Car - TUSKER scheme,16/12/2014,1062071-12,64.41,2114054 - Tuskerdirect Limited,LEASE PAYMENT DEC 14
Tendring DC,http://statistics.data.gov.uk/id/local-authority-district/22UN,Corporate Services,9900 - General Fund Balance Sheet,B339 - Lease Car - TUSKER scheme,16/12/2014,1062071-13,65.65,2114054 - Tuskerdirect Limited,LEASE PAYMENT DEC 14
Tendring DC,http://statistics.data.gov.uk/id/local-authority-district/22UN,Corporate Services,9900 - General Fund Balance Sheet,B339 - Lease Car - TUSKER scheme,16/12/2014,1062071-14,78.79,2114054 - Tuskerdirect Limited,LEASE PAYMENT DEC 14
Tendring DC,http://statistics.data.gov.uk/id/local-authority-district/22UN,Corporate Services,9900 - General Fund Balance Sheet,B339 - Lease Car - TUSKER scheme,16/12/2014,1062071-15,37.4,2114054 - Tuskerdirect Limited,LEASE PAYMENT DEC 14
Tendring DC,http://statistics.data.gov.uk/id/local-authority-district/22UN,Corporate Services,9900 - General Fund Balance Sheet,B339 - Lease Car - TUSKER scheme,16/12/2014,1062071-16,45.42,2114054 - Tuskerdirect Limited,LEASE PAYMENT DEC 14
Tendring DC,http://statistics.data.gov.uk/id/local-authority-district/22UN,Corporate Services,9900 - General Fund Balance Sheet,B339 - Lease Car - TUSKER scheme,16/12/2014,1062071-2,97.06,2114054 - Tuskerdirect Limited,LEASE PAYMENT DEC 14
Tendring DC,http://statistics.data.gov.uk/id/local-authority-district/22UN,Corporate Services,9900 - General Fund Balance Sheet,B339 - Lease Car - TUSKER scheme,16/12/2014,1062071-3,42.85,2114054 - Tuskerdirect Limited,LEASE PAYMENT DEC 14
Tendring DC,http://statistics.data.gov.uk/id/local-authority-district/22UN,Corporate Services,9900 - General Fund Balance Sheet,B339 - Lease Car - TUSKER scheme,16/12/2014,1062071-4,63.42,2114054 - Tuskerdirect Limited,LEASE PAYMENT DEC 14
Tendring DC,http://statistics.data.gov.uk/id/local-authority-district/22UN,Corporate Services,9900 - General Fund Balance Sheet,B339 - Lease Car - TUSKER scheme,16/12/2014,1062071-5,66.67,2114054 - Tuskerdirect Limited,LEASE PAYMENT DEC 14
Tendring DC,http://statistics.data.gov.uk/id/local-authority-district/22UN,Corporate Services,9900 - General Fund Balance Sheet,B339 - Lease Car - TUSKER scheme,16/12/2014,1062071-6,80.02,2114054 - Tuskerdirect Limited,LEASE PAYMENT DEC 14
Tendring DC,http://statistics.data.gov.uk/id/local-authority-district/22UN,Corporate Services,9900 - General Fund Balance Sheet,B339 - Lease Car - TUSKER scheme,16/12/2014,1062071-7,32.59,2114054 - Tuskerdirect Limited,LEASE PAYMENT DEC 14
Tendring DC,http://statistics.data.gov.uk/id/local-authority-district/22UN,Corporate Services,9900 - General Fund Balance Sheet,B339 - Lease Car - TUSKER scheme,16/12/2014,1062071-8,52.01,2114054 - Tuskerdirect Limited,LEASE PAYMENT DEC 14
Tendring DC,http://statistics.data.gov.uk/id/local-authority-district/22UN,Corporate Services,9900 - General Fund Balance Sheet,B339 - Lease Car - TUSKER scheme,16/12/2014,1062071-9,97.48,2114054 - Tuskerdirect Limited,LEASE PAYMENT DEC 14
Tendring DC,http://statistics.data.gov.uk/id/local-authority-district/22UN,Corporate Services,1815 - Personnel and Human Resources Issues,1711 - Training - e-Learning,02/12/2014,7016213-1,3500,2112451 - VineHR Ltd,VINE PLATFORM
Tendring DC,http://statistics.data.gov.uk/id/local-authority-district/22UN,Corporate Services,7100 - Community Health/Safety,5164 - Project Expenses,09/12/2014,7016423-1,100,2114583 - Walton Primary School,CONTRIBUTION TO VENUE FOR BORDERLINE PROJECT
Tendring DC,http://statistics.data.gov.uk/id/local-authority-district/22UN,Corporate Services,1760 - IT Direct Service Costs,4350 - Photocopier Hire,02/12/2014,7016201-1,178.13,2101517 - Xerox (UK) Ltd,HOUSING XEROX 2014
Tendring DC,http://statistics.data.gov.uk/id/local-authority-district/22UN,Corporate Services,1760 - IT Direct Service Costs,4350 - Photocopier Hire,02/12/2014,7016202-1,367.67,2101517 - Xerox (UK) Ltd,PLAN ADMIN XEROX 2014
Tendring DC,http://statistics.data.gov.uk/id/local-authority-district/22UN,Corporate Services,1760 - IT Direct Service Costs,4350 - Photocopier Hire,02/12/2014,7016203-1,28.29,2101517 - Xerox (UK) Ltd,LIC XEROX 2014
Tendring DC,http://statistics.data.gov.uk/id/local-authority-district/22UN,Corporate Services,1760 - IT Direct Service Costs,4350 - Photocopier Hire,02/12/2014,7016204-1,432.01,2101517 - Xerox (UK) Ltd,DEM SUS XEROX 2014
Tendring DC,http://statistics.data.gov.uk/id/local-authority-district/22UN,Corporate Services,1760 - IT Direct Service Costs,4350 - Photocopier Hire,02/12/2014,7016205-1,589.47,2101517 - Xerox (UK) Ltd,BUILD SVS XEROX 2014
Tendring DC,http://statistics.data.gov.uk/id/local-authority-district/22UN,Corporate Services,1760 - IT Direct Service Costs,4350 - Photocopier Hire,02/12/2014,7016206-1,175.15,2101517 - Xerox (UK) Ltd,ACCOUNTANCY XEROX 2014
Tendring DC,http://statistics.data.gov.uk/id/local-authority-district/22UN,Corporate Services,1760 - IT Direct Service Costs,4350 - Photocopier Hire,02/12/2014,7016207-1,87.71,2101517 - Xerox (UK) Ltd,CH EXEC XEROX 2014
Tendring DC,http://statistics.data.gov.uk/id/local-authority-district/22UN,Corporate Services,1760 - IT Direct Service Costs,4350 - Photocopier Hire,02/12/2014,7016208-1,513.29,2101517 - Xerox (UK) Ltd,HR XEROX 2014
Tendring DC,http://statistics.data.gov.uk/id/local-authority-district/22UN,Corporate Services,1760 - IT Direct Service Costs,4350 - Photocopier Hire,02/12/2014,7016209-1,249.32,2101517 - Xerox (UK) Ltd,HORT XEROX 2014
Tendring DC,http://statistics.data.gov.uk/id/local-authority-district/22UN,Corporate Services,1760 - IT Direct Service Costs,4350 - Photocopier Hire,02/12/2014,7016210-1,85.52,2101517 - Xerox (UK) Ltd,CREM XEROX 2014
Tendring DC,http://statistics.data.gov.uk/id/local-authority-district/22UN,Corporate Services,1760 - IT Direct Service Costs,4350 - Photocopier Hire,02/12/2014,7016211-1,172.16,2101517 - Xerox (UK) Ltd,1ST FLOOR PLANNING XEROX 2014
Tendring DC,http://statistics.data.gov.uk/id/local-authority-district/22UN,Corporate Services,1760 - IT Direct Service Costs,4350 - Photocopier Hire,02/12/2014,7016212-1,157.8,2101517 - Xerox (UK) Ltd,XEROX CLC 2014
Tendring DC,http://statistics.data.gov.uk/id/local-authority-district/22UN,Corporate Services,1760 - IT Direct Service Costs,4350 - Photocopier Hire,02/12/2014,7016242-1,131.53,2101517 - Xerox (UK) Ltd,XEROX FFI 2014
Tendring DC,http://statistics.data.gov.uk/id/local-authority-district/22UN,Corporate Services,1760 - IT Direct Service Costs,4350 - Photocopier Hire,02/12/2014,7016243-1,578,2101517 - Xerox (UK) Ltd,XEROX GFI 2014
Tendring DC,http://statistics.data.gov.uk/id/local-authority-district/22UN,Corporate Services,1760 - IT Direct Service Costs,4350 - Photocopier Hire,02/12/2014,7016244-1,465.73,2101517 - Xerox (UK) Ltd,PIER GF2 XEROX 2014
Tendring DC,http://statistics.data.gov.uk/id/local-authority-district/22UN,Corporate Services,1760 - IT Direct Service Costs,4350 - Photocopier Hire,02/12/2014,7016245-1,209.34,2101517 - Xerox (UK) Ltd,CARELINE XEROX 2014
Tendring DC,http://statistics.data.gov.uk/id/local-authority-district/22UN,Corporate Services,1760 - IT Direct Service Costs,4350 - Photocopier Hire,01/12/2014,7016592-1,311.07,2101517 - Xerox (UK) Ltd,XEROX (TOWN HALL MANAGEMENT BOARD)
Tendring DC,http://statistics.data.gov.uk/id/local-authority-district/22UN,Corporate Services,1760 - IT Direct Service Costs,4350 - Photocopier Hire,22/12/2014,7016593-1,280,2101517 - Xerox (UK) Ltd,XEROX (WEELEY LICENSING SECTION)
Tendring DC,http://statistics.data.gov.uk/id/local-authority-district/22UN,Corporate Services,1760 - IT Direct Service Costs,4350 - Photocopier Hire,02/12/2014,7016246-1,191.63,2101527 - Xerox Finance Ltd,REGEN XEROX 2014
Tendring DC,http://statistics.data.gov.uk/id/local-authority-district/22UN,Corporate Services,1760 - IT Direct Service Costs,4350 - Photocopier Hire,16/12/2014,7016468-1,311.07,2101527 - Xerox Finance Ltd,PLANNING XEROX
Tendring DC,http://statistics.data.gov.uk/id/local-authority-district/22UN,Corporate Services,1100 - Corporate Director (Corporate Services) and Admin Service Unit,4300 - Printing & Stationery,16/12/2014,7016466-1,15.68,2107546 - XMA Limited,XMA ORDER 03.12.14
Tendring DC,http://statistics.data.gov.uk/id/local-authority-district/22UN,Corporate Services,9900 - General Fund Balance Sheet,B382 - Rechargeable Works - Other,02/12/2014,7016219-1,1000,REDACTED PERSONAL DATA,REDACTED PERSONAL DATA
Tendring DC,http://statistics.data.gov.uk/id/local-authority-district/22UN,Life Opportunities,6160 - Princes Theatre,4597 - Hired Services - Payments to Contractors,16/12/2014,7016577-1,50,2100091 - A Warrender,PIANO TUNING 1.12.14
Tendring DC,http://statistics.data.gov.uk/id/local-authority-district/22UN,Life Opportunities,5480 - HRA - Repair & Maintenance,2073 - Smoke Alarm Service/Testing,09/12/2014,1062003-1,236.52,2111360 - Aaron Services Ltd,GAS SERVICE & REPAIR-NORTH AREA 14/15
Tendring DC,http://statistics.data.gov.uk/id/local-authority-district/22UN,Life Opportunities,5480 - HRA - Repair & Maintenance,2075 - Gas Service Contract Servicing/Testing (Domestic I,09/12/2014,1062003-2,3339.38,2111360 - Aaron Services Ltd,GAS SERVICE & REPAIR-NORTH AREA 14/15
Tendring DC,http://statistics.data.gov.uk/id/local-authority-district/22UN,Life Opportunities,5480 - HRA - Repair & Maintenance,2076 - Gas Service Contract Other Refurbishment/Repairs (,09/12/2014,1062003-3,14657.8,2111360 - Aaron Services Ltd,GAS SERVICE & REPAIR-NORTH AREA 14/15
Tendring DC,http://statistics.data.gov.uk/id/local-authority-district/22UN,Life Opportunities,6160 - Princes Theatre,3302 - Car/Cycle Allowances - Officers,22/12/2014,1062075-1,60,REDACTED PERSONAL DATA,REDACTED PERSONAL DATA
Tendring DC,http://statistics.data.gov.uk/id/local-authority-district/22UN,Life Opportunities,6160 - Princes Theatre,3302 - Car/Cycle Allowances - Officers,09/12/2014,7016424-1,60,REDACTED PERSONAL DATA,REDACTED PERSONAL DATA
Tendring DC,http://statistics.data.gov.uk/id/local-authority-district/22UN,Life Opportunities,6160 - Princes Theatre,2100 - Building Repairs,02/12/2014,2117129-1,2210,2101609 - Adcock Refrigeration & Air Conditioning Ltd,cellar cooler system
Tendring DC,http://statistics.data.gov.uk/id/local-authority-district/22UN,Life Opportunities,1880 - Office Accommodation Expenses,2100 - Building Repairs,16/12/2014,2117352-1,153.5,2101609 - Adcock Refrigeration & Air Conditioning Ltd,works carried out weeley
Tendring DC,http://statistics.data.gov.uk/id/local-authority-district/22UN,Life Opportunities,7620 - Air Show,4628 - Hired Services - Air Displays,16/12/2014,2117281-1,2852.08,2103552 - Aerosuperbatics Ltd,breitling wingwalkers airshow 2014
Tendring DC,http://statistics.data.gov.uk/id/local-authority-district/22UN,Life Opportunities,1880 - Office Accommodation Expenses,2520 - Sewerage & Environmental Charges,09/12/2014,1061937-1,-8.8,2112518 - Affinity Water Ltd (East Region),CLAYHALL WATER NOV-MARCH 15 CREDIT
Tendring DC,http://statistics.data.gov.uk/id/local-authority-district/22UN,Life Opportunities,1880 - Office Accommodation Expenses,2500 - Water Services - Metered,09/12/2014,1061937-2,-54.89,2112518 - Affinity Water Ltd (East Region),CLAYHALL WATER NOV-MARCH 15 CREDIT
Tendring DC,http://statistics.data.gov.uk/id/local-authority-district/22UN,Life Opportunities,8520 - Frinton & Walton Swimming Pool,2510 - Water Services - Unmetered,22/12/2014,1062144-1,910.13,2112518 - Affinity Water Ltd (East Region),FWSP-WATER
Tendring DC,http://statistics.data.gov.uk/id/local-authority-district/22UN,Life Opportunities,8540 - Leisure Centre Clacton,2510 - Water Services - Unmetered,22/12/2014,1062145-1,768.97,2112518 - Affinity Water Ltd (East Region),NOVEMBER
Tendring DC,http://statistics.data.gov.uk/id/local-authority-district/22UN,Life Opportunities,5360 - HRA - Sheltered Units,2500 - Water Services - Metered,02/12/2014,2117142-1,13.05,2112518 - Affinity Water Ltd (East Region),water 1/10/14 to 31/3/15
Tendring DC,http://statistics.data.gov.uk/id/local-authority-district/22UN,Life Opportunities,5360 - HRA - Sheltered Units,2500 - Water Services - Metered,02/12/2014,2117142-2,42.07,2112518 - Affinity Water Ltd (East Region),water 1/10/14 to 31/3/15
Tendring DC,http://statistics.data.gov.uk/id/local-authority-district/22UN,Life Opportunities,8510 - Dovercourt Swimming Pool & All Weather Facilities,2510 - Water Services - Unmetered,22/12/2014,7016636-1,397.35,2112518 - Affinity Water Ltd (East Region),WATER - DOVERCOURT POOL
Tendring DC,http://statistics.data.gov.uk/id/local-authority-district/22UN,Life Opportunities,5880 - Management Of Sport & Leisure Facilities,2100 - Building Repairs,02/12/2014,2117104-1,1003,2109999 - Air Conditioning Solutions (UK) Ltd,fwsp - acs
Tendring DC,http://statistics.data.gov.uk/id/local-authority-district/22UN,Life Opportunities,4965 - Local Housing Allowance,4754 - IT Consultancy,16/12/2014,7016550-1,1350,2106864 - Airey Consultancy Services Ltd,PAN ESSEX LCTS 2015
Tendring DC,http://statistics.data.gov.uk/id/local-authority-district/22UN,Life Opportunities,H715 - Measures To Combat Condensation,C200 - Main Contractor,09/12/2014,2117260-1,989.3,REDACTED PERSONAL DATA,REDACTED PERSONAL DATA
Tendring DC,http://statistics.data.gov.uk/id/local-authority-district/22UN,Life Opportunities,H715 - Measures To Combat Condensation,C200 - Main Contractor,09/12/2014,2117261-1,495.45,REDACTED PERSONAL DATA,REDACTED PERSONAL DATA
Tendring DC,http://statistics.data.gov.uk/id/local-authority-district/22UN,Life Opportunities,H715 - Measures To Combat Condensation,C200 - Main Contractor,09/12/2014,2117262-1,576.9,REDACTED PERSONAL DATA,REDACTED PERSONAL DATA
Tendring DC,http://statistics.data.gov.uk/id/local-authority-district/22UN,Life Opportunities,5480 - HRA - Repair & Maintenance,2017 - Mechanical Equipment /Extract Fans,02/12/2014,7016296-1,713.8,REDACTED PERSONAL DATA,REDACTED PERSONAL DATA
Tendring DC,http://statistics.data.gov.uk/id/local-authority-district/22UN,Life Opportunities,H715 - Measures To Combat Condensation,C200 - Main Contractor,09/12/2014,7016427-1,453.4,REDACTED PERSONAL DATA,REDACTED PERSONAL DATA
Tendring DC,http://statistics.data.gov.uk/id/local-authority-district/22UN,Life Opportunities,H715 - Measures To Combat Condensation,C200 - Main Contractor,22/12/2014,7016599-1,550.75,REDACTED PERSONAL DATA,REDACTED PERSONAL DATA
Tendring DC,http://statistics.data.gov.uk/id/local-authority-district/22UN,Life Opportunities,H715 - Measures To Combat Condensation,C200 - Main Contractor,22/12/2014,7016600-1,453.4,REDACTED PERSONAL DATA,REDACTED PERSONAL DATA
Tendring DC,http://statistics.data.gov.uk/id/local-authority-district/22UN,Life Opportunities,C021 - Cremator Replacement and Crematorium Car Park,C200 - Main Contractor,22/12/2014,2117421-1,1902.99,2113215 - Allman Woodcock Limited,weeley crem val 18
Tendring DC,http://statistics.data.gov.uk/id/local-authority-district/22UN,Life Opportunities,6740 - Careline,3060 - Running Costs - Diesel,09/12/2014,7016391-1,378.46,2101825 - Allstar Business Solutions Ltd,ALLSTAR NOV 14
Tendring DC,http://statistics.data.gov.uk/id/local-authority-district/22UN,Life Opportunities,5880 - Management Of Sport & Leisure Facilities,5166 - Marketing and Promotion,22/12/2014,7016629-1,71,2112986 - Allwag Promotions Ltd,GREEN LANYARDS
Tendring DC,http://statistics.data.gov.uk/id/local-authority-district/22UN,Life Opportunities,5880 - Management Of Sport & Leisure Facilities,5166 - Marketing and Promotion,22/12/2014,7016630-1,150.5,2112986 - Allwag Promotions Ltd,LANYARDS
Tendring DC,http://statistics.data.gov.uk/id/local-authority-district/22UN,Life Opportunities,5880 - Management Of Sport & Leisure Facilities,5166 - Marketing and Promotion,02/12/2014,2117113-1,207,2113123 - Amazing Promotional Merchanise Ltd,promo - balloons
Tendring DC,http://statistics.data.gov.uk/id/local-authority-district/22UN,Life Opportunities,5880 - Management Of Sport & Leisure Facilities,5166 - Marketing and Promotion,16/12/2014,2117304-1,87.5,2113123 - Amazing Promotional Merchanise Ltd,dsp helium
Tendring DC,http://statistics.data.gov.uk/id/local-authority-district/22UN,Life Opportunities,5820 - Harwich Sports Centre,4400 - Maintenance Under Service Agreements,16/12/2014,2117325-1,375,2105419 - Ambi-Rad Ltd,service of heating units
Tendring DC,http://statistics.data.gov.uk/id/local-authority-district/22UN,Life Opportunities,5860 - Manningtree Sports Centre,4597 - Hired Services - Payments to Contractors,09/12/2014,2117223-1,210,2113500 - Anglia Sports Management Limited,football coaching - 14 hrs
Tendring DC,http://statistics.data.gov.uk/id/local-authority-district/22UN,Life Opportunities,H730 - Energy & Water Conservation,C200 - Main Contractor,22/12/2014,7016665-1,275.15,REDACTED PERSONAL DATA,REDACTED PERSONAL DATA
Tendring DC,http://statistics.data.gov.uk/id/local-authority-district/22UN,Life Opportunities,8510 - Dovercourt Swimming Pool & All Weather Facilities,4000 - Furniture,02/12/2014,2117125-1,79.24,2100048 - Argos Business Solutions,dovercourt pool - stereo
Tendring DC,http://statistics.data.gov.uk/id/local-authority-district/22UN,Life Opportunities,1880 - Office Accommodation Expenses,2100 - Building Repairs,02/12/2014,7016335-1,15.99,2100048 - Argos Business Solutions,KETTLE
Tendring DC,http://statistics.data.gov.uk/id/local-authority-district/22UN,Life Opportunities,5140 - Homelessness,4683 - Other Homelessness Expenses,02/12/2014,7016336-1,70.72,2100048 - Argos Business Solutions,CAMERAS FOR HOUSING
Tendring DC,http://statistics.data.gov.uk/id/local-authority-district/22UN,Life Opportunities,6160 - Princes Theatre,4040 - Equipment & Tools,09/12/2014,7016386-1,279.99,2100048 - Argos Business Solutions,ACER X 1383 WH
Tendring DC,http://statistics.data.gov.uk/id/local-authority-district/22UN,Life Opportunities,1880 - Office Accommodation Expenses,2100 - Building Repairs,09/12/2014,7016387-1,59.24,2100048 - Argos Business Solutions,MICROWAVE WITH GRILL WEELEY
Tendring DC,http://statistics.data.gov.uk/id/local-authority-district/22UN,Life Opportunities,5880 - Management Of Sport & Leisure Facilities,5166 - Marketing and Promotion,22/12/2014,7016738-1,87.99,2100048 - Argos Business Solutions,HEART RATE MONITOR
Tendring DC,http://statistics.data.gov.uk/id/local-authority-district/22UN,Life Opportunities,8540 - Leisure Centre Clacton,2100 - Building Repairs,02/12/2014,1061883-1,20,2105132 - Arrow Bathrooms and Kitchens Ltd,REPLACE GYM FOUNTAIN TAP
Tendring DC,http://statistics.data.gov.uk/id/local-authority-district/22UN,Life Opportunities,8540 - Leisure Centre Clacton,2100 - Building Repairs,02/12/2014,1061883-2,62,2105132 - Arrow Bathrooms and Kitchens Ltd,REPLACE GYM FOUNTAIN TAP
Tendring DC,http://statistics.data.gov.uk/id/local-authority-district/22UN,Life Opportunities,H860 - Disabled Adaptations,C200 - Main Contractor,16/12/2014,1062021-1,100,REDACTED PERSONAL DATA,REDACTED PERSONAL DATA
Tendring DC,http://statistics.data.gov.uk/id/local-authority-district/22UN,Life Opportunities,H860 - Disabled Adaptations,C200 - Main Contractor,16/12/2014,1062021-2,458,REDACTED PERSONAL DATA,REDACTED PERSONAL DATA
Tendring DC,http://statistics.data.gov.uk/id/local-authority-district/22UN,Life Opportunities,5480 - HRA - Repair & Maintenance,2088 - Disabled Adaptations,16/12/2014,1062022-1,600,REDACTED PERSONAL DATA,REDACTED PERSONAL DATA
Tendring DC,http://statistics.data.gov.uk/id/local-authority-district/22UN,Life Opportunities,5480 - HRA - Repair & Maintenance,2088 - Disabled Adaptations,16/12/2014,1062022-2,1968,REDACTED PERSONAL DATA,REDACTED PERSONAL DATA
Tendring DC,http://statistics.data.gov.uk/id/local-authority-district/22UN,Life Opportunities,H860 - Disabled Adaptations,C200 - Main Contractor,22/12/2014,1062112-1,1150,REDACTED PERSONAL DATA,REDACTED PERSONAL DATA
Tendring DC,http://statistics.data.gov.uk/id/local-authority-district/22UN,Life Opportunities,H860 - Disabled Adaptations,C200 - Main Contractor,22/12/2014,1062112-2,4524,REDACTED PERSONAL DATA,REDACTED PERSONAL DATA
Tendring DC,http://statistics.data.gov.uk/id/local-authority-district/22UN,Life Opportunities,6160 - Princes Theatre,4622 - Hired Services - Artistes and Production Companies,02/12/2014,2117121-1,2593.9,2107253 - Artistes International Management,a vision of elvis
Tendring DC,http://statistics.data.gov.uk/id/local-authority-district/22UN,Life Opportunities,8520 - Frinton & Walton Swimming Pool,5300 - Resaleable Items,22/12/2014,1062141-1,436.72,2100088 - ASA Merchandising Ltd,FWSP-ASA
Tendring DC,http://statistics.data.gov.uk/id/local-authority-district/22UN,Life Opportunities,8510 - Dovercourt Swimming Pool & All Weather Facilities,4300 - Printing & Stationery,02/12/2014,2117108-1,46.11,2100088 - ASA Merchandising Ltd,learn to swim packs
Tendring DC,http://statistics.data.gov.uk/id/local-authority-district/22UN,Life Opportunities,8520 - Frinton & Walton Swimming Pool,4300 - Printing & Stationery,02/12/2014,2117108-2,46.11,2100088 - ASA Merchandising Ltd,learn to swim packs
Tendring DC,http://statistics.data.gov.uk/id/local-authority-district/22UN,Life Opportunities,8540 - Leisure Centre Clacton,4300 - Printing & Stationery,02/12/2014,2117108-3,46.11,2100088 - ASA Merchandising Ltd,learn to swim packs
Tendring DC,http://statistics.data.gov.uk/id/local-authority-district/22UN,Life Opportunities,8540 - Leisure Centre Clacton,4300 - Printing & Stationery,02/12/2014,2117108-4,2.94,2100088 - ASA Merchandising Ltd,learn to swim packs
Tendring DC,http://statistics.data.gov.uk/id/local-authority-district/22UN,Life Opportunities,8520 - Frinton & Walton Swimming Pool,5300 - Resaleable Items,02/12/2014,2117123-1,118.53,2100088 - ASA Merchandising Ltd,fwsp - asa
Tendring DC,http://statistics.data.gov.uk/id/local-authority-district/22UN,Life Opportunities,8540 - Leisure Centre Clacton,5300 - Resaleable Items,22/12/2014,7016625-1,318.9,2100088 - ASA Merchandising Ltd,SWIM AWARDS
Tendring DC,http://statistics.data.gov.uk/id/local-authority-district/22UN,Life Opportunities,8510 - Dovercourt Swimming Pool & All Weather Facilities,4300 - Printing & Stationery,16/12/2014,2117326-1,12,2100069 - Autoprint,dovercourt pool - a2 posters
Tendring DC,http://statistics.data.gov.uk/id/local-authority-district/22UN,Life Opportunities,8510 - Dovercourt Swimming Pool & All Weather Facilities,4300 - Printing & Stationery,22/12/2014,7016618-1,165,2100069 - Autoprint,DOVERCOURT POOL - FLYERS
Tendring DC,http://statistics.data.gov.uk/id/local-authority-district/22UN,Life Opportunities,8510 - Dovercourt Swimming Pool & All Weather Facilities,4300 - Printing & Stationery,22/12/2014,7016634-1,112,2100069 - Autoprint,DOVERCOURT POOL - TIMETABLES
Tendring DC,http://statistics.data.gov.uk/id/local-authority-district/22UN,Life Opportunities,8510 - Dovercourt Swimming Pool & All Weather Facilities,4300 - Printing & Stationery,22/12/2014,7016635-1,226,2100069 - Autoprint,DOVERCOURT POOL - LEAFLETS
Tendring DC,http://statistics.data.gov.uk/id/local-authority-district/22UN,Life Opportunities,1880 - Office Accommodation Expenses,4080 - Materials & Consumables,09/12/2014,2117263-1,13.3,2100099 - B & Q Trade Account,paint brush and woodstain
Tendring DC,http://statistics.data.gov.uk/id/local-authority-district/22UN,Life Opportunities,1880 - Office Accommodation Expenses,4080 - Materials & Consumables,22/12/2014,7016673-1,28.27,2100099 - B & Q Trade Account,HOOKS AND TORCHES
Tendring DC,http://statistics.data.gov.uk/id/local-authority-district/22UN,Life Opportunities,6160 - Princes Theatre,4400 - Maintenance Under Service Agreements,09/12/2014,7016435-1,192.5,2110592 - B & W Lift Services Ltd,ROUTINE SERVICE PRINCE THEATRE LIFT
Tendring DC,http://statistics.data.gov.uk/id/local-authority-district/22UN,Life Opportunities,5240 - HRA - Managing Tenancies,5248 - Estate Management Expenses,16/12/2014,7016549-1,16.62,2114555 - Bagsdirect.com,LEATHER CONFERENCE FOLDER
Tendring DC,http://statistics.data.gov.uk/id/local-authority-district/22UN,Life Opportunities,5820 - Harwich Sports Centre,4300 - Printing & Stationery,22/12/2014,1062140-1,1.04,2100111 - Banner Business Supplies Ltd,WALL PLANNER
Tendring DC,http://statistics.data.gov.uk/id/local-authority-district/22UN,Life Opportunities,8510 - Dovercourt Swimming Pool & All Weather Facilities,4300 - Printing & Stationery,02/12/2014,2117128-1,48.96,2100111 - Banner Business Supplies Ltd,dovercourt pool - paper
Tendring DC,http://statistics.data.gov.uk/id/local-authority-district/22UN,Life Opportunities,"1580 - Benefits, Revenues and Customer Contact SU",4300 - Printing & Stationery,02/12/2014,7016324-1,338.18,2100111 - Banner Business Supplies Ltd,STATIONARY 21.11.14
Tendring DC,http://statistics.data.gov.uk/id/local-authority-district/22UN,Life Opportunities,"1580 - Benefits, Revenues and Customer Contact SU",4300 - Printing & Stationery,02/12/2014,7016328-1,33.24,2100111 - Banner Business Supplies Ltd,STATIONARY NOV 14
Tendring DC,http://statistics.data.gov.uk/id/local-authority-district/22UN,Life Opportunities,5240 - HRA - Managing Tenancies,4312 - Tenancy Stationery,02/12/2014,7016329-1,139.43,2100111 - Banner Business Supplies Ltd,"STATIONARY T HALL, TIC, F&P"
Tendring DC,http://statistics.data.gov.uk/id/local-authority-district/22UN,Life Opportunities,H710 - Selected Improvements,C200 - Main Contractor,02/12/2014,7016329-2,11.47,2100111 - Banner Business Supplies Ltd,"STATIONARY T HALL, TIC, F&P"
Tendring DC,http://statistics.data.gov.uk/id/local-authority-district/22UN,Life Opportunities,5360 - HRA - Sheltered Units,4312 - Tenancy Stationery,02/12/2014,7016329-3,0.77,2100111 - Banner Business Supplies Ltd,"STATIONARY T HALL, TIC, F&P"
Tendring DC,http://statistics.data.gov.uk/id/local-authority-district/22UN,Life Opportunities,7600 - Tourist Information Centres,4300 - Printing & Stationery,02/12/2014,7016329-4,7.31,2100111 - Banner Business Supplies Ltd,"STATIONARY T HALL, TIC, F&P"
Tendring DC,http://statistics.data.gov.uk/id/local-authority-district/22UN,Life Opportunities,5240 - HRA - Managing Tenancies,5248 - Estate Management Expenses,09/12/2014,7016382-1,43.49,2100111 - Banner Business Supplies Ltd,NOTEBOOK - CLOCK SQUARE  SQUARE CUT FOLDER
Tendring DC,http://statistics.data.gov.uk/id/local-authority-district/22UN,Life Opportunities,7600 - Tourist Information Centres,4300 - Printing & Stationery,09/12/2014,7016382-2,10.24,2100111 - Banner Business Supplies Ltd,NOTEBOOK - CLOCK SQUARE  SQUARE CUT FOLDER
Tendring DC,http://statistics.data.gov.uk/id/local-authority-district/22UN,Life Opportunities,5360 - HRA - Sheltered Units,4300 - Printing & Stationery,09/12/2014,7016382-3,0.75,2100111 - Banner Business Supplies Ltd,NOTEBOOK - CLOCK SQUARE  SQUARE CUT FOLDER
Tendring DC,http://statistics.data.gov.uk/id/local-authority-district/22UN,Life Opportunities,1565 - Careline / CCTV Service Unit,4300 - Printing & Stationery,09/12/2014,7016382-4,2.7,2100111 - Banner Business Supplies Ltd,NOTEBOOK - CLOCK SQUARE  SQUARE CUT FOLDER
Tendring DC,http://statistics.data.gov.uk/id/local-authority-district/22UN,Life Opportunities,1650 - Building Services Service Unit,4300 - Printing & Stationery,09/12/2014,7016382-5,2.76,2100111 - Banner Business Supplies Ltd,NOTEBOOK - CLOCK SQUARE  SQUARE CUT FOLDER
Tendring DC,http://statistics.data.gov.uk/id/local-authority-district/22UN,Life Opportunities,5240 - HRA - Managing Tenancies,4312 - Tenancy Stationery,09/12/2014,7016383-1,42.36,2100111 - Banner Business Supplies Ltd,LOOP PAPER
Tendring DC,http://statistics.data.gov.uk/id/local-authority-district/22UN,Life Opportunities,"1580 - Benefits, Revenues and Customer Contact SU",4300 - Printing & Stationery,22/12/2014,7016729-1,33.1,2100111 - Banner Business Supplies Ltd,STATIONARY 5.12.14
Tendring DC,http://statistics.data.gov.uk/id/local-authority-district/22UN,Life Opportunities,5260 - HRA - Rent Collection And Accounting,4312 - Tenancy Stationery,22/12/2014,7016729-2,1.33,2100111 - Banner Business Supplies Ltd,STATIONARY 5.12.14
Tendring DC,http://statistics.data.gov.uk/id/local-authority-district/22UN,Life Opportunities,7620 - Air Show,4300 - Printing & Stationery,22/12/2014,7016729-3,15.52,2100111 - Banner Business Supplies Ltd,STATIONARY 5.12.14
Tendring DC,http://statistics.data.gov.uk/id/local-authority-district/22UN,Life Opportunities,1230 - Strategic Housing & Needs Management,4300 - Printing & Stationery,22/12/2014,7016729-4,11.31,2100111 - Banner Business Supplies Ltd,STATIONARY 5.12.14
Tendring DC,http://statistics.data.gov.uk/id/local-authority-district/22UN,Life Opportunities,8540 - Leisure Centre Clacton,4300 - Printing & Stationery,22/12/2014,7016730-1,47.05,2100111 - Banner Business Supplies Ltd,STATIONARY
Tendring DC,http://statistics.data.gov.uk/id/local-authority-district/22UN,Life Opportunities,8520 - Frinton & Walton Swimming Pool,4300 - Printing & Stationery,22/12/2014,7016734-1,34.14,2100111 - Banner Business Supplies Ltd,FWSP BANNER
Tendring DC,http://statistics.data.gov.uk/id/local-authority-district/22UN,Life Opportunities,1565 - Careline / CCTV Service Unit,4300 - Printing & Stationery,22/12/2014,7016736-1,26.4,2100111 - Banner Business Supplies Ltd,STATIONARY 28.11.14
Tendring DC,http://statistics.data.gov.uk/id/local-authority-district/22UN,Life Opportunities,1210 - Facilities Management Service Unit,4300 - Printing & Stationery,22/12/2014,7016736-2,53.37,2100111 - Banner Business Supplies Ltd,STATIONARY 28.11.14
Tendring DC,http://statistics.data.gov.uk/id/local-authority-district/22UN,Life Opportunities,5240 - HRA - Managing Tenancies,4312 - Tenancy Stationery,22/12/2014,7016736-3,19.57,2100111 - Banner Business Supplies Ltd,STATIONARY 28.11.14
Tendring DC,http://statistics.data.gov.uk/id/local-authority-district/22UN,Life Opportunities,"1580 - Benefits, Revenues and Customer Contact SU",4300 - Printing & Stationery,22/12/2014,7016736-4,1.06,2100111 - Banner Business Supplies Ltd,STATIONARY 28.11.14
Tendring DC,http://statistics.data.gov.uk/id/local-authority-district/22UN,Life Opportunities,5260 - HRA - Rent Collection And Accounting,4312 - Tenancy Stationery,22/12/2014,7016737-1,33.1,2100111 - Banner Business Supplies Ltd,DESK FANS
Tendring DC,http://statistics.data.gov.uk/id/local-authority-district/22UN,Life Opportunities,6160 - Princes Theatre,4622 - Hired Services - Artistes and Production Companies,09/12/2014,2117268-1,4262.77,2111423 - Barry Collings Entertainments,the rat pack
Tendring DC,http://statistics.data.gov.uk/id/local-authority-district/22UN,Life Opportunities,5880 - Management Of Sport & Leisure Facilities,5166 - Marketing and Promotion,22/12/2014,7016682-1,377.13,2100114 - Bespoke Caterers,BESPOKE CATERERS
Tendring DC,http://statistics.data.gov.uk/id/local-authority-district/22UN,Life Opportunities,8540 - Leisure Centre Clacton,2300 - Energy Costs - Fuel Oil,22/12/2014,1062137-1,1696.5,2112681 - BIRLEM Ltd,2602 LT
Tendring DC,http://statistics.data.gov.uk/id/local-authority-district/22UN,Life Opportunities,8540 - Leisure Centre Clacton,2300 - Energy Costs - Fuel Oil,02/12/2014,2117107-1,1025.6,2112681 - BIRLEM Ltd,1600lt
Tendring DC,http://statistics.data.gov.uk/id/local-authority-district/22UN,Life Opportunities,1880 - Office Accommodation Expenses,2300 - Energy Costs - Fuel Oil,02/12/2014,2117117-1,1268.69,2112681 - BIRLEM Ltd,gas oil weeley nov 14
Tendring DC,http://statistics.data.gov.uk/id/local-authority-district/22UN,Life Opportunities,H805 - Major Refurbishment of Heating,C200 - Main Contractor,09/12/2014,1062007-1,39090.88,2100155 - Blue Flame (Colchester) Ltd,HEATING REFURBISHMENT & UPGRADE TERM CONTRACT
Tendring DC,http://statistics.data.gov.uk/id/local-authority-district/22UN,Life Opportunities,5480 - HRA - Repair & Maintenance,2078 - Gas Service Contract Other Refurbishment/Repairs (,22/12/2014,1062116-1,65,REDACTED PERSONAL DATA,REDACTED PERSONAL DATA
Tendring DC,http://statistics.data.gov.uk/id/local-authority-district/22UN,Life Opportunities,5480 - HRA - Repair & Maintenance,2078 - Gas Service Contract Other Refurbishment/Repairs (,22/12/2014,1062117-1,87.5,REDACTED PERSONAL DATA,REDACTED PERSONAL DATA
Tendring DC,http://statistics.data.gov.uk/id/local-authority-district/22UN,Life Opportunities,6160 - Princes Theatre,5306 - Confectionary,02/12/2014,1061926-1,-12.6,2113279 - Booker,CR NOTE
Tendring DC,http://statistics.data.gov.uk/id/local-authority-district/22UN,Life Opportunities,7100 - Community Health/Safety,5164 - Project Expenses,02/12/2014,2117120-1,6.57,2113279 - Booker,biscuits and cups for community health
Tendring DC,http://statistics.data.gov.uk/id/local-authority-district/22UN,Life Opportunities,7100 - Community Health/Safety,5164 - Project Expenses,02/12/2014,2117120-2,17.38,2113279 - Booker,biscuits and cups for community health
Tendring DC,http://statistics.data.gov.uk/id/local-authority-district/22UN,Life Opportunities,6160 - Princes Theatre,5306 - Confectionary,09/12/2014,7016440-1,49.31,2113279 - Booker,ITEMS FOR THEATRE BAR
Tendring DC,http://statistics.data.gov.uk/id/local-authority-district/22UN,Life Opportunities,6160 - Princes Theatre,5306 - Confectionary,09/12/2014,7016440-2,33.09,2113279 - Booker,ITEMS FOR THEATRE BAR
Tendring DC,http://statistics.data.gov.uk/id/local-authority-district/22UN,Life Opportunities,5240 - HRA - Managing Tenancies,5248 - Estate Management Expenses,02/12/2014,7016286-1,110,2102522 - Brightlingsea Town Council,USE OF MEETING ROOM
Tendring DC,http://statistics.data.gov.uk/id/local-authority-district/22UN,Life Opportunities,1880 - Office Accommodation Expenses,2304 - Energy Costs - Electricity,09/12/2014,1061969-1,1689.45,2106318 - British Gas Business,BRITISH GAS ELECTRIC SEPT TO OCT 14
Tendring DC,http://statistics.data.gov.uk/id/local-authority-district/22UN,Life Opportunities,1860 - Depots General,2304 - Energy Costs - Electricity,09/12/2014,1061969-10,1128.92,2106318 - British Gas Business,BRITISH GAS ELECTRIC SEPT TO OCT 14
Tendring DC,http://statistics.data.gov.uk/id/local-authority-district/22UN,Life Opportunities,1880 - Office Accommodation Expenses,2304 - Energy Costs - Electricity,09/12/2014,1061969-11,1862.49,2106318 - British Gas Business,BRITISH GAS ELECTRIC SEPT TO OCT 14
Tendring DC,http://statistics.data.gov.uk/id/local-authority-district/22UN,Life Opportunities,1880 - Office Accommodation Expenses,2304 - Energy Costs - Electricity,09/12/2014,1061969-2,25.77,2106318 - British Gas Business,BRITISH GAS ELECTRIC SEPT TO OCT 14
Tendring DC,http://statistics.data.gov.uk/id/local-authority-district/22UN,Life Opportunities,1880 - Office Accommodation Expenses,2304 - Energy Costs - Electricity,09/12/2014,1061969-3,29.58,2106318 - British Gas Business,BRITISH GAS ELECTRIC SEPT TO OCT 14
Tendring DC,http://statistics.data.gov.uk/id/local-authority-district/22UN,Life Opportunities,1860 - Depots General,2304 - Energy Costs - Electricity,09/12/2014,1061969-4,600.26,2106318 - British Gas Business,BRITISH GAS ELECTRIC SEPT TO OCT 14
Tendring DC,http://statistics.data.gov.uk/id/local-authority-district/22UN,Life Opportunities,1880 - Office Accommodation Expenses,2304 - Energy Costs - Electricity,09/12/2014,1061969-5,26.92,2106318 - British Gas Business,BRITISH GAS ELECTRIC SEPT TO OCT 14
Tendring DC,http://statistics.data.gov.uk/id/local-authority-district/22UN,Life Opportunities,1860 - Depots General,2304 - Energy Costs - Electricity,09/12/2014,1061969-6,117.43,2106318 - British Gas Business,BRITISH GAS ELECTRIC SEPT TO OCT 14
Tendring DC,http://statistics.data.gov.uk/id/local-authority-district/22UN,Life Opportunities,1880 - Office Accommodation Expenses,2304 - Energy Costs - Electricity,09/12/2014,1061969-7,104.87,2106318 - British Gas Business,BRITISH GAS ELECTRIC SEPT TO OCT 14
Tendring DC,http://statistics.data.gov.uk/id/local-authority-district/22UN,Life Opportunities,1880 - Office Accommodation Expenses,2304 - Energy Costs - Electricity,09/12/2014,1061969-8,173.64,2106318 - British Gas Business,BRITISH GAS ELECTRIC SEPT TO OCT 14
Tendring DC,http://statistics.data.gov.uk/id/local-authority-district/22UN,Life Opportunities,1880 - Office Accommodation Expenses,2304 - Energy Costs - Electricity,09/12/2014,1061969-9,2597.11,2106318 - British Gas Business,BRITISH GAS ELECTRIC SEPT TO OCT 14
Tendring DC,http://statistics.data.gov.uk/id/local-authority-district/22UN,Life Opportunities,8520 - Frinton & Walton Swimming Pool,2304 - Energy Costs - Electricity,16/12/2014,2117323-1,2201.2,2106318 - British Gas Business,fwsp - british gas
Tendring DC,http://statistics.data.gov.uk/id/local-authority-district/22UN,Life Opportunities,5440 - HRA - Communal Electricity,2304 - Energy Costs - Electricity,16/12/2014,7016551-1,8.72,2106318 - British Gas Business,CLARKES RD SEPT 14
Tendring DC,http://statistics.data.gov.uk/id/local-authority-district/22UN,Life Opportunities,5440 - HRA - Communal Electricity,2304 - Energy Costs - Electricity,16/12/2014,7016552-1,28.11,2106318 - British Gas Business,WILLOW WAY DEC 14
Tendring DC,http://statistics.data.gov.uk/id/local-authority-district/22UN,Life Opportunities,5360 - HRA - Sheltered Units,2304 - Energy Costs - Electricity,16/12/2014,7016556-1,21.54,REDACTED PERSONAL DATA,REDACTED PERSONAL DATA
Tendring DC,http://statistics.data.gov.uk/id/local-authority-district/22UN,Life Opportunities,1880 - Office Accommodation Expenses,2308 - Energy Costs - Gas (Including LPG),22/12/2014,7016608-1,50.95,2106318 - British Gas Business,CLAY HALL 5.9 TO 4.12.14
Tendring DC,http://statistics.data.gov.uk/id/local-authority-district/22UN,Life Opportunities,5480 - HRA - Repair & Maintenance,2304 - Energy Costs - Electricity,16/12/2014,2117350-1,59.72,REDACTED PERSONAL DATA,REDACTED PERSONAL DATA
Tendring DC,http://statistics.data.gov.uk/id/local-authority-district/22UN,Life Opportunities,5440 - HRA - Communal Electricity,2304 - Energy Costs - Electricity,22/12/2014,2117419-1,18.15,2104953 - British Gas Trading Ltd,clarkes rd
Tendring DC,http://statistics.data.gov.uk/id/local-authority-district/22UN,Life Opportunities,5440 - HRA - Communal Electricity,2304 - Energy Costs - Electricity,22/12/2014,2117420-1,23.72,2104953 - British Gas Trading Ltd,grange road
Tendring DC,http://statistics.data.gov.uk/id/local-authority-district/22UN,Life Opportunities,8530 - Brightlingsea Swimming Pool,4710 - Telephones - Charges,09/12/2014,1061955-1,89.31,2100168 - British Telecommunications plc,01206 303067
Tendring DC,http://statistics.data.gov.uk/id/local-authority-district/22UN,Life Opportunities,6740 - Careline,4710 - Telephones - Charges,02/12/2014,2117141-1,61.67,2100168 - British Telecommunications plc,ea34411187
Tendring DC,http://statistics.data.gov.uk/id/local-authority-district/22UN,Life Opportunities,7000 - CCTV,4718 - Fixed Communication Lines,09/12/2014,2117229-1,162,2100168 - British Telecommunications plc,wm 3969 7030
Tendring DC,http://statistics.data.gov.uk/id/local-authority-district/22UN,Life Opportunities,7000 - CCTV,4718 - Fixed Communication Lines,22/12/2014,2117415-1,49.89,2100168 - British Telecommunications plc,ea 40489190
Tendring DC,http://statistics.data.gov.uk/id/local-authority-district/22UN,Life Opportunities,5480 - HRA - Repair & Maintenance,2069 - Lift/Stairlift Servicing,22/12/2014,2117416-1,49.89,2100168 - British Telecommunications plc,ea 4142 4636
Tendring DC,http://statistics.data.gov.uk/id/local-authority-district/22UN,Life Opportunities,5480 - HRA - Repair & Maintenance,2069 - Lift/Stairlift Servicing,22/12/2014,2117417-1,49.89,2100168 - British Telecommunications plc,ea 4142 4642
Tendring DC,http://statistics.data.gov.uk/id/local-authority-district/22UN,Life Opportunities,5480 - HRA - Repair & Maintenance,2069 - Lift/Stairlift Servicing,22/12/2014,2117418-1,49.92,2100168 - British Telecommunications plc,ea 4142 4645
Tendring DC,http://statistics.data.gov.uk/id/local-authority-district/22UN,Life Opportunities,7000 - CCTV,4710 - Telephones - Charges,02/12/2014,7016283-1,148.5,2100168 - British Telecommunications plc,WM 3940 7824
Tendring DC,http://statistics.data.gov.uk/id/local-authority-district/22UN,Life Opportunities,7000 - CCTV,4718 - Fixed Communication Lines,16/12/2014,7016562-1,51.52,2100168 - British Telecommunications plc,EA 4079 1190
Tendring DC,http://statistics.data.gov.uk/id/local-authority-district/22UN,Life Opportunities,7000 - CCTV,4718 - Fixed Communication Lines,16/12/2014,7016562-2,13.5,2100168 - British Telecommunications plc,EA 4079 1190
Tendring DC,http://statistics.data.gov.uk/id/local-authority-district/22UN,Life Opportunities,5800 - Brightlingsea Sports Centre,4710 - Telephones - Charges,22/12/2014,7016606-1,259.37,2100168 - British Telecommunications plc,Dec-14
Tendring DC,http://statistics.data.gov.uk/id/local-authority-district/22UN,Life Opportunities,1920 - Mill Lane Depot,4710 - Telephones - Charges,22/12/2014,7016606-10,37.89,2100168 - British Telecommunications plc,Dec-14
Tendring DC,http://statistics.data.gov.uk/id/local-authority-district/22UN,Life Opportunities,8125 - Horticultural Services,4710 - Telephones - Charges,22/12/2014,7016606-11,46.53,2100168 - British Telecommunications plc,Dec-14
Tendring DC,http://statistics.data.gov.uk/id/local-authority-district/22UN,Life Opportunities,6060 - First Aid Posts,4710 - Telephones - Charges,22/12/2014,7016606-12,66.64,2100168 - British Telecommunications plc,Dec-14
Tendring DC,http://statistics.data.gov.uk/id/local-authority-district/22UN,Life Opportunities,6040 - Miscellaneous Seafront Activities,4710 - Telephones - Charges,22/12/2014,7016606-13,222.49,2100168 - British Telecommunications plc,Dec-14
Tendring DC,http://statistics.data.gov.uk/id/local-authority-district/22UN,Life Opportunities,6160 - Princes Theatre,4710 - Telephones - Charges,22/12/2014,7016606-14,-55.61,2100168 - British Telecommunications plc,Dec-14
Tendring DC,http://statistics.data.gov.uk/id/local-authority-district/22UN,Life Opportunities,7600 - Tourist Information Centres,4710 - Telephones - Charges,22/12/2014,7016606-15,151.86,2100168 - British Telecommunications plc,Dec-14
Tendring DC,http://statistics.data.gov.uk/id/local-authority-district/22UN,Life Opportunities,4540 - Cemeteries,4710 - Telephones - Charges,22/12/2014,7016606-2,36.71,2100168 - British Telecommunications plc,Dec-14
Tendring DC,http://statistics.data.gov.uk/id/local-authority-district/22UN,Life Opportunities,4560 - Crematorium,4710 - Telephones - Charges,22/12/2014,7016606-3,110.54,2100168 - British Telecommunications plc,Dec-14
Tendring DC,http://statistics.data.gov.uk/id/local-authority-district/22UN,Life Opportunities,8540 - Leisure Centre Clacton,4710 - Telephones - Charges,22/12/2014,7016606-4,806.49,2100168 - British Telecommunications plc,Dec-14
Tendring DC,http://statistics.data.gov.uk/id/local-authority-district/22UN,Life Opportunities,5860 - Manningtree Sports Centre,4710 - Telephones - Charges,22/12/2014,7016606-5,389.37,2100168 - British Telecommunications plc,Dec-14
Tendring DC,http://statistics.data.gov.uk/id/local-authority-district/22UN,Life Opportunities,5820 - Harwich Sports Centre,4710 - Telephones - Charges,22/12/2014,7016606-6,365.13,2100168 - British Telecommunications plc,Dec-14
Tendring DC,http://statistics.data.gov.uk/id/local-authority-district/22UN,Life Opportunities,8520 - Frinton & Walton Swimming Pool,4710 - Telephones - Charges,22/12/2014,7016606-7,290.92,2100168 - British Telecommunications plc,Dec-14
Tendring DC,http://statistics.data.gov.uk/id/local-authority-district/22UN,Life Opportunities,8510 - Dovercourt Swimming Pool & All Weather Facilities,4710 - Telephones - Charges,22/12/2014,7016606-8,772.56,2100168 - British Telecommunications plc,Dec-14
Tendring DC,http://statistics.data.gov.uk/id/local-authority-district/22UN,Life Opportunities,1915 - Low Road Depot,4710 - Telephones - Charges,22/12/2014,7016606-9,36.48,2100168 - British Telecommunications plc,Dec-14
Tendring DC,http://statistics.data.gov.uk/id/local-authority-district/22UN,Life Opportunities,5480 - HRA - Repair & Maintenance,2069 - Lift/Stairlift Servicing,22/12/2014,7016677-1,49.88,2100168 - British Telecommunications plc,EA 4148 2478
Tendring DC,http://statistics.data.gov.uk/id/local-authority-district/22UN,Life Opportunities,8540 - Leisure Centre Clacton,2700 - Cleaning Materials,09/12/2014,1061880-1,-21.08,2101624 - Bunzl,CLEANING SUPLLIES CREDIT
Tendring DC,http://statistics.data.gov.uk/id/local-authority-district/22UN,Life Opportunities,8540 - Leisure Centre Clacton,2700 - Cleaning Materials,22/12/2014,1062127-1,117.27,2101624 - Bunzl,CLEANING SUPPLIES
Tendring DC,http://statistics.data.gov.uk/id/local-authority-district/22UN,Life Opportunities,8540 - Leisure Centre Clacton,2700 - Cleaning Materials,09/12/2014,2117235-1,200.53,2101624 - Bunzl,cleaning supplies
Tendring DC,http://statistics.data.gov.uk/id/local-authority-district/22UN,Life Opportunities,5360 - HRA - Sheltered Units,2700 - Cleaning Materials,09/12/2014,2117247-1,43.88,2101624 - Bunzl,hand towels for kate daniels
Tendring DC,http://statistics.data.gov.uk/id/local-authority-district/22UN,Life Opportunities,5360 - HRA - Sheltered Units,2700 - Cleaning Materials,09/12/2014,2117248-1,14.91,2101624 - Bunzl,mops for crooked elms
Tendring DC,http://statistics.data.gov.uk/id/local-authority-district/22UN,Life Opportunities,8150 - Office Cleaning,4080 - Materials & Consumables,09/12/2014,2117249-1,775.38,2101624 - Bunzl,cleaning equipment nov 14
Tendring DC,http://statistics.data.gov.uk/id/local-authority-district/22UN,Life Opportunities,8150 - Office Cleaning,4080 - Materials & Consumables,09/12/2014,2117269-1,346.13,2101624 - Bunzl,cleaning matterials weeley
Tendring DC,http://statistics.data.gov.uk/id/local-authority-district/22UN,Life Opportunities,8510 - Dovercourt Swimming Pool & All Weather Facilities,2700 - Cleaning Materials,16/12/2014,2117327-1,34.56,2101624 - Bunzl,dovercourt pool - cleaning
Tendring DC,http://statistics.data.gov.uk/id/local-authority-district/22UN,Life Opportunities,8540 - Leisure Centre Clacton,2700 - Cleaning Materials,22/12/2014,7016694-1,111.41,2101624 - Bunzl,CLEANING SUPPLIES
Tendring DC,http://statistics.data.gov.uk/id/local-authority-district/22UN,Life Opportunities,6160 - Princes Theatre,4105 - Bar/Catering Expenses,16/12/2014,2117368-1,368.1,2112687 - Cabana Soft Drinks (Essex) Ltd,bar supplies
Tendring DC,http://statistics.data.gov.uk/id/local-authority-district/22UN,Life Opportunities,5240 - HRA - Managing Tenancies,5248 - Estate Management Expenses,22/12/2014,7016660-1,63.75,2107321 - Campbell Associates,CALIBRATOR
Tendring DC,http://statistics.data.gov.uk/id/local-authority-district/22UN,Life Opportunities,1650 - Building Services Service Unit,4400 - Maintenance Under Service Agreements,16/12/2014,7016557-1,50.11,2100291 - Canon (UK) Ltd,SERV JAN 15
Tendring DC,http://statistics.data.gov.uk/id/local-authority-district/22UN,Life Opportunities,1650 - Building Services Service Unit,4400 - Maintenance Under Service Agreements,16/12/2014,7016558-1,3.01,2100291 - Canon (UK) Ltd,COPIES NOV 14
Tendring DC,http://statistics.data.gov.uk/id/local-authority-district/22UN,Life Opportunities,"1580 - Benefits, Revenues and Customer Contact SU",4752 - Computer - Operating Systems Maintenance,22/12/2014,7016605-1,561,2112119 - Care Pack Sales,POST WARRANTY SERVICE DEC 14 / DEC 15
Tendring DC,http://statistics.data.gov.uk/id/local-authority-district/22UN,Life Opportunities,"1580 - Benefits, Revenues and Customer Contact SU",3312 - Car Allowances - Car Hire,22/12/2014,1062166-1,25,2104746 - CC Hire,CAR HIRE 28.11.14
Tendring DC,http://statistics.data.gov.uk/id/local-authority-district/22UN,Life Opportunities,H810 - Electrical Re-wiring,3062 - Running Costs - Petrol,22/12/2014,1062166-2,4.17,2104746 - CC Hire,CAR HIRE 28.11.14
Tendring DC,http://statistics.data.gov.uk/id/local-authority-district/22UN,Life Opportunities,"1580 - Benefits, Revenues and Customer Contact SU",3312 - Car Allowances - Car Hire,22/12/2014,7016739-1,25,2104746 - CC Hire,CAR HIRE 31.10.14
Tendring DC,http://statistics.data.gov.uk/id/local-authority-district/22UN,Life Opportunities,"1580 - Benefits, Revenues and Customer Contact SU",3062 - Running Costs - Petrol,22/12/2014,7016739-2,4.17,2104746 - CC Hire,CAR HIRE 31.10.14
Tendring DC,http://statistics.data.gov.uk/id/local-authority-district/22UN,Life Opportunities,1242 - Corporate Director (Life Opportunities),1710 - Training - Central Department Budget,22/12/2014,7016604-1,514,REDACTED PERSONAL DATA,REDACTED PERSONAL DATA
Tendring DC,http://statistics.data.gov.uk/id/local-authority-district/22UN,Life Opportunities,5140 - Homelessness,4680 - Bed & Breakfast Accommodation,02/12/2014,7016287-1,168,REDACTED PERSONAL DATA,REDACTED PERSONAL DATA
Tendring DC,http://statistics.data.gov.uk/id/local-authority-district/22UN,Life Opportunities,5140 - Homelessness,4680 - Bed & Breakfast Accommodation,02/12/2014,7016287-2,42,REDACTED PERSONAL DATA,REDACTED PERSONAL DATA
Tendring DC,http://statistics.data.gov.uk/id/local-authority-district/22UN,Life Opportunities,5140 - Homelessness,4680 - Bed & Breakfast Accommodation,02/12/2014,7016288-1,168,REDACTED PERSONAL DATA,REDACTED PERSONAL DATA
Tendring DC,http://statistics.data.gov.uk/id/local-authority-district/22UN,Life Opportunities,5140 - Homelessness,4680 - Bed & Breakfast Accommodation,02/12/2014,7016288-2,42,REDACTED PERSONAL DATA,REDACTED PERSONAL DATA
Tendring DC,http://statistics.data.gov.uk/id/local-authority-district/22UN,Life Opportunities,5140 - Homelessness,4680 - Bed & Breakfast Accommodation,02/12/2014,7016289-1,168,REDACTED PERSONAL DATA,REDACTED PERSONAL DATA
Tendring DC,http://statistics.data.gov.uk/id/local-authority-district/22UN,Life Opportunities,5140 - Homelessness,4680 - Bed & Breakfast Accommodation,02/12/2014,7016289-2,42,REDACTED PERSONAL DATA,REDACTED PERSONAL DATA
Tendring DC,http://statistics.data.gov.uk/id/local-authority-district/22UN,Life Opportunities,5140 - Homelessness,4680 - Bed & Breakfast Accommodation,02/12/2014,7016290-1,168,REDACTED PERSONAL DATA,REDACTED PERSONAL DATA
Tendring DC,http://statistics.data.gov.uk/id/local-authority-district/22UN,Life Opportunities,5140 - Homelessness,4680 - Bed & Breakfast Accommodation,02/12/2014,7016290-2,42,REDACTED PERSONAL DATA,REDACTED PERSONAL DATA
Tendring DC,http://statistics.data.gov.uk/id/local-authority-district/22UN,Life Opportunities,5140 - Homelessness,4680 - Bed & Breakfast Accommodation,02/12/2014,7016291-1,25,REDACTED PERSONAL DATA,REDACTED PERSONAL DATA
Tendring DC,http://statistics.data.gov.uk/id/local-authority-district/22UN,Life Opportunities,5140 - Homelessness,4680 - Bed & Breakfast Accommodation,02/12/2014,7016292-1,100,REDACTED PERSONAL DATA,REDACTED PERSONAL DATA
Tendring DC,http://statistics.data.gov.uk/id/local-authority-district/22UN,Life Opportunities,5140 - Homelessness,4680 - Bed & Breakfast Accommodation,16/12/2014,7016545-1,168,REDACTED PERSONAL DATA,REDACTED PERSONAL DATA
Tendring DC,http://statistics.data.gov.uk/id/local-authority-district/22UN,Life Opportunities,5140 - Homelessness,4680 - Bed & Breakfast Accommodation,16/12/2014,7016545-2,42,REDACTED PERSONAL DATA,REDACTED PERSONAL DATA
Tendring DC,http://statistics.data.gov.uk/id/local-authority-district/22UN,Life Opportunities,5140 - Homelessness,4680 - Bed & Breakfast Accommodation,16/12/2014,7016546-1,168,REDACTED PERSONAL DATA,REDACTED PERSONAL DATA
Tendring DC,http://statistics.data.gov.uk/id/local-authority-district/22UN,Life Opportunities,5140 - Homelessness,4680 - Bed & Breakfast Accommodation,16/12/2014,7016546-2,42,REDACTED PERSONAL DATA,REDACTED PERSONAL DATA
Tendring DC,http://statistics.data.gov.uk/id/local-authority-district/22UN,Life Opportunities,5140 - Homelessness,4680 - Bed & Breakfast Accommodation,16/12/2014,7016547-1,168,REDACTED PERSONAL DATA,REDACTED PERSONAL DATA
Tendring DC,http://statistics.data.gov.uk/id/local-authority-district/22UN,Life Opportunities,5140 - Homelessness,4680 - Bed & Breakfast Accommodation,16/12/2014,7016547-2,42,REDACTED PERSONAL DATA,REDACTED PERSONAL DATA
Tendring DC,http://statistics.data.gov.uk/id/local-authority-district/22UN,Life Opportunities,5140 - Homelessness,4680 - Bed & Breakfast Accommodation,16/12/2014,7016548-1,42,REDACTED PERSONAL DATA,REDACTED PERSONAL DATA
Tendring DC,http://statistics.data.gov.uk/id/local-authority-district/22UN,Life Opportunities,5140 - Homelessness,4680 - Bed & Breakfast Accommodation,16/12/2014,7016548-2,168,REDACTED PERSONAL DATA,REDACTED PERSONAL DATA
Tendring DC,http://statistics.data.gov.uk/id/local-authority-district/22UN,Life Opportunities,7000 - CCTV,4400 - Maintenance Under Service Agreements,02/12/2014,2117092-1,259.77,2113346 - Chroma Vision Ltd,bulk download at walton
Tendring DC,http://statistics.data.gov.uk/id/local-authority-district/22UN,Life Opportunities,5480 - HRA - Repair & Maintenance,2082 - CCTV repairs,02/12/2014,7016261-1,1019.69,2113346 - Chroma Vision Ltd,LINK @ PERCY KING CENTRE
Tendring DC,http://statistics.data.gov.uk/id/local-authority-district/22UN,Life Opportunities,C301 - CCTV Maintenance,C200 - Main Contractor,02/12/2014,7016282-1,21973.92,2113346 - Chroma Vision Ltd,UPGRADE OF CONTROL EQUIPMENT
Tendring DC,http://statistics.data.gov.uk/id/local-authority-district/22UN,Life Opportunities,5960 - Recreation Grounds,9286 - Leisure Centre Facilities - General Hire & Bookings,22/12/2014,1062079-1,56.25,2111591 - Clacton Sports Club,
Tendring DC,http://statistics.data.gov.uk/id/local-authority-district/22UN,Life Opportunities,6355 - Community Activity Network,4597 - Hired Services - Payments to Contractors,22/12/2014,7016627-1,772.5,2108041 - Coastal Golf Academy,NETBALL MAY - NOV
Tendring DC,http://statistics.data.gov.uk/id/local-authority-district/22UN,Life Opportunities,"1580 - Benefits, Revenues and Customer Contact SU",4462 - Bailiffs and Tracing Agent Fees re debt recovery,02/12/2014,2117137-1,102,2100381 - Collect Services Ltd,vat on fees collected nndr recovered 40.00
Tendring DC,http://statistics.data.gov.uk/id/local-authority-district/22UN,Life Opportunities,"1580 - Benefits, Revenues and Customer Contact SU",4462 - Bailiffs and Tracing Agent Fees re debt recovery,02/12/2014,2117137-2,-102,2100381 - Collect Services Ltd,vat on fees collected nndr recovered 40.00
Tendring DC,http://statistics.data.gov.uk/id/local-authority-district/22UN,Life Opportunities,"1580 - Benefits, Revenues and Customer Contact SU",4462 - Bailiffs and Tracing Agent Fees re debt recovery,02/12/2014,2117138-1,362.95,2100381 - Collect Services Ltd,vat on fees collect business r recovered 2362.24
Tendring DC,http://statistics.data.gov.uk/id/local-authority-district/22UN,Life Opportunities,"1580 - Benefits, Revenues and Customer Contact SU",4462 - Bailiffs and Tracing Agent Fees re debt recovery,02/12/2014,2117138-2,-362.95,2100381 - Collect Services Ltd,vat on fees collect business r recovered 2362.24
Tendring DC,http://statistics.data.gov.uk/id/local-authority-district/22UN,Life Opportunities,"1580 - Benefits, Revenues and Customer Contact SU",4462 - Bailiffs and Tracing Agent Fees re debt recovery,02/12/2014,2117139-1,417.42,2100381 - Collect Services Ltd,vat on fees collected ct recovered 4133.29
Tendring DC,http://statistics.data.gov.uk/id/local-authority-district/22UN,Life Opportunities,"1580 - Benefits, Revenues and Customer Contact SU",4462 - Bailiffs and Tracing Agent Fees re debt recovery,02/12/2014,2117139-2,-417.42,2100381 - Collect Services Ltd,vat on fees collected ct recovered 4133.29
Tendring DC,http://statistics.data.gov.uk/id/local-authority-district/22UN,Life Opportunities,"1580 - Benefits, Revenues and Customer Contact SU",4462 - Bailiffs and Tracing Agent Fees re debt recovery,02/12/2014,2117140-1,5209.69,2100381 - Collect Services Ltd,vat on fees collected c/t recovered 9831.86
Tendring DC,http://statistics.data.gov.uk/id/local-authority-district/22UN,Life Opportunities,"1580 - Benefits, Revenues and Customer Contact SU",4462 - Bailiffs and Tracing Agent Fees re debt recovery,02/12/2014,2117140-2,-5209.69,2100381 - Collect Services Ltd,vat on fees collected c/t recovered 9831.86
Tendring DC,http://statistics.data.gov.uk/id/local-authority-district/22UN,Life Opportunities,"1580 - Benefits, Revenues and Customer Contact SU",5189 - External Debt Recovery Commission,16/12/2014,2117335-1,204.67,2100381 - Collect Services Ltd,15% commission on 1364.48 recovered
Tendring DC,http://statistics.data.gov.uk/id/local-authority-district/22UN,Life Opportunities,"1580 - Benefits, Revenues and Customer Contact SU",4462 - Bailiffs and Tracing Agent Fees re debt recovery,02/12/2014,7016331-1,2132.04,2100381 - Collect Services Ltd,VAT ON FEES COLLECTED CT ON 4574.42
Tendring DC,http://statistics.data.gov.uk/id/local-authority-district/22UN,Life Opportunities,"1580 - Benefits, Revenues and Customer Contact SU",4462 - Bailiffs and Tracing Agent Fees re debt recovery,02/12/2014,7016331-2,-2132.04,2100381 - Collect Services Ltd,VAT ON FEES COLLECTED CT ON 4574.42
Tendring DC,http://statistics.data.gov.uk/id/local-authority-district/22UN,Life Opportunities,"1580 - Benefits, Revenues and Customer Contact SU",4462 - Bailiffs and Tracing Agent Fees re debt recovery,02/12/2014,7016332-1,923.5,2100381 - Collect Services Ltd,VAT ON FEES COLLECTED NNDR ON 6235.44
Tendring DC,http://statistics.data.gov.uk/id/local-authority-district/22UN,Life Opportunities,"1580 - Benefits, Revenues and Customer Contact SU",4462 - Bailiffs and Tracing Agent Fees re debt recovery,02/12/2014,7016332-2,-923.5,2100381 - Collect Services Ltd,VAT ON FEES COLLECTED NNDR ON 6235.44
Tendring DC,http://statistics.data.gov.uk/id/local-authority-district/22UN,Life Opportunities,"1580 - Benefits, Revenues and Customer Contact SU",4462 - Bailiffs and Tracing Agent Fees re debt recovery,02/12/2014,7016333-1,52.5,2100381 - Collect Services Ltd,VAT ON FEES COLLECTED CT ON 9160.77
Tendring DC,http://statistics.data.gov.uk/id/local-authority-district/22UN,Life Opportunities,"1580 - Benefits, Revenues and Customer Contact SU",4462 - Bailiffs and Tracing Agent Fees re debt recovery,02/12/2014,7016333-2,-52.5,2100381 - Collect Services Ltd,VAT ON FEES COLLECTED CT ON 9160.77
Tendring DC,http://statistics.data.gov.uk/id/local-authority-district/22UN,Life Opportunities,"1580 - Benefits, Revenues and Customer Contact SU",4462 - Bailiffs and Tracing Agent Fees re debt recovery,02/12/2014,7016333-3,2091.66,2100381 - Collect Services Ltd,VAT ON FEES COLLECTED CT ON 9160.77
Tendring DC,http://statistics.data.gov.uk/id/local-authority-district/22UN,Life Opportunities,"1580 - Benefits, Revenues and Customer Contact SU",4462 - Bailiffs and Tracing Agent Fees re debt recovery,02/12/2014,7016333-4,-2091.66,2100381 - Collect Services Ltd,VAT ON FEES COLLECTED CT ON 9160.77
Tendring DC,http://statistics.data.gov.uk/id/local-authority-district/22UN,Life Opportunities,"1580 - Benefits, Revenues and Customer Contact SU",4462 - Bailiffs and Tracing Agent Fees re debt recovery,02/12/2014,7016334-1,5,2100381 - Collect Services Ltd,LEVY FEE PAID DIRECT
Tendring DC,http://statistics.data.gov.uk/id/local-authority-district/22UN,Life Opportunities,"1580 - Benefits, Revenues and Customer Contact SU",4462 - Bailiffs and Tracing Agent Fees re debt recovery,02/12/2014,7016338-1,5,2100381 - Collect Services Ltd,VAT ON FEES COLLECTED CT ON 3754.86
Tendring DC,http://statistics.data.gov.uk/id/local-authority-district/22UN,Life Opportunities,"1580 - Benefits, Revenues and Customer Contact SU",4462 - Bailiffs and Tracing Agent Fees re debt recovery,02/12/2014,7016338-2,-5,2100381 - Collect Services Ltd,VAT ON FEES COLLECTED CT ON 3754.86
Tendring DC,http://statistics.data.gov.uk/id/local-authority-district/22UN,Life Opportunities,"1580 - Benefits, Revenues and Customer Contact SU",4462 - Bailiffs and Tracing Agent Fees re debt recovery,02/12/2014,7016338-3,2.5,2100381 - Collect Services Ltd,VAT ON FEES COLLECTED CT ON 3754.86
Tendring DC,http://statistics.data.gov.uk/id/local-authority-district/22UN,Life Opportunities,"1580 - Benefits, Revenues and Customer Contact SU",4462 - Bailiffs and Tracing Agent Fees re debt recovery,02/12/2014,7016338-4,-2.5,2100381 - Collect Services Ltd,VAT ON FEES COLLECTED CT ON 3754.86
Tendring DC,http://statistics.data.gov.uk/id/local-authority-district/22UN,Life Opportunities,"1580 - Benefits, Revenues and Customer Contact SU",4462 - Bailiffs and Tracing Agent Fees re debt recovery,02/12/2014,7016338-5,600.99,2100381 - Collect Services Ltd,VAT ON FEES COLLECTED CT ON 3754.86
Tendring DC,http://statistics.data.gov.uk/id/local-authority-district/22UN,Life Opportunities,"1580 - Benefits, Revenues and Customer Contact SU",4462 - Bailiffs and Tracing Agent Fees re debt recovery,02/12/2014,7016338-6,-600.99,2100381 - Collect Services Ltd,VAT ON FEES COLLECTED CT ON 3754.86
Tendring DC,http://statistics.data.gov.uk/id/local-authority-district/22UN,Life Opportunities,"1580 - Benefits, Revenues and Customer Contact SU",4462 - Bailiffs and Tracing Agent Fees re debt recovery,09/12/2014,7016392-1,705.11,2100381 - Collect Services Ltd,VAT ON FEES COLLECTED CT ON 4079.46
Tendring DC,http://statistics.data.gov.uk/id/local-authority-district/22UN,Life Opportunities,"1580 - Benefits, Revenues and Customer Contact SU",4462 - Bailiffs and Tracing Agent Fees re debt recovery,09/12/2014,7016392-2,-705.11,2100381 - Collect Services Ltd,VAT ON FEES COLLECTED CT ON 4079.46
Tendring DC,http://statistics.data.gov.uk/id/local-authority-district/22UN,Life Opportunities,"1580 - Benefits, Revenues and Customer Contact SU",4462 - Bailiffs and Tracing Agent Fees re debt recovery,09/12/2014,7016393-1,5107.3,2100381 - Collect Services Ltd,VAT ON FEES COLLECTED CT ON 11152.50
Tendring DC,http://statistics.data.gov.uk/id/local-authority-district/22UN,Life Opportunities,"1580 - Benefits, Revenues and Customer Contact SU",4462 - Bailiffs and Tracing Agent Fees re debt recovery,09/12/2014,7016393-2,-5107.3,2100381 - Collect Services Ltd,VAT ON FEES COLLECTED CT ON 11152.50
Tendring DC,http://statistics.data.gov.uk/id/local-authority-district/22UN,Life Opportunities,"1580 - Benefits, Revenues and Customer Contact SU",4462 - Bailiffs and Tracing Agent Fees re debt recovery,09/12/2014,7016394-1,1169.26,2100381 - Collect Services Ltd,VAT ON FEES COLLECTED NNDR ON 12363.88
Tendring DC,http://statistics.data.gov.uk/id/local-authority-district/22UN,Life Opportunities,"1580 - Benefits, Revenues and Customer Contact SU",4462 - Bailiffs and Tracing Agent Fees re debt recovery,09/12/2014,7016394-2,-1169.26,2100381 - Collect Services Ltd,VAT ON FEES COLLECTED NNDR ON 12363.88
Tendring DC,http://statistics.data.gov.uk/id/local-authority-district/22UN,Life Opportunities,"1580 - Benefits, Revenues and Customer Contact SU",4462 - Bailiffs and Tracing Agent Fees re debt recovery,09/12/2014,7016395-1,202,2100381 - Collect Services Ltd,VAT ON FEES COLLECTED NNDR ON 600
Tendring DC,http://statistics.data.gov.uk/id/local-authority-district/22UN,Life Opportunities,"1580 - Benefits, Revenues and Customer Contact SU",4462 - Bailiffs and Tracing Agent Fees re debt recovery,09/12/2014,7016395-2,-202,2100381 - Collect Services Ltd,VAT ON FEES COLLECTED NNDR ON 600
Tendring DC,http://statistics.data.gov.uk/id/local-authority-district/22UN,Life Opportunities,"1580 - Benefits, Revenues and Customer Contact SU",4462 - Bailiffs and Tracing Agent Fees re debt recovery,16/12/2014,7016563-1,4853.5,2100381 - Collect Services Ltd,VAT ON FEES COLLECTED ON 13373.63
Tendring DC,http://statistics.data.gov.uk/id/local-authority-district/22UN,Life Opportunities,"1580 - Benefits, Revenues and Customer Contact SU",4462 - Bailiffs and Tracing Agent Fees re debt recovery,16/12/2014,7016563-2,-4853.5,2100381 - Collect Services Ltd,VAT ON FEES COLLECTED ON 13373.63
Tendring DC,http://statistics.data.gov.uk/id/local-authority-district/22UN,Life Opportunities,"1580 - Benefits, Revenues and Customer Contact SU",4462 - Bailiffs and Tracing Agent Fees re debt recovery,16/12/2014,7016564-1,354.75,2100381 - Collect Services Ltd,VAT ON FEES COLLECTED CT ON 3472.23
Tendring DC,http://statistics.data.gov.uk/id/local-authority-district/22UN,Life Opportunities,"1580 - Benefits, Revenues and Customer Contact SU",4462 - Bailiffs and Tracing Agent Fees re debt recovery,16/12/2014,7016564-2,-354.75,2100381 - Collect Services Ltd,VAT ON FEES COLLECTED CT ON 3472.23
Tendring DC,http://statistics.data.gov.uk/id/local-authority-district/22UN,Life Opportunities,"1580 - Benefits, Revenues and Customer Contact SU",4462 - Bailiffs and Tracing Agent Fees re debt recovery,16/12/2014,7016565-1,96.5,2100381 - Collect Services Ltd,VAT ON FEES COLLECTED NNDR ON 503.50
Tendring DC,http://statistics.data.gov.uk/id/local-authority-district/22UN,Life Opportunities,"1580 - Benefits, Revenues and Customer Contact SU",4462 - Bailiffs and Tracing Agent Fees re debt recovery,16/12/2014,7016565-2,-96.5,2100381 - Collect Services Ltd,VAT ON FEES COLLECTED NNDR ON 503.50
Tendring DC,http://statistics.data.gov.uk/id/local-authority-district/22UN,Life Opportunities,"1580 - Benefits, Revenues and Customer Contact SU",4462 - Bailiffs and Tracing Agent Fees re debt recovery,22/12/2014,7016707-1,523.75,2100381 - Collect Services Ltd,VAT ON FEES COLLECTED CT ON 4507.60
Tendring DC,http://statistics.data.gov.uk/id/local-authority-district/22UN,Life Opportunities,"1580 - Benefits, Revenues and Customer Contact SU",4462 - Bailiffs and Tracing Agent Fees re debt recovery,22/12/2014,7016707-2,-523.75,2100381 - Collect Services Ltd,VAT ON FEES COLLECTED CT ON 4507.60
Tendring DC,http://statistics.data.gov.uk/id/local-authority-district/22UN,Life Opportunities,"1580 - Benefits, Revenues and Customer Contact SU",4462 - Bailiffs and Tracing Agent Fees re debt recovery,22/12/2014,7016708-1,6322.11,2100381 - Collect Services Ltd,VAT ON FEES COLLECTED
Tendring DC,http://statistics.data.gov.uk/id/local-authority-district/22UN,Life Opportunities,"1580 - Benefits, Revenues and Customer Contact SU",4462 - Bailiffs and Tracing Agent Fees re debt recovery,22/12/2014,7016708-2,-6322.11,2100381 - Collect Services Ltd,VAT ON FEES COLLECTED
Tendring DC,http://statistics.data.gov.uk/id/local-authority-district/22UN,Life Opportunities,"1580 - Benefits, Revenues and Customer Contact SU",4462 - Bailiffs and Tracing Agent Fees re debt recovery,22/12/2014,7016709-1,135.59,2100381 - Collect Services Ltd,VAT ON FEES COLLECTED NNDR ON 909.41
Tendring DC,http://statistics.data.gov.uk/id/local-authority-district/22UN,Life Opportunities,"1580 - Benefits, Revenues and Customer Contact SU",4462 - Bailiffs and Tracing Agent Fees re debt recovery,22/12/2014,7016709-2,-135.59,2100381 - Collect Services Ltd,VAT ON FEES COLLECTED NNDR ON 909.41
Tendring DC,http://statistics.data.gov.uk/id/local-authority-district/22UN,Life Opportunities,"1580 - Benefits, Revenues and Customer Contact SU",4462 - Bailiffs and Tracing Agent Fees re debt recovery,22/12/2014,7016710-1,100,2100381 - Collect Services Ltd,VAT ON FEES COLLECTED NNDR ON 300
Tendring DC,http://statistics.data.gov.uk/id/local-authority-district/22UN,Life Opportunities,"1580 - Benefits, Revenues and Customer Contact SU",4462 - Bailiffs and Tracing Agent Fees re debt recovery,22/12/2014,7016710-2,-100,2100381 - Collect Services Ltd,VAT ON FEES COLLECTED NNDR ON 300
Tendring DC,http://statistics.data.gov.uk/id/local-authority-district/22UN,Life Opportunities,9900 - General Fund Balance Sheet,B863 - Bailiff Payments Holding Account,02/12/2014,1061929-1,2654,REDACTED COMMERCIAL CONFIDENTIALITY,REDACTED COMMERCIAL CONFIDENTIALITY
Tendring DC,http://statistics.data.gov.uk/id/local-authority-district/22UN,Life Opportunities,9900 - General Fund Balance Sheet,B863 - Bailiff Payments Holding Account,09/12/2014,1062001-1,2577.7,REDACTED COMMERCIAL CONFIDENTIALITY,REDACTED COMMERCIAL CONFIDENTIALITY
Tendring DC,http://statistics.data.gov.uk/id/local-authority-district/22UN,Life Opportunities,9900 - General Fund Balance Sheet,B863 - Bailiff Payments Holding Account,16/12/2014,1062067-1,2702.2,REDACTED COMMERCIAL CONFIDENTIALITY,REDACTED COMMERCIAL CONFIDENTIALITY
Tendring DC,http://statistics.data.gov.uk/id/local-authority-district/22UN,Life Opportunities,9900 - General Fund Balance Sheet,B863 - Bailiff Payments Holding Account,22/12/2014,1062171-1,2566.5,REDACTED COMMERCIAL CONFIDENTIALITY,REDACTED COMMERCIAL CONFIDENTIALITY
Tendring DC,http://statistics.data.gov.uk/id/local-authority-district/22UN,Life Opportunities,8520 - Frinton & Walton Swimming Pool,1700 - Training - Courses,16/12/2014,1062059-1,70,REDACTED PERSONAL DATA,REDACTED PERSONAL DATA
Tendring DC,http://statistics.data.gov.uk/id/local-authority-district/22UN,Life Opportunities,5140 - Homelessness,4689 - Special Homelessness Projects Expenses,02/12/2014,2117133-1,471.83,REDACTED PERSONAL DATA,REDACTED PERSONAL DATA
Tendring DC,http://statistics.data.gov.uk/id/local-authority-district/22UN,Life Opportunities,5140 - Homelessness,4689 - Special Homelessness Projects Expenses,16/12/2014,2117349-1,1685.43,REDACTED PERSONAL DATA,REDACTED PERSONAL DATA
Tendring DC,http://statistics.data.gov.uk/id/local-authority-district/22UN,Life Opportunities,5365 - HRA - Colne Housing Soc Shel Units,4404 - Service Agreement - Foundry Court,22/12/2014,2117414-1,1404.91,2100342 - Colne Housing Society Ltd,3rd quarter
Tendring DC,http://statistics.data.gov.uk/id/local-authority-district/22UN,Life Opportunities,6355 - Community Activity Network,4597 - Hired Services - Payments to Contractors,16/12/2014,2117306-1,128,2112705 - Continental Sports Ltd,tramp throw in mat
Tendring DC,http://statistics.data.gov.uk/id/local-authority-district/22UN,Life Opportunities,1880 - Office Accommodation Expenses,2100 - Building Repairs,02/12/2014,1061893-1,97.7,2100314 - Cooper & Brome (Plumbing & Heating) Ltd,RADIATOR REPAIR ROOM 57
Tendring DC,http://statistics.data.gov.uk/id/local-authority-district/22UN,Life Opportunities,5820 - Harwich Sports Centre,4400 - Maintenance Under Service Agreements,02/12/2014,1061894-1,232,2100314 - Cooper & Brome (Plumbing & Heating) Ltd,ANNUAL BOILER SERVICE
Tendring DC,http://statistics.data.gov.uk/id/local-authority-district/22UN,Life Opportunities,5800 - Brightlingsea Sports Centre,2100 - Building Repairs,16/12/2014,1062031-1,196.64,2100314 - Cooper & Brome (Plumbing & Heating) Ltd,COLD WATER SUPPLY VENDING MACHINE
Tendring DC,http://statistics.data.gov.uk/id/local-authority-district/22UN,Life Opportunities,H920 - Disabled Facilities Grants,C400 - Grant payments,16/12/2014,1062041-1,5000,REDACTED PERSONAL DATA,REDACTED PERSONAL DATA
Tendring DC,http://statistics.data.gov.uk/id/local-authority-district/22UN,Life Opportunities,1860 - Depots General,2308 - Energy Costs - Gas (Including LPG),02/12/2014,7016340-1,36.99,2104620 - Corona Energy Retail 4 Limited,CORONA GAS OCT 14
Tendring DC,http://statistics.data.gov.uk/id/local-authority-district/22UN,Life Opportunities,1880 - Office Accommodation Expenses,2308 - Energy Costs - Gas (Including LPG),02/12/2014,7016340-2,562.49,2104620 - Corona Energy Retail 4 Limited,CORONA GAS OCT 14
Tendring DC,http://statistics.data.gov.uk/id/local-authority-district/22UN,Life Opportunities,1880 - Office Accommodation Expenses,2308 - Energy Costs - Gas (Including LPG),02/12/2014,7016340-3,14.57,2104620 - Corona Energy Retail 4 Limited,CORONA GAS OCT 14
Tendring DC,http://statistics.data.gov.uk/id/local-authority-district/22UN,Life Opportunities,1880 - Office Accommodation Expenses,2308 - Energy Costs - Gas (Including LPG),02/12/2014,7016340-4,-9.08,2104620 - Corona Energy Retail 4 Limited,CORONA GAS OCT 14
Tendring DC,http://statistics.data.gov.uk/id/local-authority-district/22UN,Life Opportunities,1880 - Office Accommodation Expenses,2308 - Energy Costs - Gas (Including LPG),02/12/2014,7016340-5,57.35,2104620 - Corona Energy Retail 4 Limited,CORONA GAS OCT 14
Tendring DC,http://statistics.data.gov.uk/id/local-authority-district/22UN,Life Opportunities,1880 - Office Accommodation Expenses,2308 - Energy Costs - Gas (Including LPG),02/12/2014,7016340-6,33.9,2104620 - Corona Energy Retail 4 Limited,CORONA GAS OCT 14
Tendring DC,http://statistics.data.gov.uk/id/local-authority-district/22UN,Life Opportunities,8540 - Leisure Centre Clacton,2308 - Energy Costs - Gas (Including LPG),22/12/2014,7016693-1,1747.47,2104620 - Corona Energy Retail 4 Limited,NOVEMBER
Tendring DC,http://statistics.data.gov.uk/id/local-authority-district/22UN,Life Opportunities,5240 - HRA - Managing Tenancies,5242 - Tenant Relations,16/12/2014,2117299-1,1364.4,2104177 - Corporate Document Services Ltd,tendring reports issue 2 2014
Tendring DC,http://statistics.data.gov.uk/id/local-authority-district/22UN,Life Opportunities,5240 - HRA - Managing Tenancies,5242 - Tenant Relations,22/12/2014,2117411-1,259.2,2104177 - Corporate Document Services Ltd,tendring questionnaires
Tendring DC,http://statistics.data.gov.uk/id/local-authority-district/22UN,Life Opportunities,5240 - HRA - Managing Tenancies,5242 - Tenant Relations,02/12/2014,7016293-1,2607.6,2104177 - Corporate Document Services Ltd,TENDRING ANNUAL REPORT 2014/15
Tendring DC,http://statistics.data.gov.uk/id/local-authority-district/22UN,Life Opportunities,5140 - Homelessness,4683 - Other Homelessness Expenses,09/12/2014,7016419-1,550,REDACTED PERSONAL DATA,REDACTED PERSONAL DATA
Tendring DC,http://statistics.data.gov.uk/id/local-authority-district/22UN,Life Opportunities,8540 - Leisure Centre Clacton,2100 - Building Repairs,09/12/2014,2117236-1,968,2100183 - CR Services,repair spa lights
Tendring DC,http://statistics.data.gov.uk/id/local-authority-district/22UN,Life Opportunities,8540 - Leisure Centre Clacton,2100 - Building Repairs,09/12/2014,2117237-1,1100,2100183 - CR Services,replace awp & sk8 lights
Tendring DC,http://statistics.data.gov.uk/id/local-authority-district/22UN,Life Opportunities,8540 - Leisure Centre Clacton,2100 - Building Repairs,09/12/2014,2117238-1,181.5,2100183 - CR Services,repair spa entrance lights
Tendring DC,http://statistics.data.gov.uk/id/local-authority-district/22UN,Life Opportunities,8520 - Frinton & Walton Swimming Pool,2100 - Building Repairs,16/12/2014,2117285-1,365.75,2100183 - CR Services,fwsp - cr services
Tendring DC,http://statistics.data.gov.uk/id/local-authority-district/22UN,Life Opportunities,8520 - Frinton & Walton Swimming Pool,2100 - Building Repairs,16/12/2014,2117286-1,65.75,2100183 - CR Services,fwsp - cr services
Tendring DC,http://statistics.data.gov.uk/id/local-authority-district/22UN,Life Opportunities,8540 - Leisure Centre Clacton,2100 - Building Repairs,02/12/2014,7016268-1,335.28,2100183 - CR Services,EMERGENCY LIGHT FAULT
Tendring DC,http://statistics.data.gov.uk/id/local-authority-district/22UN,Life Opportunities,8540 - Leisure Centre Clacton,2100 - Building Repairs,02/12/2014,7016269-1,205,2100183 - CR Services,SAUNARIUM REPAIRS
Tendring DC,http://statistics.data.gov.uk/id/local-authority-district/22UN,Life Opportunities,6160 - Princes Theatre,5160 - Advertising,09/12/2014,2117246-1,500,2114593 - Crystal Publications Limited,advert in celebrate in essex
Tendring DC,http://statistics.data.gov.uk/id/local-authority-district/22UN,Life Opportunities,6160 - Princes Theatre,4220 - Laundry,16/12/2014,7016459-1,5.68,2100397 - Danes of Colchester Ltd,DRY CLEANING OCT 14
Tendring DC,http://statistics.data.gov.uk/id/local-authority-district/22UN,Life Opportunities,6160 - Princes Theatre,4220 - Laundry,16/12/2014,7016460-1,60.71,2100397 - Danes of Colchester Ltd,DRY CLEANING NOV 14
Tendring DC,http://statistics.data.gov.uk/id/local-authority-district/22UN,Life Opportunities,5480 - HRA - Repair & Maintenance,2071 - Electric Installation Testing,22/12/2014,1062165-1,5148.81,2113648 - David Stagg and Associates Ltd,TEST INSPECT UPGRADE AND REWIRE 41 PROPERTIES
Tendring DC,http://statistics.data.gov.uk/id/local-authority-district/22UN,Life Opportunities,5480 - HRA - Repair & Maintenance,2072 - Planned Partial Refurbishment To Electrical Instal,22/12/2014,1062165-2,28044.69,2113648 - David Stagg and Associates Ltd,TEST INSPECT UPGRADE AND REWIRE 41 PROPERTIES
Tendring DC,http://statistics.data.gov.uk/id/local-authority-district/22UN,Life Opportunities,H810 - Electrical Re-wiring,C200 - Main Contractor,22/12/2014,1062165-3,4552.78,2113648 - David Stagg and Associates Ltd,TEST INSPECT UPGRADE AND REWIRE 41 PROPERTIES
Tendring DC,http://statistics.data.gov.uk/id/local-authority-district/22UN,Life Opportunities,1880 - Office Accommodation Expenses,2100 - Building Repairs,09/12/2014,2117250-1,3151,2113648 - David Stagg and Associates Ltd,eicr test at weeley
Tendring DC,http://statistics.data.gov.uk/id/local-authority-district/22UN,Life Opportunities,1880 - Office Accommodation Expenses,2100 - Building Repairs,16/12/2014,2117371-1,117,2108384 - DC Drains & Plumbing Services,clearing drains
Tendring DC,http://statistics.data.gov.uk/id/local-authority-district/22UN,Life Opportunities,1880 - Office Accommodation Expenses,2100 - Building Repairs,16/12/2014,7016501-1,228,2108384 - DC Drains & Plumbing Services,PLUMBING WORKS KITCHEN DAMIANS OFFICE
Tendring DC,http://statistics.data.gov.uk/id/local-authority-district/22UN,Life Opportunities,1880 - Office Accommodation Expenses,2100 - Building Repairs,16/12/2014,7016502-1,39,2108384 - DC Drains & Plumbing Services,LEAK @ BARNES HOUSE
Tendring DC,http://statistics.data.gov.uk/id/local-authority-district/22UN,Life Opportunities,5880 - Management Of Sport & Leisure Facilities,5166 - Marketing and Promotion,09/12/2014,1061958-1,167.4,2103510 - Direct Solutions,MEMBER AGREEMENTS HSC
Tendring DC,http://statistics.data.gov.uk/id/local-authority-district/22UN,Life Opportunities,5880 - Management Of Sport & Leisure Facilities,5166 - Marketing and Promotion,22/12/2014,7016703-1,168,2103510 - Direct Solutions,DOVERCOURT BAY MEM AGREE
Tendring DC,http://statistics.data.gov.uk/id/local-authority-district/22UN,Life Opportunities,5480 - HRA - Repair & Maintenance,2068 - Other Minor Equipment Repairs,09/12/2014,7016429-1,505.98,REDACTED PERSONAL DATA,REDACTED PERSONAL DATA
Tendring DC,http://statistics.data.gov.uk/id/local-authority-district/22UN,Life Opportunities,5960 - Recreation Grounds,2100 - Building Repairs,02/12/2014,2117132-1,260,2100422 - DTA Consultants Analytical Chemists,dovercourt putting green
Tendring DC,http://statistics.data.gov.uk/id/local-authority-district/22UN,Life Opportunities,8530 - Brightlingsea Swimming Pool,2304 - Energy Costs - Electricity,16/12/2014,2117302-1,1616.91,2107644 - E.ON,18/9/14 to 20/11/14
Tendring DC,http://statistics.data.gov.uk/id/local-authority-district/22UN,Life Opportunities,5360 - HRA - Sheltered Units,2304 - Energy Costs - Electricity,02/12/2014,7016277-1,44.25,REDACTED PERSONAL DATA,REDACTED PERSONAL DATA
Tendring DC,http://statistics.data.gov.uk/id/local-authority-district/22UN,Life Opportunities,5440 - HRA - Communal Electricity,2304 - Energy Costs - Electricity,16/12/2014,7016553-1,35.43,2107644 - E.ON,ABBOTT ROAD
Tendring DC,http://statistics.data.gov.uk/id/local-authority-district/22UN,Life Opportunities,5360 - HRA - Sheltered Units,2304 - Energy Costs - Electricity,16/12/2014,7016554-1,171.64,REDACTED PERSONAL DATA,REDACTED PERSONAL DATA
Tendring DC,http://statistics.data.gov.uk/id/local-authority-district/22UN,Life Opportunities,5360 - HRA - Sheltered Units,2304 - Energy Costs - Electricity,16/12/2014,7016555-1,20.07,REDACTED PERSONAL DATA,REDACTED PERSONAL DATA
Tendring DC,http://statistics.data.gov.uk/id/local-authority-district/22UN,Life Opportunities,8540 - Leisure Centre Clacton,2304 - Energy Costs - Electricity,22/12/2014,1062133-1,7353,2105146 - EDF Energy 1 Ltd,NOVEMBER
Tendring DC,http://statistics.data.gov.uk/id/local-authority-district/22UN,Life Opportunities,1880 - Office Accommodation Expenses,2304 - Energy Costs - Electricity,16/12/2014,2117292-1,5076.41,2105146 - EDF Energy 1 Ltd,electricity town hall nov 14
Tendring DC,http://statistics.data.gov.uk/id/local-authority-district/22UN,Life Opportunities,6160 - Princes Theatre,2304 - Energy Costs - Electricity,16/12/2014,2117292-2,564.04,2105146 - EDF Energy 1 Ltd,electricity town hall nov 14
Tendring DC,http://statistics.data.gov.uk/id/local-authority-district/22UN,Life Opportunities,8510 - Dovercourt Swimming Pool & All Weather Facilities,2304 - Energy Costs - Electricity,22/12/2014,7016619-1,3591.36,2105146 - EDF Energy 1 Ltd,EDF - DBL
Tendring DC,http://statistics.data.gov.uk/id/local-authority-district/22UN,Life Opportunities,5140 - Homelessness,4683 - Other Homelessness Expenses,02/12/2014,1061909-1,9.25,REDACTED PERSONAL DATA,REDACTED PERSONAL DATA
Tendring DC,http://statistics.data.gov.uk/id/local-authority-district/22UN,Life Opportunities,H920 - Disabled Facilities Grants,C400 - Grant payments,09/12/2014,1061975-1,2045,REDACTED PERSONAL DATA,REDACTED PERSONAL DATA
Tendring DC,http://statistics.data.gov.uk/id/local-authority-district/22UN,Life Opportunities,H920 - Disabled Facilities Grants,C400 - Grant payments,22/12/2014,1062080-1,5668,REDACTED PERSONAL DATA,REDACTED PERSONAL DATA
Tendring DC,http://statistics.data.gov.uk/id/local-authority-district/22UN,Life Opportunities,H920 - Disabled Facilities Grants,C400 - Grant payments,02/12/2014,2117149-1,239,REDACTED PERSONAL DATA,REDACTED PERSONAL DATA
Tendring DC,http://statistics.data.gov.uk/id/local-authority-district/22UN,Life Opportunities,H920 - Disabled Facilities Grants,C400 - Grant payments,02/12/2014,2117150-1,5040,REDACTED PERSONAL DATA,REDACTED PERSONAL DATA
Tendring DC,http://statistics.data.gov.uk/id/local-authority-district/22UN,Life Opportunities,7520 - Tourism Publicity Marketing Promotion,5160 - Advertising,16/12/2014,2117282-1,200,2100498 - Essex County Council,visit essex guide
Tendring DC,http://statistics.data.gov.uk/id/local-authority-district/22UN,Life Opportunities,8540 - Leisure Centre Clacton,2100 - Building Repairs,22/12/2014,7016696-1,466.61,2111548 - Essex Lift Services Ltd,LIFT REPAIRS
Tendring DC,http://statistics.data.gov.uk/id/local-authority-district/22UN,Life Opportunities,H920 - Disabled Facilities Grants,C400 - Grant payments,16/12/2014,1062042-1,2830,REDACTED PERSONAL DATA,REDACTED PERSONAL DATA
Tendring DC,http://statistics.data.gov.uk/id/local-authority-district/22UN,Life Opportunities,H920 - Disabled Facilities Grants,C400 - Grant payments,02/12/2014,2117148-1,5075,REDACTED PERSONAL DATA,REDACTED PERSONAL DATA
Tendring DC,http://statistics.data.gov.uk/id/local-authority-district/22UN,Life Opportunities,5480 - HRA - Repair & Maintenance,2058 - Fire Alarms Repairs,09/12/2014,2117252-1,50,2108583 - Firesite,1-30 Vyntoner House
Tendring DC,http://statistics.data.gov.uk/id/local-authority-district/22UN,Life Opportunities,5480 - HRA - Repair & Maintenance,2058 - Fire Alarms Repairs,09/12/2014,2117253-1,50,2108583 - Firesite,1-29 crooked elms
Tendring DC,http://statistics.data.gov.uk/id/local-authority-district/22UN,Life Opportunities,5480 - HRA - Repair & Maintenance,2058 - Fire Alarms Repairs,09/12/2014,2117254-1,50,2108583 - Firesite,1-30 Vyntoner House
Tendring DC,http://statistics.data.gov.uk/id/local-authority-district/22UN,Life Opportunities,5480 - HRA - Repair & Maintenance,2058 - Fire Alarms Repairs,09/12/2014,2117255-1,135,2108583 - Firesite,1-31 mead house
Tendring DC,http://statistics.data.gov.uk/id/local-authority-district/22UN,Life Opportunities,5480 - HRA - Repair & Maintenance,2057 - Fire Alarms Servicing,09/12/2014,2117256-1,135,2108583 - Firesite,1-31 mead house
Tendring DC,http://statistics.data.gov.uk/id/local-authority-district/22UN,Life Opportunities,5480 - HRA - Repair & Maintenance,2058 - Fire Alarms Repairs,16/12/2014,2117358-1,190,2108583 - Firesite,1-32 honeycroft
Tendring DC,http://statistics.data.gov.uk/id/local-authority-district/22UN,Life Opportunities,5480 - HRA - Repair & Maintenance,2057 - Fire Alarms Servicing,09/12/2014,7016425-1,110,REDACTED PERSONAL DATA,REDACTED PERSONAL DATA
Tendring DC,http://statistics.data.gov.uk/id/local-authority-district/22UN,Life Opportunities,5480 - HRA - Repair & Maintenance,2058 - Fire Alarms Repairs,09/12/2014,7016425-2,40,REDACTED PERSONAL DATA,REDACTED PERSONAL DATA
Tendring DC,http://statistics.data.gov.uk/id/local-authority-district/22UN,Life Opportunities,5480 - HRA - Repair & Maintenance,2057 - Fire Alarms Servicing,09/12/2014,7016426-1,160,REDACTED PERSONAL DATA,REDACTED PERSONAL DATA
Tendring DC,http://statistics.data.gov.uk/id/local-authority-district/22UN,Life Opportunities,5480 - HRA - Repair & Maintenance,2057 - Fire Alarms Servicing,22/12/2014,7016601-1,150,2108583 - Firesite,GREENFIELDS
Tendring DC,http://statistics.data.gov.uk/id/local-authority-district/22UN,Life Opportunities,5480 - HRA - Repair & Maintenance,2057 - Fire Alarms Servicing,22/12/2014,7016621-1,110,2108583 - Firesite,VYNTONER HOUSE
Tendring DC,http://statistics.data.gov.uk/id/local-authority-district/22UN,Life Opportunities,5480 - HRA - Repair & Maintenance,2058 - Fire Alarms Repairs,22/12/2014,7016621-2,40,2108583 - Firesite,VYNTONER HOUSE
Tendring DC,http://statistics.data.gov.uk/id/local-authority-district/22UN,Life Opportunities,7600 - Tourist Information Centres,9356 - Commission Sales,09/12/2014,7016415-1,2470,2103743 - First Essex Buses Ltd,FIRST ESSEX BUSES NOVEMBER 14
Tendring DC,http://statistics.data.gov.uk/id/local-authority-district/22UN,Life Opportunities,7600 - Tourist Information Centres,9356 - Commission Sales,09/12/2014,7016415-2,-247,2103743 - First Essex Buses Ltd,FIRST ESSEX BUSES NOVEMBER 14
Tendring DC,http://statistics.data.gov.uk/id/local-authority-district/22UN,Life Opportunities,1880 - Office Accommodation Expenses,2100 - Building Repairs,16/12/2014,2117278-1,111.66,2100584 - Frinton & Walton Town Council,frinton cash office cleaning nov 14
Tendring DC,http://statistics.data.gov.uk/id/local-authority-district/22UN,Life Opportunities,H920 - Disabled Facilities Grants,C400 - Grant payments,09/12/2014,1061983-1,3718.99,REDACTED PERSONAL DATA,REDACTED PERSONAL DATA
Tendring DC,http://statistics.data.gov.uk/id/local-authority-district/22UN,Life Opportunities,H920 - Disabled Facilities Grants,C400 - Grant payments,09/12/2014,1061977-1,4000,REDACTED PERSONAL DATA,REDACTED PERSONAL DATA
Tendring DC,http://statistics.data.gov.uk/id/local-authority-district/22UN,Life Opportunities,H920 - Disabled Facilities Grants,C400 - Grant payments,22/12/2014,1062084-1,526.46,REDACTED PERSONAL DATA,REDACTED PERSONAL DATA
Tendring DC,http://statistics.data.gov.uk/id/local-authority-district/22UN,Life Opportunities,H920 - Disabled Facilities Grants,C400 - Grant payments,22/12/2014,1062085-1,4000,REDACTED PERSONAL DATA,REDACTED PERSONAL DATA
Tendring DC,http://statistics.data.gov.uk/id/local-authority-district/22UN,Life Opportunities,5800 - Brightlingsea Sports Centre,2100 - Building Repairs,02/12/2014,1061887-1,500,2114445 - Gary Warnes,GARY WARNES-PAINTING
Tendring DC,http://statistics.data.gov.uk/id/local-authority-district/22UN,Life Opportunities,8510 - Dovercourt Swimming Pool & All Weather Facilities,2100 - Building Repairs,09/12/2014,1061994-1,180,2114445 - Gary Warnes,
Tendring DC,http://statistics.data.gov.uk/id/local-authority-district/22UN,Life Opportunities,8510 - Dovercourt Swimming Pool & All Weather Facilities,2100 - Building Repairs,09/12/2014,1061995-1,200,2114445 - Gary Warnes,G WARNES PAINT STAIRS
Tendring DC,http://statistics.data.gov.uk/id/local-authority-district/22UN,Life Opportunities,8510 - Dovercourt Swimming Pool & All Weather Facilities,2100 - Building Repairs,09/12/2014,2117204-1,180,2114445 - Gary Warnes,paint -dsp stairs
Tendring DC,http://statistics.data.gov.uk/id/local-authority-district/22UN,Life Opportunities,5800 - Brightlingsea Sports Centre,2100 - Building Repairs,16/12/2014,2117301-1,515,2114445 - Gary Warnes,2nd part of painting at bsc
Tendring DC,http://statistics.data.gov.uk/id/local-authority-district/22UN,Life Opportunities,H920 - Disabled Facilities Grants,C400 - Grant payments,09/12/2014,1061976-1,5243.25,REDACTED PERSONAL DATA,REDACTED PERSONAL DATA
Tendring DC,http://statistics.data.gov.uk/id/local-authority-district/22UN,Life Opportunities,H920 - Disabled Facilities Grants,C400 - Grant payments,16/12/2014,1062044-1,4489,REDACTED PERSONAL DATA,REDACTED PERSONAL DATA
Tendring DC,http://statistics.data.gov.uk/id/local-authority-district/22UN,Life Opportunities,H920 - Disabled Facilities Grants,C400 - Grant payments,02/12/2014,2117147-1,1167,REDACTED PERSONAL DATA,REDACTED PERSONAL DATA
Tendring DC,http://statistics.data.gov.uk/id/local-authority-district/22UN,Life Opportunities,5820 - Harwich Sports Centre,4400 - Maintenance Under Service Agreements,22/12/2014,7016684-1,359,2100546 - GCS Alarms,ANNUAL MAINT CHARGE
Tendring DC,http://statistics.data.gov.uk/id/local-authority-district/22UN,Life Opportunities,5480 - HRA - Repair & Maintenance,2018 - Other Responsive Repairs,09/12/2014,2117257-1,26.5,REDACTED PERSONAL DATA,REDACTED PERSONAL DATA
Tendring DC,http://statistics.data.gov.uk/id/local-authority-district/22UN,Life Opportunities,5480 - HRA - Repair & Maintenance,2018 - Other Responsive Repairs,16/12/2014,2117339-1,150,REDACTED PERSONAL DATA,REDACTED PERSONAL DATA
Tendring DC,http://statistics.data.gov.uk/id/local-authority-district/22UN,Life Opportunities,H920 - Disabled Facilities Grants,C400 - Grant payments,22/12/2014,1062089-1,6520,REDACTED PERSONAL DATA,REDACTED PERSONAL DATA
Tendring DC,http://statistics.data.gov.uk/id/local-authority-district/22UN,Life Opportunities,C149 - Dovercourt Swimming Pool - redevelopment,C200 - Main Contractor,09/12/2014,1062006-1,170721.96,2114081 - Gipping Construction Ltd,DOVERCOURT POOL UPGRADE
Tendring DC,http://statistics.data.gov.uk/id/local-authority-district/22UN,Life Opportunities,7520 - Tourism Publicity Marketing Promotion,5160 - Advertising,02/12/2014,2117119-1,200,2114571 - Glassball,journeyer project launch
Tendring DC,http://statistics.data.gov.uk/id/local-authority-district/22UN,Life Opportunities,1242 - Corporate Director (Life Opportunities),1710 - Training - Central Department Budget,22/12/2014,7016671-1,395,2101694 - GovNet Communications,EFFECTIVE DIGITAL ENGAGEMENT COURSE B POLE 15.1.15
Tendring DC,http://statistics.data.gov.uk/id/local-authority-district/22UN,Life Opportunities,6040 - Miscellaneous Seafront Activities,4040 - Equipment & Tools,02/12/2014,7016275-1,75,2113730 - Green Magic Co Uk Ltd,BLACK LOCKABLE POSTER CASE A3
Tendring DC,http://statistics.data.gov.uk/id/local-authority-district/22UN,Life Opportunities,6160 - Princes Theatre,4105 - Bar/Catering Expenses,02/12/2014,7016330-1,494.99,2112641 - Greene King Brewing and Retailing Ltd,BEVERAGES FOR PRINCES THEATRE NOV 14
Tendring DC,http://statistics.data.gov.uk/id/local-authority-district/22UN,Life Opportunities,6160 - Princes Theatre,4105 - Bar/Catering Expenses,16/12/2014,7016573-1,1053.44,2112641 - Greene King Brewing and Retailing Ltd,BAR SUPPLIES
Tendring DC,http://statistics.data.gov.uk/id/local-authority-district/22UN,Life Opportunities,5480 - HRA - Repair & Maintenance,2017 - Mechanical Equipment /Extract Fans,16/12/2014,2117355-1,60,REDACTED PERSONAL DATA,REDACTED PERSONAL DATA
Tendring DC,http://statistics.data.gov.uk/id/local-authority-district/22UN,Life Opportunities,1565 - Careline / CCTV Service Unit,4300 - Printing & Stationery,16/12/2014,7016499-1,523,2113293 - Greenshoots,CARELINE CALENDARS
Tendring DC,http://statistics.data.gov.uk/id/local-authority-district/22UN,Life Opportunities,5140 - Homelessness,4680 - Bed & Breakfast Accommodation,16/12/2014,2117348-1,385,REDACTED PERSONAL DATA,REDACTED PERSONAL DATA
Tendring DC,http://statistics.data.gov.uk/id/local-authority-district/22UN,Life Opportunities,5140 - Homelessness,4680 - Bed & Breakfast Accommodation,02/12/2014,7016281-1,430,2113018 - Grosvenor House Hotel,K MILTON & S OLIVER
Tendring DC,http://statistics.data.gov.uk/id/local-authority-district/22UN,Life Opportunities,5140 - Homelessness,4680 - Bed & Breakfast Accommodation,09/12/2014,7016439-1,350,REDACTED PERSONAL DATA,REDACTED PERSONAL DATA
Tendring DC,http://statistics.data.gov.uk/id/local-authority-district/22UN,Life Opportunities,5140 - Homelessness,4680 - Bed & Breakfast Accommodation,22/12/2014,7016603-1,350,REDACTED PERSONAL DATA,REDACTED PERSONAL DATA
Tendring DC,http://statistics.data.gov.uk/id/local-authority-district/22UN,Life Opportunities,"1580 - Benefits, Revenues and Customer Contact SU",4355 - Books & Periodicals,16/12/2014,2117280-1,149,2106992 - GTS Media Ltd,credit collections subscription dec 14 to dec 15
Tendring DC,http://statistics.data.gov.uk/id/local-authority-district/22UN,Life Opportunities,8540 - Leisure Centre Clacton,5300 - Resaleable Items,22/12/2014,7016637-1,367.67,2100641 - Gymnastic Enterprises Ltd,GYMNASTICS & TRAMP AWARDS
Tendring DC,http://statistics.data.gov.uk/id/local-authority-district/22UN,Life Opportunities,"1580 - Benefits, Revenues and Customer Contact SU",4462 - Bailiffs and Tracing Agent Fees re debt recovery,02/12/2014,7016259-1,27.16,2113197 - Hambury Tilmond Ltd,VAT ON FEES COLLECTED CT ON 744.76
Tendring DC,http://statistics.data.gov.uk/id/local-authority-district/22UN,Life Opportunities,"1580 - Benefits, Revenues and Customer Contact SU",4462 - Bailiffs and Tracing Agent Fees re debt recovery,02/12/2014,7016259-2,-27.16,2113197 - Hambury Tilmond Ltd,VAT ON FEES COLLECTED CT ON 744.76
Tendring DC,http://statistics.data.gov.uk/id/local-authority-district/22UN,Life Opportunities,H920 - Disabled Facilities Grants,C400 - Grant payments,09/12/2014,7016410-1,4525,REDACTED PERSONAL DATA,REDACTED PERSONAL DATA
Tendring DC,http://statistics.data.gov.uk/id/local-authority-district/22UN,Life Opportunities,6480 - Emergency Planning,5500 - Miscellaneous Expenses,09/12/2014,7016443-1,55,2100603 - Harwich & District Community Ass,HALL HIRE 29.10.14
Tendring DC,http://statistics.data.gov.uk/id/local-authority-district/22UN,Life Opportunities,8510 - Dovercourt Swimming Pool & All Weather Facilities,2100 - Building Repairs,02/12/2014,2117126-1,315,2100653 - Harwich Glass & Window Co Ltd,dovecourt pool - glass
Tendring DC,http://statistics.data.gov.uk/id/local-authority-district/22UN,Life Opportunities,5240 - HRA - Managing Tenancies,5242 - Tenant Relations,16/12/2014,2117353-1,91,2100604 - Harwich Taxis,transport 21/11/14
Tendring DC,http://statistics.data.gov.uk/id/local-authority-district/22UN,Life Opportunities,5240 - HRA - Managing Tenancies,5242 - Tenant Relations,16/12/2014,2117354-1,44,2100604 - Harwich Taxis,transports 25/11/14
Tendring DC,http://statistics.data.gov.uk/id/local-authority-district/22UN,Life Opportunities,1242 - Corporate Director (Life Opportunities),1710 - Training - Central Department Budget,16/12/2014,7016543-1,1195,2108862 - Hbinfo Ltd,SUBSIDY TRAINING 23.2.15
Tendring DC,http://statistics.data.gov.uk/id/local-authority-district/22UN,Life Opportunities,8530 - Brightlingsea Swimming Pool,2100 - Building Repairs,09/12/2014,1061956-1,54.86,2100615 - Healey Tool Hire & Sales Limited,WATER PUMP 1/8/14-8/8/14
Tendring DC,http://statistics.data.gov.uk/id/local-authority-district/22UN,Life Opportunities,6160 - Princes Theatre,4622 - Hired Services - Artistes and Production Companies,18/12/2014,1062169-1,5000,2114538 - Hixdell Touring Limited,
Tendring DC,http://statistics.data.gov.uk/id/local-authority-district/22UN,Life Opportunities,6160 - Princes Theatre,4622 - Hired Services - Artistes and Production Companies,22/12/2014,7016717-1,5000,2114538 - Hixdell Touring Limited,BOB GELDOF
Tendring DC,http://statistics.data.gov.uk/id/local-authority-district/22UN,Life Opportunities,5820 - Harwich Sports Centre,2100 - Building Repairs,09/12/2014,1061954-1,47,2101848 - Homecraft Contracts Ltd,GENERAL REPAIRS
Tendring DC,http://statistics.data.gov.uk/id/local-authority-district/22UN,Life Opportunities,8510 - Dovercourt Swimming Pool & All Weather Facilities,2100 - Building Repairs,22/12/2014,7016632-1,70,2101848 - Homecraft Contracts Ltd,DOVERCOURT POOL - REPAIRS
Tendring DC,http://statistics.data.gov.uk/id/local-authority-district/22UN,Life Opportunities,8510 - Dovercourt Swimming Pool & All Weather Facilities,2100 - Building Repairs,16/12/2014,7016566-1,4.56,2100677 - Homecraft DIY Ltd,DOVERCOURT POOL - REPAIRS
Tendring DC,http://statistics.data.gov.uk/id/local-authority-district/22UN,Life Opportunities,8510 - Dovercourt Swimming Pool & All Weather Facilities,2100 - Building Repairs,22/12/2014,7016719-1,5,2100677 - Homecraft DIY Ltd,DOVERCOURT POOL - REPAIR
Tendring DC,http://statistics.data.gov.uk/id/local-authority-district/22UN,Life Opportunities,"1580 - Benefits, Revenues and Customer Contact SU",4300 - Printing & Stationery,02/12/2014,2117130-1,762.5,2110569 - Hound Envelopes Ltd,c5 white window envelopes
Tendring DC,http://statistics.data.gov.uk/id/local-authority-district/22UN,Life Opportunities,"1580 - Benefits, Revenues and Customer Contact SU",4300 - Printing & Stationery,02/12/2014,7016276-1,79.52,2110569 - Hound Envelopes Ltd,RESPONSE PLUS ENVELOPES WITH BARCODE
Tendring DC,http://statistics.data.gov.uk/id/local-authority-district/22UN,Life Opportunities,5240 - HRA - Managing Tenancies,4312 - Tenancy Stationery,16/12/2014,2117296-1,382.04,2111338 - Housing Partners Limited,homeswapper sep - nov 14
Tendring DC,http://statistics.data.gov.uk/id/local-authority-district/22UN,Life Opportunities,5260 - HRA - Rent Collection And Accounting,4757 - IT External Charges,02/12/2014,2117134-1,820,2102449 - HQN Ltd,rie/1049 1/11/14 to 31/10/15
Tendring DC,http://statistics.data.gov.uk/id/local-authority-district/22UN,Life Opportunities,5480 - HRA - Repair & Maintenance,2014 - Decoration Allowances,22/12/2014,7016668-1,340.5,2109778 - ICI Contract Direct,DECORATING VOUCHERS NOV 14
Tendring DC,http://statistics.data.gov.uk/id/local-authority-district/22UN,Life Opportunities,6160 - Princes Theatre,4040 - Equipment & Tools,22/12/2014,7016716-1,184.9,2113683 - Illuminate Design,DOUGHTY STAGE BRACES
Tendring DC,http://statistics.data.gov.uk/id/local-authority-district/22UN,Life Opportunities,5860 - Manningtree Sports Centre,4090 - Lease of Vending Machines,16/12/2014,2117277-1,356.2,2100702 - ING Lease (UK) Ltd,quarterly vending lease
Tendring DC,http://statistics.data.gov.uk/id/local-authority-district/22UN,Life Opportunities,C149 - Dovercourt Swimming Pool - redevelopment,C200 - Main Contractor,16/12/2014,2117288-1,2926.45,2108761 - Ingleton Wood,dovercourt pool val 14
Tendring DC,http://statistics.data.gov.uk/id/local-authority-district/22UN,Life Opportunities,C304 - Frinton & Walton Swimming Pool Re-Development,C200 - Main Contractor,16/12/2014,2117289-1,1340,2108761 - Ingleton Wood,frinton and walton leisure centre
Tendring DC,http://statistics.data.gov.uk/id/local-authority-district/22UN,Life Opportunities,5880 - Management Of Sport & Leisure Facilities,5166 - Marketing and Promotion,22/12/2014,7016628-1,90,2113575 - Intelligent Texting,INTXT LICENCE DEC
Tendring DC,http://statistics.data.gov.uk/id/local-authority-district/22UN,Life Opportunities,5860 - Manningtree Sports Centre,4400 - Maintenance Under Service Agreements,09/12/2014,2117225-1,90.93,2113083 - Interserve FS (UK) Ltd,water safe contract 27.11.14 to 26.2.15
Tendring DC,http://statistics.data.gov.uk/id/local-authority-district/22UN,Life Opportunities,8510 - Dovercourt Swimming Pool & All Weather Facilities,4601 - Hired services - Cleaning,22/12/2014,7016590-1,80,2111218 - J Cripps,WINDOWS
Tendring DC,http://statistics.data.gov.uk/id/local-authority-district/22UN,Life Opportunities,8540 - Leisure Centre Clacton,4000 - Furniture,22/12/2014,1062129-1,110.22,2100755 - J P Lennard Ltd,POOL TOYS
Tendring DC,http://statistics.data.gov.uk/id/local-authority-district/22UN,Life Opportunities,5860 - Manningtree Sports Centre,4040 - Equipment & Tools,22/12/2014,1062139-1,134.65,2100755 - J P Lennard Ltd,FIVE A SIDE GOAL NETS AND ANCHORS
Tendring DC,http://statistics.data.gov.uk/id/local-authority-district/22UN,Life Opportunities,8520 - Frinton & Walton Swimming Pool,5300 - Resaleable Items,22/12/2014,1062142-1,64,2100755 - J P Lennard Ltd,FWSP-JPLENNARD
Tendring DC,http://statistics.data.gov.uk/id/local-authority-district/22UN,Life Opportunities,8520 - Frinton & Walton Swimming Pool,5300 - Resaleable Items,22/12/2014,1062143-1,64,2100755 - J P Lennard Ltd,FWSP-JPL
Tendring DC,http://statistics.data.gov.uk/id/local-authority-district/22UN,Life Opportunities,8510 - Dovercourt Swimming Pool & All Weather Facilities,4000 - Furniture,02/12/2014,2117127-1,96.55,2100755 - J P Lennard Ltd,dovercourt pool - hairdryer
Tendring DC,http://statistics.data.gov.uk/id/local-authority-district/22UN,Life Opportunities,8520 - Frinton & Walton Swimming Pool,5300 - Resaleable Items,09/12/2014,2117243-1,96.26,2100755 - J P Lennard Ltd,fwsp - jpl
Tendring DC,http://statistics.data.gov.uk/id/local-authority-district/22UN,Life Opportunities,8520 - Frinton & Walton Swimming Pool,5300 - Resaleable Items,09/12/2014,2117244-1,13.3,2100755 - J P Lennard Ltd,fwsp - jpl
Tendring DC,http://statistics.data.gov.uk/id/local-authority-district/22UN,Life Opportunities,8520 - Frinton & Walton Swimming Pool,5300 - Resaleable Items,09/12/2014,2117244-2,41.74,2100755 - J P Lennard Ltd,fwsp - jpl
Tendring DC,http://statistics.data.gov.uk/id/local-authority-district/22UN,Life Opportunities,6355 - Community Activity Network,4597 - Hired Services - Payments to Contractors,16/12/2014,2117311-1,319.39,2100755 - J P Lennard Ltd,t t table
Tendring DC,http://statistics.data.gov.uk/id/local-authority-district/22UN,Life Opportunities,8540 - Leisure Centre Clacton,4000 - Furniture,16/12/2014,2117312-1,259.8,2100755 - J P Lennard Ltd,hairdryer/overshoes
Tendring DC,http://statistics.data.gov.uk/id/local-authority-district/22UN,Life Opportunities,8510 - Dovercourt Swimming Pool & All Weather Facilities,4000 - Furniture,16/12/2014,2117328-1,666,2100755 - J P Lennard Ltd,dovercourt pool - hairdryers
Tendring DC,http://statistics.data.gov.uk/id/local-authority-district/22UN,Life Opportunities,8510 - Dovercourt Swimming Pool & All Weather Facilities,4000 - Furniture,22/12/2014,7016688-1,34.66,2100755 - J P Lennard Ltd,DOVERCOURT POOL - OVERSHOES
Tendring DC,http://statistics.data.gov.uk/id/local-authority-district/22UN,Life Opportunities,8540 - Leisure Centre Clacton,9283 - Memberships - DD,16/12/2014,1062057-1,12.5,REDACTED PERSONAL DATA,REDACTED PERSONAL DATA
Tendring DC,http://statistics.data.gov.uk/id/local-authority-district/22UN,Life Opportunities,H880 - New Build Initiatives and Acquisitions,C200 - Main Contractor,22/12/2014,7016666-1,150,REDACTED PERSONAL DATA,REDACTED PERSONAL DATA
Tendring DC,http://statistics.data.gov.uk/id/local-authority-district/22UN,Life Opportunities,8540 - Leisure Centre Clacton,9284 - Memberships - Cash,16/12/2014,1062058-1,75,REDACTED PERSONAL DATA,REDACTED PERSONAL DATA
Tendring DC,http://statistics.data.gov.uk/id/local-authority-district/22UN,Life Opportunities,8510 - Dovercourt Swimming Pool & All Weather Facilities,4000 - Furniture,16/12/2014,1062066-1,36.56,REDACTED PERSONAL DATA,REDACTED PERSONAL DATA
Tendring DC,http://statistics.data.gov.uk/id/local-authority-district/22UN,Life Opportunities,7620 - Air Show,5160 - Advertising,22/12/2014,7016659-1,1150,2113777 - JoLi Studios,2ND DAY FILMING AIRSHOW 14
Tendring DC,http://statistics.data.gov.uk/id/local-authority-district/22UN,Life Opportunities,1880 - Office Accommodation Expenses,2100 - Building Repairs,09/12/2014,1061940-1,80,2111266 - JW Plumbing and Heating,TOWN HALL 22-10-14
Tendring DC,http://statistics.data.gov.uk/id/local-authority-district/22UN,Life Opportunities,1880 - Office Accommodation Expenses,2100 - Building Repairs,09/12/2014,1061940-2,121.76,2111266 - JW Plumbing and Heating,TOWN HALL 22-10-14
Tendring DC,http://statistics.data.gov.uk/id/local-authority-district/22UN,Life Opportunities,1880 - Office Accommodation Expenses,2100 - Building Repairs,09/12/2014,1061941-1,80,2111266 - JW Plumbing and Heating,88-90 PIER AVE 25-11-14
Tendring DC,http://statistics.data.gov.uk/id/local-authority-district/22UN,Life Opportunities,1880 - Office Accommodation Expenses,2100 - Building Repairs,09/12/2014,1061941-2,136.4,2111266 - JW Plumbing and Heating,88-90 PIER AVE 25-11-14
Tendring DC,http://statistics.data.gov.uk/id/local-authority-district/22UN,Life Opportunities,1880 - Office Accommodation Expenses,2100 - Building Repairs,09/12/2014,1061942-1,120,2111266 - JW Plumbing and Heating,TOWN HALL 25/11/14
Tendring DC,http://statistics.data.gov.uk/id/local-authority-district/22UN,Life Opportunities,1880 - Office Accommodation Expenses,2100 - Building Repairs,09/12/2014,1061942-2,353.7,2111266 - JW Plumbing and Heating,TOWN HALL 25/11/14
Tendring DC,http://statistics.data.gov.uk/id/local-authority-district/22UN,Life Opportunities,H860 - Disabled Adaptations,C200 - Main Contractor,16/12/2014,1062017-1,1145,REDACTED PERSONAL DATA,REDACTED PERSONAL DATA
Tendring DC,http://statistics.data.gov.uk/id/local-authority-district/22UN,Life Opportunities,H860 - Disabled Adaptations,C200 - Main Contractor,16/12/2014,1062017-2,1783,REDACTED PERSONAL DATA,REDACTED PERSONAL DATA
Tendring DC,http://statistics.data.gov.uk/id/local-authority-district/22UN,Life Opportunities,H860 - Disabled Adaptations,C200 - Main Contractor,16/12/2014,1062018-1,1058,REDACTED PERSONAL DATA,REDACTED PERSONAL DATA
Tendring DC,http://statistics.data.gov.uk/id/local-authority-district/22UN,Life Opportunities,H860 - Disabled Adaptations,C200 - Main Contractor,16/12/2014,1062018-2,2052,REDACTED PERSONAL DATA,REDACTED PERSONAL DATA
Tendring DC,http://statistics.data.gov.uk/id/local-authority-district/22UN,Life Opportunities,6160 - Princes Theatre,2100 - Building Repairs,16/12/2014,1062032-1,330,2100758 - K A Hockley Ltd,REPAIR WINDOW PRINCES THEATRE
Tendring DC,http://statistics.data.gov.uk/id/local-authority-district/22UN,Life Opportunities,H800 - Structural Repairs,C200 - Main Contractor,16/12/2014,2117273-1,325,REDACTED PERSONAL DATA,REDACTED PERSONAL DATA
Tendring DC,http://statistics.data.gov.uk/id/local-authority-district/22UN,Life Opportunities,5480 - HRA - Repair & Maintenance,2018 - Other Responsive Repairs,09/12/2014,7016430-1,275,REDACTED PERSONAL DATA,REDACTED PERSONAL DATA
Tendring DC,http://statistics.data.gov.uk/id/local-authority-district/22UN,Life Opportunities,5140 - Homelessness,4680 - Bed & Breakfast Accommodation,02/12/2014,2117136-1,440,REDACTED PERSONAL DATA,REDACTED PERSONAL DATA
Tendring DC,http://statistics.data.gov.uk/id/local-authority-district/22UN,Life Opportunities,5820 - Harwich Sports Centre,5300 - Resaleable Items,02/12/2014,2117110-1,195.29,2100870 - Kingswood Leisure Services Ltd,resale stock
Tendring DC,http://statistics.data.gov.uk/id/local-authority-district/22UN,Life Opportunities,5820 - Harwich Sports Centre,4040 - Equipment & Tools,02/12/2014,2117111-1,39.8,2100870 - Kingswood Leisure Services Ltd,coaching eqpt
Tendring DC,http://statistics.data.gov.uk/id/local-authority-district/22UN,Life Opportunities,5360 - HRA - Sheltered Units,4601 - Hired services - Cleaning,02/12/2014,2117122-1,425,2100851 - KO-SHEEN Contract Cleaning Ltd,cleaning 10/11 to 14/11/14
Tendring DC,http://statistics.data.gov.uk/id/local-authority-district/22UN,Life Opportunities,5860 - Manningtree Sports Centre,4601 - Hired services - Cleaning,09/12/2014,2117226-1,63.75,2100851 - KO-SHEEN Contract Cleaning Ltd,cleaning 3 -7 november 2014
Tendring DC,http://statistics.data.gov.uk/id/local-authority-district/22UN,Life Opportunities,5360 - HRA - Sheltered Units,4601 - Hired services - Cleaning,09/12/2014,2117231-1,425,2100851 - KO-SHEEN Contract Cleaning Ltd,cleaning 17/11/14 - 21/11/14
Tendring DC,http://statistics.data.gov.uk/id/local-authority-district/22UN,Life Opportunities,8540 - Leisure Centre Clacton,4597 - Hired Services - Payments to Contractors,09/12/2014,2117234-1,193.75,2100851 - KO-SHEEN Contract Cleaning Ltd,w/e 15/11/14
Tendring DC,http://statistics.data.gov.uk/id/local-authority-district/22UN,Life Opportunities,5860 - Manningtree Sports Centre,4601 - Hired services - Cleaning,16/12/2014,2117276-1,63.75,2100851 - KO-SHEEN Contract Cleaning Ltd,cleaning 17 to 21 nov
Tendring DC,http://statistics.data.gov.uk/id/local-authority-district/22UN,Life Opportunities,8540 - Leisure Centre Clacton,4597 - Hired Services - Payments to Contractors,16/12/2014,2117310-1,200,2100851 - KO-SHEEN Contract Cleaning Ltd,w/e 22/11/14
Tendring DC,http://statistics.data.gov.uk/id/local-authority-district/22UN,Life Opportunities,5860 - Manningtree Sports Centre,4601 - Hired services - Cleaning,16/12/2014,2117331-1,63.75,2100851 - KO-SHEEN Contract Cleaning Ltd,cleaning 10-14 november
Tendring DC,http://statistics.data.gov.uk/id/local-authority-district/22UN,Life Opportunities,5360 - HRA - Sheltered Units,4601 - Hired services - Cleaning,22/12/2014,2117412-1,588.88,2100851 - KO-SHEEN Contract Cleaning Ltd,belmans court nov 14
Tendring DC,http://statistics.data.gov.uk/id/local-authority-district/22UN,Life Opportunities,8540 - Leisure Centre Clacton,4597 - Hired Services - Payments to Contractors,02/12/2014,7016270-1,193.75,2100851 - KO-SHEEN Contract Cleaning Ltd,W.E. 8.11.14
Tendring DC,http://statistics.data.gov.uk/id/local-authority-district/22UN,Life Opportunities,5360 - HRA - Sheltered Units,4601 - Hired services - Cleaning,16/12/2014,7016560-1,442,2100851 - KO-SHEEN Contract Cleaning Ltd,CLEANING 14.11.14 - 28.11.14
Tendring DC,http://statistics.data.gov.uk/id/local-authority-district/22UN,Life Opportunities,5360 - HRA - Sheltered Units,4601 - Hired services - Cleaning,22/12/2014,7016667-1,442,2100851 - KO-SHEEN Contract Cleaning Ltd,CLEANING 1.12.14 - 5.12.14
Tendring DC,http://statistics.data.gov.uk/id/local-authority-district/22UN,Life Opportunities,8540 - Leisure Centre Clacton,4597 - Hired Services - Payments to Contractors,22/12/2014,7016700-1,250,2100851 - KO-SHEEN Contract Cleaning Ltd,W.E. 29.11.14
Tendring DC,http://statistics.data.gov.uk/id/local-authority-district/22UN,Life Opportunities,"1580 - Benefits, Revenues and Customer Contact SU",4466 - Land Registry Fees,22/12/2014,7016711-1,432,2113091 - Land Registry Commercial Services,CHANGE INDICATOR NOV 14
Tendring DC,http://statistics.data.gov.uk/id/local-authority-district/22UN,Life Opportunities,5480 - HRA - Repair & Maintenance,2018 - Other Responsive Repairs,16/12/2014,2117356-1,130,REDACTED PERSONAL DATA,REDACTED PERSONAL DATA
Tendring DC,http://statistics.data.gov.uk/id/local-authority-district/22UN,Life Opportunities,5480 - HRA - Repair & Maintenance,2020 - Fixed Plant repairs,16/12/2014,2117357-1,600,2112730 - Lee Bilsby Ltd,1-35 greenfields
Tendring DC,http://statistics.data.gov.uk/id/local-authority-district/22UN,Life Opportunities,"1580 - Benefits, Revenues and Customer Contact SU",4459 - External Legal Advice,16/12/2014,2117351-1,400,2111904 - Lester Aldridge LLP,charges & disbursements
Tendring DC,http://statistics.data.gov.uk/id/local-authority-district/22UN,Life Opportunities,"1580 - Benefits, Revenues and Customer Contact SU",4459 - External Legal Advice,16/12/2014,2117351-2,820,2111904 - Lester Aldridge LLP,charges & disbursements
Tendring DC,http://statistics.data.gov.uk/id/local-authority-district/22UN,Life Opportunities,"1580 - Benefits, Revenues and Customer Contact SU",4459 - External Legal Advice,16/12/2014,2117351-3,480,2111904 - Lester Aldridge LLP,charges & disbursements
Tendring DC,http://statistics.data.gov.uk/id/local-authority-district/22UN,Life Opportunities,"1580 - Benefits, Revenues and Customer Contact SU",1350 - Agency Staff,02/12/2014,7016258-1,245,2100894 - Liberata UK Ltd,APPEALS PROCESSING OCT 14
Tendring DC,http://statistics.data.gov.uk/id/local-authority-district/22UN,Life Opportunities,5860 - Manningtree Sports Centre,2100 - Building Repairs,09/12/2014,2117224-1,189.76,2100805 - Life Fitness (UK) Ltd,replacement part rowing machine
Tendring DC,http://statistics.data.gov.uk/id/local-authority-district/22UN,Life Opportunities,5240 - HRA - Managing Tenancies,5242 - Tenant Relations,09/12/2014,1061973-1,10,REDACTED PERSONAL DATA,REDACTED PERSONAL DATA
Tendring DC,http://statistics.data.gov.uk/id/local-authority-district/22UN,Life Opportunities,5880 - Management Of Sport & Leisure Facilities,5166 - Marketing and Promotion,16/12/2014,2117305-1,262.5,2104253 - Local Authority Publishing Co Ltd,ad harwich town guide 2015
Tendring DC,http://statistics.data.gov.uk/id/local-authority-district/22UN,Life Opportunities,6740 - Careline,5160 - Advertising,02/12/2014,7016274-1,175,2104253 - Local Authority Publishing Co Ltd,ADVERTISING HARWICH TOWN COUNCIL GUIDE 2015
Tendring DC,http://statistics.data.gov.uk/id/local-authority-district/22UN,Life Opportunities,6740 - Careline,4880 - Subscriptions Paid,02/12/2014,7016278-1,275,2112843 - London Telecare Ltd,UK HEALTHCARE SUBS 2014/15
Tendring DC,http://statistics.data.gov.uk/id/local-authority-district/22UN,Life Opportunities,5880 - Management Of Sport & Leisure Facilities,5166 - Marketing and Promotion,22/12/2014,7016631-1,124,2107277 - Look 5 Ltd,HPA LOOK2 DEC
Tendring DC,http://statistics.data.gov.uk/id/local-authority-district/22UN,Life Opportunities,1230 - Strategic Housing & Needs Management,3302 - Car/Cycle Allowances - Officers,09/12/2014,7016406-1,38,REDACTED PERSONAL DATA,REDACTED PERSONAL DATA
Tendring DC,http://statistics.data.gov.uk/id/local-authority-district/22UN,Life Opportunities,5820 - Harwich Sports Centre,4597 - Hired Services - Payments to Contractors,22/12/2014,1062135-1,109,2111940 - M Frost & Associates Ltd,DISPLAY ENERGY CERTIFICATE
Tendring DC,http://statistics.data.gov.uk/id/local-authority-district/22UN,Life Opportunities,6160 - Princes Theatre,4105 - Bar/Catering Expenses,16/12/2014,2117334-1,235.69,2105052 - Maddisons,cups and glasses for bar
Tendring DC,http://statistics.data.gov.uk/id/local-authority-district/22UN,Life Opportunities,6160 - Princes Theatre,4105 - Bar/Catering Expenses,16/12/2014,2117334-2,64.98,2105052 - Maddisons,cups and glasses for bar
Tendring DC,http://statistics.data.gov.uk/id/local-authority-district/22UN,Life Opportunities,5480 - HRA - Repair & Maintenance,2015 - Drain Clearance And Repairs,16/12/2014,2117345-1,1719.75,2107196 - Mains 'N' Drains 24-Hour Plumbing Services,council blockages
Tendring DC,http://statistics.data.gov.uk/id/local-authority-district/22UN,Life Opportunities,5240 - HRA - Managing Tenancies,5242 - Tenant Relations,16/12/2014,2117300-1,40,2113137 - Manningtree Taxis,transport 25/11/14
Tendring DC,http://statistics.data.gov.uk/id/local-authority-district/22UN,Life Opportunities,H815 - Re-roofing,C200 - Main Contractor,02/12/2014,1061885-1,781,REDACTED PERSONAL DATA,REDACTED PERSONAL DATA
Tendring DC,http://statistics.data.gov.uk/id/local-authority-district/22UN,Life Opportunities,H815 - Re-roofing,C200 - Main Contractor,02/12/2014,1061886-1,296,REDACTED PERSONAL DATA,REDACTED PERSONAL DATA
Tendring DC,http://statistics.data.gov.uk/id/local-authority-district/22UN,Life Opportunities,6740 - Careline,5160 - Advertising,09/12/2014,7016432-1,85,2111922 - Mansion House Publishing (UK) Ltd,IN TOUCH DEC 14
Tendring DC,http://statistics.data.gov.uk/id/local-authority-district/22UN,Life Opportunities,H860 - Disabled Adaptations,C200 - Main Contractor,22/12/2014,1062104-1,1500,REDACTED PERSONAL DATA,REDACTED PERSONAL DATA
Tendring DC,http://statistics.data.gov.uk/id/local-authority-district/22UN,Life Opportunities,H860 - Disabled Adaptations,C200 - Main Contractor,22/12/2014,1062104-2,800,REDACTED PERSONAL DATA,REDACTED PERSONAL DATA
Tendring DC,http://statistics.data.gov.uk/id/local-authority-district/22UN,Life Opportunities,H860 - Disabled Adaptations,C200 - Main Contractor,22/12/2014,1062105-1,417,REDACTED PERSONAL DATA,REDACTED PERSONAL DATA
Tendring DC,http://statistics.data.gov.uk/id/local-authority-district/22UN,Life Opportunities,H860 - Disabled Adaptations,C200 - Main Contractor,22/12/2014,1062105-2,308,REDACTED PERSONAL DATA,REDACTED PERSONAL DATA
Tendring DC,http://statistics.data.gov.uk/id/local-authority-district/22UN,Life Opportunities,H860 - Disabled Adaptations,C200 - Main Contractor,22/12/2014,1062106-1,652,REDACTED PERSONAL DATA,REDACTED PERSONAL DATA
Tendring DC,http://statistics.data.gov.uk/id/local-authority-district/22UN,Life Opportunities,H860 - Disabled Adaptations,C200 - Main Contractor,22/12/2014,1062106-2,398,REDACTED PERSONAL DATA,REDACTED PERSONAL DATA
Tendring DC,http://statistics.data.gov.uk/id/local-authority-district/22UN,Life Opportunities,5480 - HRA - Repair & Maintenance,2088 - Disabled Adaptations,22/12/2014,1062107-1,290,REDACTED PERSONAL DATA,REDACTED PERSONAL DATA
Tendring DC,http://statistics.data.gov.uk/id/local-authority-district/22UN,Life Opportunities,5480 - HRA - Repair & Maintenance,2088 - Disabled Adaptations,22/12/2014,1062107-2,100,REDACTED PERSONAL DATA,REDACTED PERSONAL DATA
Tendring DC,http://statistics.data.gov.uk/id/local-authority-district/22UN,Life Opportunities,5480 - HRA - Repair & Maintenance,2088 - Disabled Adaptations,22/12/2014,1062108-1,300,REDACTED PERSONAL DATA,REDACTED PERSONAL DATA
Tendring DC,http://statistics.data.gov.uk/id/local-authority-district/22UN,Life Opportunities,5480 - HRA - Repair & Maintenance,2088 - Disabled Adaptations,22/12/2014,1062108-2,80,REDACTED PERSONAL DATA,REDACTED PERSONAL DATA
Tendring DC,http://statistics.data.gov.uk/id/local-authority-district/22UN,Life Opportunities,H860 - Disabled Adaptations,C200 - Main Contractor,22/12/2014,1062109-1,965,REDACTED PERSONAL DATA,REDACTED PERSONAL DATA
Tendring DC,http://statistics.data.gov.uk/id/local-authority-district/22UN,Life Opportunities,H860 - Disabled Adaptations,C200 - Main Contractor,22/12/2014,1062109-2,460,REDACTED PERSONAL DATA,REDACTED PERSONAL DATA
Tendring DC,http://statistics.data.gov.uk/id/local-authority-district/22UN,Life Opportunities,H860 - Disabled Adaptations,C200 - Main Contractor,22/12/2014,1062110-1,390,REDACTED PERSONAL DATA,REDACTED PERSONAL DATA
Tendring DC,http://statistics.data.gov.uk/id/local-authority-district/22UN,Life Opportunities,H860 - Disabled Adaptations,C200 - Main Contractor,22/12/2014,1062110-2,240,REDACTED PERSONAL DATA,REDACTED PERSONAL DATA
Tendring DC,http://statistics.data.gov.uk/id/local-authority-district/22UN,Life Opportunities,H860 - Disabled Adaptations,C200 - Main Contractor,22/12/2014,1062111-1,1520,2103408 - Mark Jones,KATE DANIELS HOUSE
Tendring DC,http://statistics.data.gov.uk/id/local-authority-district/22UN,Life Opportunities,H860 - Disabled Adaptations,C200 - Main Contractor,22/12/2014,1062111-2,860,2103408 - Mark Jones,KATE DANIELS HOUSE
Tendring DC,http://statistics.data.gov.uk/id/local-authority-district/22UN,Life Opportunities,5140 - Homelessness,4683 - Other Homelessness Expenses,09/12/2014,7016420-1,550,REDACTED PERSONAL DATA,REDACTED PERSONAL DATA
Tendring DC,http://statistics.data.gov.uk/id/local-authority-district/22UN,Life Opportunities,1090 - Chief Executive and Support Service Unit,4355 - Books & Periodicals,22/12/2014,1062167-1,52.4,2112734 - Matt's Carousel,MATTS CAROUSEL
Tendring DC,http://statistics.data.gov.uk/id/local-authority-district/22UN,Life Opportunities,1100 - Corporate Director (Corporate Services) and Admin Service Unit,4355 - Books & Periodicals,22/12/2014,1062167-2,45.3,2112734 - Matt's Carousel,MATTS CAROUSEL
Tendring DC,http://statistics.data.gov.uk/id/local-authority-district/22UN,Life Opportunities,1040 - Regeneration Service Unit,4355 - Books & Periodicals,22/12/2014,1062167-3,18.4,2112734 - Matt's Carousel,MATTS CAROUSEL
Tendring DC,http://statistics.data.gov.uk/id/local-authority-district/22UN,Life Opportunities,"1580 - Benefits, Revenues and Customer Contact SU",4355 - Books & Periodicals,22/12/2014,1062167-4,18.4,2112734 - Matt's Carousel,MATTS CAROUSEL
Tendring DC,http://statistics.data.gov.uk/id/local-authority-district/22UN,Life Opportunities,1090 - Chief Executive and Support Service Unit,4355 - Books & Periodicals,09/12/2014,7016389-1,64.8,2112734 - Matt's Carousel,MATTS CAROUSEL OCT 14
Tendring DC,http://statistics.data.gov.uk/id/local-authority-district/22UN,Life Opportunities,1100 - Corporate Director (Corporate Services) and Admin Service Unit,4355 - Books & Periodicals,09/12/2014,7016389-2,50.55,2112734 - Matt's Carousel,MATTS CAROUSEL OCT 14
Tendring DC,http://statistics.data.gov.uk/id/local-authority-district/22UN,Life Opportunities,1040 - Regeneration Service Unit,4355 - Books & Periodicals,09/12/2014,7016389-3,21.7,2112734 - Matt's Carousel,MATTS CAROUSEL OCT 14
Tendring DC,http://statistics.data.gov.uk/id/local-authority-district/22UN,Life Opportunities,"1580 - Benefits, Revenues and Customer Contact SU",4355 - Books & Periodicals,09/12/2014,7016389-4,21.7,2112734 - Matt's Carousel,MATTS CAROUSEL OCT 14
Tendring DC,http://statistics.data.gov.uk/id/local-authority-district/22UN,Life Opportunities,1880 - Office Accommodation Expenses,4080 - Materials & Consumables,09/12/2014,1061950-1,13.2,2101791 - Medlock Electrical,STARTER SWITCHES
Tendring DC,http://statistics.data.gov.uk/id/local-authority-district/22UN,Life Opportunities,8540 - Leisure Centre Clacton,2100 - Building Repairs,16/12/2014,2117307-1,45.75,2101791 - Medlock Electrical,light bulbs
Tendring DC,http://statistics.data.gov.uk/id/local-authority-district/22UN,Life Opportunities,8540 - Leisure Centre Clacton,2100 - Building Repairs,16/12/2014,2117308-1,67.65,2101791 - Medlock Electrical,light bulbs
Tendring DC,http://statistics.data.gov.uk/id/local-authority-district/22UN,Life Opportunities,8540 - Leisure Centre Clacton,2100 - Building Repairs,16/12/2014,2117361-1,11.4,2101791 - Medlock Electrical,clc
Tendring DC,http://statistics.data.gov.uk/id/local-authority-district/22UN,Life Opportunities,1880 - Office Accommodation Expenses,4080 - Materials & Consumables,16/12/2014,2117362-1,511.05,2101791 - Medlock Electrical,town hall
Tendring DC,http://statistics.data.gov.uk/id/local-authority-district/22UN,Life Opportunities,1880 - Office Accommodation Expenses,2100 - Building Repairs,16/12/2014,2117363-1,51.06,2101791 - Medlock Electrical,careline
Tendring DC,http://statistics.data.gov.uk/id/local-authority-district/22UN,Life Opportunities,1880 - Office Accommodation Expenses,2100 - Building Repairs,16/12/2014,2117364-1,28.32,2101791 - Medlock Electrical,barnes hse
Tendring DC,http://statistics.data.gov.uk/id/local-authority-district/22UN,Life Opportunities,9920 - HRA Balance Sheet,B860 - Housing Rents - Cash,02/12/2014,2117151-1,92.35,REDACTED PERSONAL DATA,REDACTED PERSONAL DATA
Tendring DC,http://statistics.data.gov.uk/id/local-authority-district/22UN,Life Opportunities,C021 - Cremator Replacement and Crematorium Car Park,C200 - Main Contractor,16/12/2014,2117297-1,1620,2111984 - MLM Consulting Engineers Ltd,weeley crem upgrade
Tendring DC,http://statistics.data.gov.uk/id/local-authority-district/22UN,Life Opportunities,C021 - Cremator Replacement and Crematorium Car Park,C200 - Main Contractor,16/12/2014,2117298-1,1650,2111984 - MLM Consulting Engineers Ltd,weeley crem upgrade
Tendring DC,http://statistics.data.gov.uk/id/local-authority-district/22UN,Life Opportunities,8540 - Leisure Centre Clacton,4400 - Maintenance Under Service Agreements,09/12/2014,2117233-1,66.2,2104791 - Mobile Mini Uk Ltd,19/11/14 to 16/12/14
Tendring DC,http://statistics.data.gov.uk/id/local-authority-district/22UN,Life Opportunities,8510 - Dovercourt Swimming Pool & All Weather Facilities,4200 - Clothing & Uniforms,02/12/2014,2117109-1,106.4,2109450 - Monster Merchandise Ltd,dovercourt pool - uniform
Tendring DC,http://statistics.data.gov.uk/id/local-authority-district/22UN,Life Opportunities,5140 - Homelessness,4683 - Other Homelessness Expenses,02/12/2014,1061897-1,150,REDACTED PERSONAL DATA,REDACTED PERSONAL DATA
Tendring DC,http://statistics.data.gov.uk/id/local-authority-district/22UN,Life Opportunities,H920 - Disabled Facilities Grants,C400 - Grant payments,02/12/2014,2117146-1,6742.8,REDACTED PERSONAL DATA,REDACTED PERSONAL DATA
Tendring DC,http://statistics.data.gov.uk/id/local-authority-district/22UN,Life Opportunities,5480 - HRA - Repair & Maintenance,2073 - Smoke Alarm Service/Testing,09/12/2014,1062005-1,1445.25,2111370 - Morrison Facilities Services,GAS SERVICE & REPAIR-SOUTH AREA 14/15
Tendring DC,http://statistics.data.gov.uk/id/local-authority-district/22UN,Life Opportunities,5480 - HRA - Repair & Maintenance,2075 - Gas Service Contract Servicing/Testing (Domestic I,09/12/2014,1062005-2,3585.19,2111370 - Morrison Facilities Services,GAS SERVICE & REPAIR-SOUTH AREA 14/15
Tendring DC,http://statistics.data.gov.uk/id/local-authority-district/22UN,Life Opportunities,5480 - HRA - Repair & Maintenance,2076 - Gas Service Contract Other Refurbishment/Repairs (,09/12/2014,1062005-3,4038.89,2111370 - Morrison Facilities Services,GAS SERVICE & REPAIR-SOUTH AREA 14/15
Tendring DC,http://statistics.data.gov.uk/id/local-authority-district/22UN,Life Opportunities,5480 - HRA - Repair & Maintenance,2073 - Smoke Alarm Service/Testing,22/12/2014,1062164-1,1269,2111370 - Morrison Facilities Services,GAS SERVICE & REPAIR-SOUTH AREA 14/15
Tendring DC,http://statistics.data.gov.uk/id/local-authority-district/22UN,Life Opportunities,5480 - HRA - Repair & Maintenance,2075 - Gas Service Contract Servicing/Testing (Domestic I,22/12/2014,1062164-2,3232.74,2111370 - Morrison Facilities Services,GAS SERVICE & REPAIR-SOUTH AREA 14/15
Tendring DC,http://statistics.data.gov.uk/id/local-authority-district/22UN,Life Opportunities,5480 - HRA - Repair & Maintenance,2076 - Gas Service Contract Other Refurbishment/Repairs (,22/12/2014,1062164-3,6219.06,2111370 - Morrison Facilities Services,GAS SERVICE & REPAIR-SOUTH AREA 14/15
Tendring DC,http://statistics.data.gov.uk/id/local-authority-district/22UN,Life Opportunities,8540 - Leisure Centre Clacton,5500 - Miscellaneous Expenses,16/12/2014,2117309-1,195,2113825 - Morvend Ltd,purity cartridges drink vend
Tendring DC,http://statistics.data.gov.uk/id/local-authority-district/22UN,Life Opportunities,8540 - Leisure Centre Clacton,5311 - General Provisions - Vending,22/12/2014,7016626-1,194.43,2113825 - Morvend Ltd,VENDING SUPPLIES
Tendring DC,http://statistics.data.gov.uk/id/local-authority-district/22UN,Life Opportunities,8540 - Leisure Centre Clacton,5311 - General Provisions - Vending,22/12/2014,7016698-1,194.43,2113825 - Morvend Ltd,VENDING SUPPLIES
Tendring DC,http://statistics.data.gov.uk/id/local-authority-district/22UN,Life Opportunities,8540 - Leisure Centre Clacton,5311 - General Provisions - Vending,22/12/2014,7016699-1,37.34,2113825 - Morvend Ltd,VENDING SUPPLIES
Tendring DC,http://statistics.data.gov.uk/id/local-authority-district/22UN,Life Opportunities,8540 - Leisure Centre Clacton,5311 - General Provisions - Vending,22/12/2014,7016699-2,88.87,2113825 - Morvend Ltd,VENDING SUPPLIES
Tendring DC,http://statistics.data.gov.uk/id/local-authority-district/22UN,Life Opportunities,9920 - HRA Balance Sheet,B860 - Housing Rents - Cash,16/12/2014,1062053-1,11.14,REDACTED PERSONAL DATA,REDACTED PERSONAL DATA
Tendring DC,http://statistics.data.gov.uk/id/local-authority-district/22UN,Life Opportunities,5140 - Homelessness,4683 - Other Homelessness Expenses,09/12/2014,7016418-1,600,REDACTED PERSONAL DATA,REDACTED PERSONAL DATA
Tendring DC,http://statistics.data.gov.uk/id/local-authority-district/22UN,Life Opportunities,5140 - Homelessness,4683 - Other Homelessness Expenses,09/12/2014,1061984-1,238,REDACTED PERSONAL DATA,REDACTED PERSONAL DATA
Tendring DC,http://statistics.data.gov.uk/id/local-authority-district/22UN,Life Opportunities,6740 - Careline,9050 - Careline Income - General,22/12/2014,1062097-1,12.6,REDACTED PERSONAL DATA,REDACTED PERSONAL DATA
Tendring DC,http://statistics.data.gov.uk/id/local-authority-district/22UN,Life Opportunities,9920 - HRA Balance Sheet,B860 - Housing Rents - Cash,22/12/2014,1062090-1,337.24,REDACTED PERSONAL DATA,REDACTED PERSONAL DATA
Tendring DC,http://statistics.data.gov.uk/id/local-authority-district/22UN,Life Opportunities,H920 - Disabled Facilities Grants,C400 - Grant payments,22/12/2014,1062081-1,1008.6,REDACTED PERSONAL DATA,REDACTED PERSONAL DATA
Tendring DC,http://statistics.data.gov.uk/id/local-authority-district/22UN,Life Opportunities,6740 - Careline,9050 - Careline Income - General,02/12/2014,1061896-1,6.82,REDACTED PERSONAL DATA,REDACTED PERSONAL DATA
Tendring DC,http://statistics.data.gov.uk/id/local-authority-district/22UN,Life Opportunities,H920 - Disabled Facilities Grants,C400 - Grant payments,09/12/2014,1061981-1,60,REDACTED PERSONAL DATA,REDACTED PERSONAL DATA
Tendring DC,http://statistics.data.gov.uk/id/local-authority-district/22UN,Life Opportunities,8540 - Leisure Centre Clacton,4597 - Hired Services - Payments to Contractors,02/12/2014,2117103-1,676.6,REDACTED PERSONAL DATA,REDACTED PERSONAL DATA
Tendring DC,http://statistics.data.gov.uk/id/local-authority-district/22UN,Life Opportunities,9920 - HRA Balance Sheet,B860 - Housing Rents - Cash,02/12/2014,2117157-1,168,REDACTED PERSONAL DATA,REDACTED PERSONAL DATA
Tendring DC,http://statistics.data.gov.uk/id/local-authority-district/22UN,Life Opportunities,6740 - Careline,9050 - Careline Income - General,22/12/2014,1062095-1,7.16,REDACTED PERSONAL DATA,REDACTED PERSONAL DATA
Tendring DC,http://statistics.data.gov.uk/id/local-authority-district/22UN,Life Opportunities,9920 - HRA Balance Sheet,B860 - Housing Rents - Cash,02/12/2014,2117155-1,10,REDACTED PERSONAL DATA,REDACTED PERSONAL DATA
Tendring DC,http://statistics.data.gov.uk/id/local-authority-district/22UN,Life Opportunities,5880 - Management Of Sport & Leisure Facilities,5166 - Marketing and Promotion,16/12/2014,1062069-1,70,REDACTED PERSONAL DATA,REDACTED PERSONAL DATA
Tendring DC,http://statistics.data.gov.uk/id/local-authority-district/22UN,Life Opportunities,H945 - Empty Homes funding,C402 - Grant payments for Empty Homes scheme,09/12/2014,1061974-1,5958.55,REDACTED PERSONAL DATA,REDACTED PERSONAL DATA
Tendring DC,http://statistics.data.gov.uk/id/local-authority-district/22UN,Life Opportunities,H945 - Empty Homes funding,C402 - Grant payments for Empty Homes scheme,22/12/2014,1062082-1,1114.98,REDACTED PERSONAL DATA,REDACTED PERSONAL DATA
Tendring DC,http://statistics.data.gov.uk/id/local-authority-district/22UN,Life Opportunities,7680 - Tour De Tendring & Other Cycling Events,5500 - Miscellaneous Expenses,09/12/2014,1061980-1,50,REDACTED PERSONAL DATA,REDACTED PERSONAL DATA
Tendring DC,http://statistics.data.gov.uk/id/local-authority-district/22UN,Life Opportunities,9920 - HRA Balance Sheet,B860 - Housing Rents - Cash,02/12/2014,2117152-1,334.44,REDACTED PERSONAL DATA,REDACTED PERSONAL DATA
Tendring DC,http://statistics.data.gov.uk/id/local-authority-district/22UN,Life Opportunities,5240 - HRA - Managing Tenancies,5242 - Tenant Relations,09/12/2014,1061972-1,10,REDACTED PERSONAL DATA,REDACTED PERSONAL DATA
Tendring DC,http://statistics.data.gov.uk/id/local-authority-district/22UN,Life Opportunities,9920 - HRA Balance Sheet,B860 - Housing Rents - Cash,02/12/2014,2117154-1,19.2,REDACTED PERSONAL DATA,REDACTED PERSONAL DATA
Tendring DC,http://statistics.data.gov.uk/id/local-authority-district/22UN,Life Opportunities,9920 - HRA Balance Sheet,B860 - Housing Rents - Cash,02/12/2014,2117153-1,14.4,REDACTED PERSONAL DATA,REDACTED PERSONAL DATA
Tendring DC,http://statistics.data.gov.uk/id/local-authority-district/22UN,Life Opportunities,6160 - Princes Theatre,4040 - Equipment & Tools,22/12/2014,7016714-1,1308.8,2103915 - MRL Productions,QUOTE 12-1846
Tendring DC,http://statistics.data.gov.uk/id/local-authority-district/22UN,Life Opportunities,6160 - Princes Theatre,4040 - Equipment & Tools,22/12/2014,7016715-1,177.37,2103915 - MRL Productions,RIGGING EQUIPMENT
Tendring DC,http://statistics.data.gov.uk/id/local-authority-district/22UN,Life Opportunities,9920 - HRA Balance Sheet,B860 - Housing Rents - Cash,16/12/2014,1062054-1,900,REDACTED PERSONAL DATA,REDACTED PERSONAL DATA
Tendring DC,http://statistics.data.gov.uk/id/local-authority-district/22UN,Life Opportunities,9920 - HRA Balance Sheet,B860 - Housing Rents - Cash,16/12/2014,1062055-1,9.6,REDACTED PERSONAL DATA,REDACTED PERSONAL DATA
Tendring DC,http://statistics.data.gov.uk/id/local-authority-district/22UN,Life Opportunities,9920 - HRA Balance Sheet,B860 - Housing Rents - Cash,22/12/2014,1062091-1,491.25,REDACTED PERSONAL DATA,REDACTED PERSONAL DATA
Tendring DC,http://statistics.data.gov.uk/id/local-authority-district/22UN,Life Opportunities,8510 - Dovercourt Swimming Pool & All Weather Facilities,9283 - Memberships - DD,02/12/2014,2117191-1,18.33,REDACTED PERSONAL DATA,REDACTED PERSONAL DATA
Tendring DC,http://statistics.data.gov.uk/id/local-authority-district/22UN,Life Opportunities,9920 - HRA Balance Sheet,B860 - Housing Rents - Cash,16/12/2014,1062056-1,251.32,REDACTED PERSONAL DATA,REDACTED PERSONAL DATA
Tendring DC,http://statistics.data.gov.uk/id/local-authority-district/22UN,Life Opportunities,9920 - HRA Balance Sheet,B860 - Housing Rents - Cash,16/12/2014,1062060-1,443.62,REDACTED PERSONAL DATA,REDACTED PERSONAL DATA
Tendring DC,http://statistics.data.gov.uk/id/local-authority-district/22UN,Life Opportunities,9920 - HRA Balance Sheet,B860 - Housing Rents - Cash,02/12/2014,2117156-1,205.17,REDACTED PERSONAL DATA,REDACTED PERSONAL DATA
Tendring DC,http://statistics.data.gov.uk/id/local-authority-district/22UN,Life Opportunities,8510 - Dovercourt Swimming Pool & All Weather Facilities,4200 - Clothing & Uniforms,16/12/2014,2117329-1,109.48,2113803 - MWUK Ltd T/as Alexandra,dovercourt pool - uniform
Tendring DC,http://statistics.data.gov.uk/id/local-authority-district/22UN,Life Opportunities,8520 - Frinton & Walton Swimming Pool,4400 - Maintenance Under Service Agreements,02/12/2014,2117105-1,163,2108273 - N H Maintenance,fwsp - nh maintenance
Tendring DC,http://statistics.data.gov.uk/id/local-authority-district/22UN,Life Opportunities,1880 - Office Accommodation Expenses,2100 - Building Repairs,02/12/2014,2117093-1,508,2100967 - N Rudelhoff,88-90 pier avenue electrical works sept 14
Tendring DC,http://statistics.data.gov.uk/id/local-authority-district/22UN,Life Opportunities,1880 - Office Accommodation Expenses,2100 - Building Repairs,02/12/2014,2117094-1,52,2100967 - N Rudelhoff,electrical works frinton and weeley sept 14
Tendring DC,http://statistics.data.gov.uk/id/local-authority-district/22UN,Life Opportunities,1880 - Office Accommodation Expenses,2100 - Building Repairs,02/12/2014,2117094-2,520,2100967 - N Rudelhoff,electrical works frinton and weeley sept 14
Tendring DC,http://statistics.data.gov.uk/id/local-authority-district/22UN,Life Opportunities,1880 - Office Accommodation Expenses,2100 - Building Repairs,02/12/2014,2117095-1,620,2100967 - N Rudelhoff,town hall electrical works oct 14
Tendring DC,http://statistics.data.gov.uk/id/local-authority-district/22UN,Life Opportunities,1880 - Office Accommodation Expenses,2100 - Building Repairs,02/12/2014,2117096-1,469,2100967 - N Rudelhoff,various electrical works oct 14
Tendring DC,http://statistics.data.gov.uk/id/local-authority-district/22UN,Life Opportunities,1880 - Office Accommodation Expenses,2100 - Building Repairs,02/12/2014,2117096-2,76,2100967 - N Rudelhoff,various electrical works oct 14
Tendring DC,http://statistics.data.gov.uk/id/local-authority-district/22UN,Life Opportunities,1880 - Office Accommodation Expenses,2100 - Building Repairs,02/12/2014,2117096-3,69,2100967 - N Rudelhoff,various electrical works oct 14
Tendring DC,http://statistics.data.gov.uk/id/local-authority-district/22UN,Life Opportunities,1880 - Office Accommodation Expenses,2100 - Building Repairs,02/12/2014,2117097-1,210,2100967 - N Rudelhoff,various electrical works nov 14
Tendring DC,http://statistics.data.gov.uk/id/local-authority-district/22UN,Life Opportunities,1860 - Depots General,2100 - Building Repairs,02/12/2014,2117097-2,90,2100967 - N Rudelhoff,various electrical works nov 14
Tendring DC,http://statistics.data.gov.uk/id/local-authority-district/22UN,Life Opportunities,1880 - Office Accommodation Expenses,2100 - Building Repairs,02/12/2014,2117097-3,30,2100967 - N Rudelhoff,various electrical works nov 14
Tendring DC,http://statistics.data.gov.uk/id/local-authority-district/22UN,Life Opportunities,1880 - Office Accommodation Expenses,2100 - Building Repairs,02/12/2014,2117097-4,111,2100967 - N Rudelhoff,various electrical works nov 14
Tendring DC,http://statistics.data.gov.uk/id/local-authority-district/22UN,Life Opportunities,1880 - Office Accommodation Expenses,2100 - Building Repairs,02/12/2014,2117097-5,25,2100967 - N Rudelhoff,various electrical works nov 14
Tendring DC,http://statistics.data.gov.uk/id/local-authority-district/22UN,Life Opportunities,1880 - Office Accommodation Expenses,2100 - Building Repairs,02/12/2014,2117098-1,210,2100967 - N Rudelhoff,harwich electrical repairs oct 14
Tendring DC,http://statistics.data.gov.uk/id/local-authority-district/22UN,Life Opportunities,1880 - Office Accommodation Expenses,2100 - Building Repairs,02/12/2014,2117099-1,240,2100967 - N Rudelhoff,extraction fan chief exec toilet
Tendring DC,http://statistics.data.gov.uk/id/local-authority-district/22UN,Life Opportunities,1880 - Office Accommodation Expenses,2100 - Building Repairs,02/12/2014,2117100-1,124,2100967 - N Rudelhoff,various electrical works sept 14
Tendring DC,http://statistics.data.gov.uk/id/local-authority-district/22UN,Life Opportunities,1880 - Office Accommodation Expenses,2100 - Building Repairs,02/12/2014,2117100-2,169,2100967 - N Rudelhoff,various electrical works sept 14
Tendring DC,http://statistics.data.gov.uk/id/local-authority-district/22UN,Life Opportunities,1860 - Depots General,2100 - Building Repairs,02/12/2014,2117100-3,350,2100967 - N Rudelhoff,various electrical works sept 14
Tendring DC,http://statistics.data.gov.uk/id/local-authority-district/22UN,Life Opportunities,7620 - Air Show,2103 - Repairs and Maintenance,02/12/2014,2117118-1,503,2100967 - N Rudelhoff,electrical works airshow 14
Tendring DC,http://statistics.data.gov.uk/id/local-authority-district/22UN,Life Opportunities,6160 - Princes Theatre,2100 - Building Repairs,16/12/2014,2117372-1,1025,2100967 - N Rudelhoff,electrical repairs
Tendring DC,http://statistics.data.gov.uk/id/local-authority-district/22UN,Life Opportunities,1240 - Commercial Management,3311 - Travelling Career Track,02/12/2014,2117158-1,60,REDACTED PERSONAL DATA,REDACTED PERSONAL DATA
Tendring DC,http://statistics.data.gov.uk/id/local-authority-district/22UN,Life Opportunities,7600 - Tourist Information Centres,9356 - Commission Sales,09/12/2014,7016390-1,797.6,2110032 - National Express Ltd,NATIONAL EXPRESS NOV 14
Tendring DC,http://statistics.data.gov.uk/id/local-authority-district/22UN,Life Opportunities,7600 - Tourist Information Centres,9356 - Commission Sales,09/12/2014,7016390-2,-70.01,2110032 - National Express Ltd,NATIONAL EXPRESS NOV 14
Tendring DC,http://statistics.data.gov.uk/id/local-authority-district/22UN,Life Opportunities,5220 - HRA - Policy & Management,5930 - Business Planning Expenses,02/12/2014,7016284-1,2500,2100939 - Neopost Limited,DATA IMPROVER DQ 6000
Tendring DC,http://statistics.data.gov.uk/id/local-authority-district/22UN,Life Opportunities,"1580 - Benefits, Revenues and Customer Contact SU",4094 - Other Equipment Hire/Leasing,22/12/2014,7016672-1,3838.91,2100939 - Neopost Limited,ANNUAL SERVICE AGREEMENT 9.1.15 - 8.1.16
Tendring DC,http://statistics.data.gov.uk/id/local-authority-district/22UN,Life Opportunities,5880 - Management Of Sport & Leisure Facilities,5166 - Marketing and Promotion,09/12/2014,1061957-1,227.4,2113536 - Newsquest Media Group,HALF PAGE AD HMS 14/11/14
Tendring DC,http://statistics.data.gov.uk/id/local-authority-district/22UN,Life Opportunities,6160 - Princes Theatre,5160 - Advertising,16/12/2014,2117337-1,158,2113536 - Newsquest Media Group,26.11.14 gazette
Tendring DC,http://statistics.data.gov.uk/id/local-authority-district/22UN,Life Opportunities,6160 - Princes Theatre,5160 - Advertising,16/12/2014,2117338-1,150,2113536 - Newsquest Media Group,27.11.14 gazette
Tendring DC,http://statistics.data.gov.uk/id/local-authority-district/22UN,Life Opportunities,H880 - New Build Initiatives and Acquisitions,C200 - Main Contractor,02/12/2014,7016285-1,2363.92,2113536 - Newsquest Media Group,PUBLIC NOTICE GAZETTE 13.11.14
Tendring DC,http://statistics.data.gov.uk/id/local-authority-district/22UN,Life Opportunities,6160 - Princes Theatre,5160 - Advertising,09/12/2014,7016436-1,193.8,2113536 - Newsquest Media Group,GAZETTE 20.11.14
Tendring DC,http://statistics.data.gov.uk/id/local-authority-district/22UN,Life Opportunities,6740 - Careline,5160 - Advertising,22/12/2014,7016602-1,900,2113536 - Newsquest Media Group,DOUBLE HEIGHT MPU 23.11.14
Tendring DC,http://statistics.data.gov.uk/id/local-authority-district/22UN,Life Opportunities,6160 - Princes Theatre,5160 - Advertising,22/12/2014,7016661-1,133,2113536 - Newsquest Media Group,GAZETTE 4.12.14 POLKA DOT
Tendring DC,http://statistics.data.gov.uk/id/local-authority-district/22UN,Life Opportunities,6160 - Princes Theatre,5160 - Advertising,22/12/2014,7016662-1,70,2113536 - Newsquest Media Group,EVENING GAZETTE 4.12.14
Tendring DC,http://statistics.data.gov.uk/id/local-authority-district/22UN,Life Opportunities,6160 - Princes Theatre,5160 - Advertising,22/12/2014,7016663-1,205,2113536 - Newsquest Media Group,GAZETTE 21.10.14
Tendring DC,http://statistics.data.gov.uk/id/local-authority-district/22UN,Life Opportunities,5880 - Management Of Sport & Leisure Facilities,5166 - Marketing and Promotion,22/12/2014,7016704-1,299,2113536 - Newsquest Media Group,FPAD HMS 28.11.14
Tendring DC,http://statistics.data.gov.uk/id/local-authority-district/22UN,Life Opportunities,1240 - Commercial Management,3311 - Travelling Career Track,09/12/2014,7016416-1,60,REDACTED PERSONAL DATA,REDACTED PERSONAL DATA
Tendring DC,http://statistics.data.gov.uk/id/local-authority-district/22UN,Life Opportunities,1240 - Commercial Management,3311 - Travelling Career Track,09/12/2014,7016422-1,12,REDACTED PERSONAL DATA,REDACTED PERSONAL DATA
Tendring DC,http://statistics.data.gov.uk/id/local-authority-district/22UN,Life Opportunities,5860 - Manningtree Sports Centre,2100 - Building Repairs,16/12/2014,1062024-1,557.5,2112920 - Nigel Bruce Electrical Services,2X NEW LED PANEL LIGHTS AND REPAIRS
Tendring DC,http://statistics.data.gov.uk/id/local-authority-district/22UN,Life Opportunities,5860 - Manningtree Sports Centre,2100 - Building Repairs,16/12/2014,1062025-1,725,2112920 - Nigel Bruce Electrical Services,NEW LED LIGHTING PANELS X 3
Tendring DC,http://statistics.data.gov.uk/id/local-authority-district/22UN,Life Opportunities,"1580 - Benefits, Revenues and Customer Contact SU",4753 - Computer - Application Software,02/12/2014,2117091-1,8685,2101204 - Northgate Information Solutions UK Ltd,atlas/shbe licence
Tendring DC,http://statistics.data.gov.uk/id/local-authority-district/22UN,Life Opportunities,5140 - Homelessness,4683 - Other Homelessness Expenses,16/12/2014,7016544-1,35,2107920 - NowMedical,NOVEMBER MEDICAL ADVICE
Tendring DC,http://statistics.data.gov.uk/id/local-authority-district/22UN,Life Opportunities,1880 - Office Accommodation Expenses,2100 - Building Repairs,02/12/2014,7016260-1,2300,2102096 - Nu-Life Cleaning,GUTTER CLEANING TDC SITES SEPT 14
Tendring DC,http://statistics.data.gov.uk/id/local-authority-district/22UN,Life Opportunities,5140 - Homelessness,4683 - Other Homelessness Expenses,09/12/2014,7016421-1,450,REDACTED PERSONAL DATA,REDACTED PERSONAL DATA
Tendring DC,http://statistics.data.gov.uk/id/local-authority-district/22UN,Life Opportunities,8540 - Leisure Centre Clacton,5311 - General Provisions - Vending,09/12/2014,1061952-1,898.28,2101083 - Osgood Smith,VENDING SUPPLIES
Tendring DC,http://statistics.data.gov.uk/id/local-authority-district/22UN,Life Opportunities,8540 - Leisure Centre Clacton,5311 - General Provisions - Vending,09/12/2014,1061952-2,97.51,2101083 - Osgood Smith,VENDING SUPPLIES
Tendring DC,http://statistics.data.gov.uk/id/local-authority-district/22UN,Life Opportunities,5820 - Harwich Sports Centre,5311 - General Provisions - Vending,09/12/2014,1061953-1,27.31,2101083 - Osgood Smith,CANTEEN GOODS
Tendring DC,http://statistics.data.gov.uk/id/local-authority-district/22UN,Life Opportunities,5820 - Harwich Sports Centre,5300 - Resaleable Items,02/12/2014,2117124-1,30.7,2101083 - Osgood Smith,canteen goods
Tendring DC,http://statistics.data.gov.uk/id/local-authority-district/22UN,Life Opportunities,5860 - Manningtree Sports Centre,5311 - General Provisions - Vending,09/12/2014,2117227-1,45.92,2101083 - Osgood Smith,vending supplies
Tendring DC,http://statistics.data.gov.uk/id/local-authority-district/22UN,Life Opportunities,8520 - Frinton & Walton Swimming Pool,5311 - General Provisions - Vending,09/12/2014,2117245-1,299.14,2101083 - Osgood Smith,fwsp - osgood smith
Tendring DC,http://statistics.data.gov.uk/id/local-authority-district/22UN,Life Opportunities,5820 - Harwich Sports Centre,5311 - General Provisions - Vending,16/12/2014,2117274-1,40.68,2101083 - Osgood Smith,canteen goods
Tendring DC,http://statistics.data.gov.uk/id/local-authority-district/22UN,Life Opportunities,5800 - Brightlingsea Sports Centre,5300 - Resaleable Items,16/12/2014,2117275-1,127.86,2101083 - Osgood Smith,drinks for re-sale
Tendring DC,http://statistics.data.gov.uk/id/local-authority-district/22UN,Life Opportunities,8540 - Leisure Centre Clacton,5311 - General Provisions - Vending,16/12/2014,2117293-1,159.25,2101083 - Osgood Smith,vending supplies
Tendring DC,http://statistics.data.gov.uk/id/local-authority-district/22UN,Life Opportunities,8540 - Leisure Centre Clacton,5311 - General Provisions - Vending,16/12/2014,2117294-1,226.82,2101083 - Osgood Smith,vending supplies
Tendring DC,http://statistics.data.gov.uk/id/local-authority-district/22UN,Life Opportunities,5860 - Manningtree Sports Centre,5311 - General Provisions - Vending,16/12/2014,2117295-1,102.3,2101083 - Osgood Smith,vending supplies
Tendring DC,http://statistics.data.gov.uk/id/local-authority-district/22UN,Life Opportunities,8510 - Dovercourt Swimming Pool & All Weather Facilities,5311 - General Provisions - Vending,22/12/2014,7016622-1,373.35,2101083 - Osgood Smith,DOVERCOURT POOL - SWEETS
Tendring DC,http://statistics.data.gov.uk/id/local-authority-district/22UN,Life Opportunities,8510 - Dovercourt Swimming Pool & All Weather Facilities,5311 - General Provisions - Vending,22/12/2014,7016623-1,7.42,2101083 - Osgood Smith,DOVERCOURT POOL - SWEETS
Tendring DC,http://statistics.data.gov.uk/id/local-authority-district/22UN,Life Opportunities,5820 - Harwich Sports Centre,5311 - General Provisions - Vending,22/12/2014,7016690-1,25.97,2101083 - Osgood Smith,CANTEEN GOODS
Tendring DC,http://statistics.data.gov.uk/id/local-authority-district/22UN,Life Opportunities,8540 - Leisure Centre Clacton,5311 - General Provisions - Vending,22/12/2014,7016702-1,479.35,2101083 - Osgood Smith,VENDING SUPPLIES
Tendring DC,http://statistics.data.gov.uk/id/local-authority-district/22UN,Life Opportunities,8540 - Leisure Centre Clacton,5311 - General Provisions - Vending,22/12/2014,7016702-2,91.81,2101083 - Osgood Smith,VENDING SUPPLIES
Tendring DC,http://statistics.data.gov.uk/id/local-authority-district/22UN,Life Opportunities,6740 - Careline,9050 - Careline Income - General,22/12/2014,1062093-1,11.4,REDACTED PERSONAL DATA,REDACTED PERSONAL DATA
Tendring DC,http://statistics.data.gov.uk/id/local-authority-district/22UN,Life Opportunities,5480 - HRA - Repair & Maintenance,2017 - Mechanical Equipment /Extract Fans,16/12/2014,1062012-1,840,REDACTED PERSONAL DATA,REDACTED PERSONAL DATA
Tendring DC,http://statistics.data.gov.uk/id/local-authority-district/22UN,Life Opportunities,5480 - HRA - Repair & Maintenance,2017 - Mechanical Equipment /Extract Fans,16/12/2014,1062012-2,348,REDACTED PERSONAL DATA,REDACTED PERSONAL DATA
Tendring DC,http://statistics.data.gov.uk/id/local-authority-district/22UN,Life Opportunities,5480 - HRA - Repair & Maintenance,2017 - Mechanical Equipment /Extract Fans,16/12/2014,1062013-1,460,REDACTED PERSONAL DATA,REDACTED PERSONAL DATA
Tendring DC,http://statistics.data.gov.uk/id/local-authority-district/22UN,Life Opportunities,5480 - HRA - Repair & Maintenance,2017 - Mechanical Equipment /Extract Fans,16/12/2014,1062013-2,260,REDACTED PERSONAL DATA,REDACTED PERSONAL DATA
Tendring DC,http://statistics.data.gov.uk/id/local-authority-district/22UN,Life Opportunities,5480 - HRA - Repair & Maintenance,2017 - Mechanical Equipment /Extract Fans,16/12/2014,1062014-1,190,REDACTED PERSONAL DATA,REDACTED PERSONAL DATA
Tendring DC,http://statistics.data.gov.uk/id/local-authority-district/22UN,Life Opportunities,5480 - HRA - Repair & Maintenance,2017 - Mechanical Equipment /Extract Fans,16/12/2014,1062014-2,299,REDACTED PERSONAL DATA,REDACTED PERSONAL DATA
Tendring DC,http://statistics.data.gov.uk/id/local-authority-district/22UN,Life Opportunities,5480 - HRA - Repair & Maintenance,2017 - Mechanical Equipment /Extract Fans,16/12/2014,1062015-1,478,REDACTED PERSONAL DATA,REDACTED PERSONAL DATA
Tendring DC,http://statistics.data.gov.uk/id/local-authority-district/22UN,Life Opportunities,5480 - HRA - Repair & Maintenance,2017 - Mechanical Equipment /Extract Fans,16/12/2014,1062015-2,630,REDACTED PERSONAL DATA,REDACTED PERSONAL DATA
Tendring DC,http://statistics.data.gov.uk/id/local-authority-district/22UN,Life Opportunities,5480 - HRA - Repair & Maintenance,2017 - Mechanical Equipment /Extract Fans,16/12/2014,1062016-1,274,REDACTED PERSONAL DATA,REDACTED PERSONAL DATA
Tendring DC,http://statistics.data.gov.uk/id/local-authority-district/22UN,Life Opportunities,5480 - HRA - Repair & Maintenance,2017 - Mechanical Equipment /Extract Fans,16/12/2014,1062016-2,112,REDACTED PERSONAL DATA,REDACTED PERSONAL DATA
Tendring DC,http://statistics.data.gov.uk/id/local-authority-district/22UN,Life Opportunities,5480 - HRA - Repair & Maintenance,2017 - Mechanical Equipment /Extract Fans,22/12/2014,1062100-1,1080,REDACTED PERSONAL DATA,REDACTED PERSONAL DATA
Tendring DC,http://statistics.data.gov.uk/id/local-authority-district/22UN,Life Opportunities,5480 - HRA - Repair & Maintenance,2017 - Mechanical Equipment /Extract Fans,22/12/2014,1062100-2,438,REDACTED PERSONAL DATA,REDACTED PERSONAL DATA
Tendring DC,http://statistics.data.gov.uk/id/local-authority-district/22UN,Life Opportunities,8520 - Frinton & Walton Swimming Pool,4400 - Maintenance Under Service Agreements,22/12/2014,7016735-1,81.07,2112129 - Pelican Rouge Coffee Solutions,FWSP - AUTOBAR
Tendring DC,http://statistics.data.gov.uk/id/local-authority-district/22UN,Life Opportunities,5420 - HRA - Communal Cleaning,2706 - Communal Areas Cleaning Expenses,02/12/2014,7016294-1,3521.58,2107884 - Pinnacle Essex,NOVEMBER 14 CLEANING FEE
Tendring DC,http://statistics.data.gov.uk/id/local-authority-district/22UN,Life Opportunities,6160 - Princes Theatre,5160 - Advertising,02/12/2014,7016307-1,250,2113700 - PJR Communications Ltd,PRINCES THEATRE ADVERT LEISURE TIME
Tendring DC,http://statistics.data.gov.uk/id/local-authority-district/22UN,Life Opportunities,H720 - Environmental Improvements,C200 - Main Contractor,16/12/2014,2117340-1,6420,REDACTED PERSONAL DATA,REDACTED PERSONAL DATA
Tendring DC,http://statistics.data.gov.uk/id/local-authority-district/22UN,Life Opportunities,5480 - HRA - Repair & Maintenance,2090 - Fencing,16/12/2014,7016561-1,236,REDACTED PERSONAL DATA,REDACTED PERSONAL DATA
Tendring DC,http://statistics.data.gov.uk/id/local-authority-district/22UN,Life Opportunities,5480 - HRA - Repair & Maintenance,2090 - Fencing,22/12/2014,7016620-1,502.95,REDACTED PERSONAL DATA,REDACTED PERSONAL DATA
Tendring DC,http://statistics.data.gov.uk/id/local-authority-district/22UN,Life Opportunities,5480 - HRA - Repair & Maintenance,2001 - Responsive Maintenance - Concrete And Other Extern,22/12/2014,7016620-2,45.57,REDACTED PERSONAL DATA,REDACTED PERSONAL DATA
Tendring DC,http://statistics.data.gov.uk/id/local-authority-district/22UN,Life Opportunities,6160 - Princes Theatre,4622 - Hired Services - Artistes and Production Companies,16/12/2014,2117287-1,16020.31,2111649 - Polka Dot Pantomimes,jack and the beanstalk
Tendring DC,http://statistics.data.gov.uk/id/local-authority-district/22UN,Life Opportunities,H920 - Disabled Facilities Grants,C400 - Grant payments,16/12/2014,1062040-1,3800,REDACTED PERSONAL DATA,REDACTED PERSONAL DATA
Tendring DC,http://statistics.data.gov.uk/id/local-authority-district/22UN,Life Opportunities,"1580 - Benefits, Revenues and Customer Contact SU",4094 - Other Equipment Hire/Leasing,09/12/2014,7016437-1,56.4,2101111 - Pressure Coolers Limited,MAESTRO COOLER 1/4 RENTAL - FEB 15
Tendring DC,http://statistics.data.gov.uk/id/local-authority-district/22UN,Life Opportunities,5480 - HRA - Repair & Maintenance,2012 - Responsive Maintenance - Clearance And Cleaning,16/12/2014,2117341-1,80,REDACTED PERSONAL DATA,REDACTED PERSONAL DATA
Tendring DC,http://statistics.data.gov.uk/id/local-authority-district/22UN,Life Opportunities,5480 - HRA - Repair & Maintenance,2012 - Responsive Maintenance - Clearance And Cleaning,16/12/2014,2117342-1,75,REDACTED PERSONAL DATA,REDACTED PERSONAL DATA
Tendring DC,http://statistics.data.gov.uk/id/local-authority-district/22UN,Life Opportunities,5480 - HRA - Repair & Maintenance,2012 - Responsive Maintenance - Clearance And Cleaning,16/12/2014,2117343-1,50,REDACTED PERSONAL DATA,REDACTED PERSONAL DATA
